Organisation Name,Organisation Code,Unique Ref No ,Effective Date,Directorate,Supplier Name ,Payment Date,Net amount,Purpose of Spend,"Procurement Classification
(Higher Level)","Procurement Classification
(Lower Level)",CAPITAL / REVENUE
Walsall Council,http://opendatacommunities.org/id/metropolitan-district-council/walsall ,WC160-1,31.03.24,CHILDRENS,100GREEN - GREEN ENERGY (UK) PLC,07/03/2024,323.86,6222-Electricity,PREMISES,ENERGY,REVENUE
Walsall Council,http://opendatacommunities.org/id/metropolitan-district-council/walsall ,WC160-2,31.03.24,ECONOMY & ENVIRONMENT CAPITAL,10SQUARED LTD,14/03/2024,"-11,750.00",7200-Purchase of Furniture & Equipment,CAPITAL,"VEHICLES,PLANT,EQUIPMENT & MACHINERY",CAPITAL
Walsall Council,http://opendatacommunities.org/id/metropolitan-district-council/walsall ,WC160-3,31.03.24,ECONOMY & ENVIRONMENT CAPITAL,10SQUARED LTD,14/03/2024,"-8,496.50",7200-Purchase of Furniture & Equipment,CAPITAL,"VEHICLES,PLANT,EQUIPMENT & MACHINERY",CAPITAL
Walsall Council,http://opendatacommunities.org/id/metropolitan-district-council/walsall ,WC160-4,31.03.24,ECONOMY & ENVIRONMENT CAPITAL,10SQUARED LTD,14/03/2024,"-3,204.00",7200-Purchase of Furniture & Equipment,CAPITAL,"VEHICLES,PLANT,EQUIPMENT & MACHINERY",CAPITAL
Walsall Council,http://opendatacommunities.org/id/metropolitan-district-council/walsall ,WC160-5,31.03.24,ECONOMY & ENVIRONMENT CAPITAL,10SQUARED LTD,14/03/2024,486.50,7200-Purchase of Furniture & Equipment,CAPITAL,"VEHICLES,PLANT,EQUIPMENT & MACHINERY",CAPITAL
Walsall Council,http://opendatacommunities.org/id/metropolitan-district-council/walsall ,WC160-6,31.03.24,ECONOMY & ENVIRONMENT CAPITAL,10SQUARED LTD,14/03/2024,"1,602.00",7200-Purchase of Furniture & Equipment,CAPITAL,"VEHICLES,PLANT,EQUIPMENT & MACHINERY",CAPITAL
Walsall Council,http://opendatacommunities.org/id/metropolitan-district-council/walsall ,WC160-7,31.03.24,ECONOMY & ENVIRONMENT CAPITAL,10SQUARED LTD,14/03/2024,"3,204.00",7200-Purchase of Furniture & Equipment,CAPITAL,"VEHICLES,PLANT,EQUIPMENT & MACHINERY",CAPITAL
Walsall Council,http://opendatacommunities.org/id/metropolitan-district-council/walsall ,WC160-8,31.03.24,ECONOMY & ENVIRONMENT CAPITAL,10SQUARED LTD,14/03/2024,"8,496.50",7200-Purchase of Furniture & Equipment,CAPITAL,"VEHICLES,PLANT,EQUIPMENT & MACHINERY",CAPITAL
Walsall Council,http://opendatacommunities.org/id/metropolitan-district-council/walsall ,WC160-9,31.03.24,ECONOMY & ENVIRONMENT CAPITAL,10SQUARED LTD,14/03/2024,"11,750.00",7200-Purchase of Furniture & Equipment,CAPITAL,"VEHICLES,PLANT,EQUIPMENT & MACHINERY",CAPITAL
Walsall Council,http://opendatacommunities.org/id/metropolitan-district-council/walsall ,WC160-10,31.03.24,RESOURCES AND TRANSFORMATION,11KBW,25/03/2024,"15,600.00",6610-External Legal Fees,SUPPLIES & SERVICES,SERVICES,REVENUE
Walsall Council,http://opendatacommunities.org/id/metropolitan-district-council/walsall ,WC160-11,31.03.24,CHILDRENS,12:42 STUDIOS LTD,15/03/2024,"5,500.00",6211-Professional Fees & Services,SUPPLIES & SERVICES,SERVICES,REVENUE
Walsall Council,http://opendatacommunities.org/id/metropolitan-district-council/walsall ,WC160-12,31.03.24,CHILDRENS,1ST STAFF LTD,01/03/2024,"3,600.00",1220-Professional Fees & Services,SUPPLIES & SERVICES,SERVICES,REVENUE
Walsall Council,http://opendatacommunities.org/id/metropolitan-district-council/walsall ,WC160-13,31.03.24,CHILDRENS,247 CARS (WILLENHALL) LIMITED,05/03/2024,867.27,1220-Professional Fees & Services,SUPPLIES & SERVICES,SERVICES,REVENUE
Walsall Council,http://opendatacommunities.org/id/metropolitan-district-council/walsall ,WC160-14,31.03.24,CHILDRENS,247 CARS (WILLENHALL) LIMITED,12/03/2024,"1,451.79",1220-Professional Fees & Services,SUPPLIES & SERVICES,SERVICES,REVENUE
Walsall Council,http://opendatacommunities.org/id/metropolitan-district-council/walsall ,WC160-15,31.03.24,CHILDRENS,247 CARS (WILLENHALL) LIMITED,12/03/2024,305.20,1220-Professional Fees & Services,SUPPLIES & SERVICES,SERVICES,REVENUE
Walsall Council,http://opendatacommunities.org/id/metropolitan-district-council/walsall ,WC160-16,31.03.24,CHILDRENS,247 CARS (WILLENHALL) LIMITED,12/03/2024,486.30,1220-Professional Fees & Services,SUPPLIES & SERVICES,SERVICES,REVENUE
Walsall Council,http://opendatacommunities.org/id/metropolitan-district-council/walsall ,WC160-17,31.03.24,CHILDRENS,247 CARS (WILLENHALL) LIMITED,25/03/2024,"1,705.90",6241-Hire of Vehicle with Driver,TRANSPORT,DIRECT TRANSPORT COSTS,REVENUE
Walsall Council,http://opendatacommunities.org/id/metropolitan-district-council/walsall ,WC160-18,31.03.24,CHILDRENS,247 CARS (WILLENHALL) LIMITED,25/03/2024,"1,704.00",6241-Hire of Vehicle with Driver,TRANSPORT,DIRECT TRANSPORT COSTS,REVENUE
Walsall Council,http://opendatacommunities.org/id/metropolitan-district-council/walsall ,WC160-19,31.03.24,CHILDRENS,247 CARS (WILLENHALL) LIMITED,25/03/2024,"1,704.00",6241-Hire of Vehicle with Driver,TRANSPORT,DIRECT TRANSPORT COSTS,REVENUE
Walsall Council,http://opendatacommunities.org/id/metropolitan-district-council/walsall ,WC160-20,31.03.24,CHILDRENS,247 CARS (WILLENHALL) LIMITED,25/03/2024,"1,704.00",6241-Hire of Vehicle with Driver,TRANSPORT,DIRECT TRANSPORT COSTS,REVENUE
Walsall Council,http://opendatacommunities.org/id/metropolitan-district-council/walsall ,WC160-21,31.03.24,CHILDRENS,247 CARS (WILLENHALL) LIMITED,25/03/2024,"1,118.70",6241-Hire of Vehicle with Driver,TRANSPORT,DIRECT TRANSPORT COSTS,REVENUE
Walsall Council,http://opendatacommunities.org/id/metropolitan-district-council/walsall ,WC160-22,31.03.24,CHILDRENS,247 CARS (WILLENHALL) LIMITED,25/03/2024,720.90,6241-Hire of Vehicle with Driver,TRANSPORT,DIRECT TRANSPORT COSTS,REVENUE
Walsall Council,http://opendatacommunities.org/id/metropolitan-district-council/walsall ,WC160-23,31.03.24,CHILDRENS,247 CARS (WILLENHALL) LIMITED,25/03/2024,"3,060.00",6241-Hire of Vehicle with Driver,TRANSPORT,DIRECT TRANSPORT COSTS,REVENUE
Walsall Council,http://opendatacommunities.org/id/metropolitan-district-council/walsall ,WC160-24,31.03.24,CHILDRENS,247 CARS (WILLENHALL) LIMITED,25/03/2024,"1,915.50",6241-Hire of Vehicle with Driver,TRANSPORT,DIRECT TRANSPORT COSTS,REVENUE
Walsall Council,http://opendatacommunities.org/id/metropolitan-district-council/walsall ,WC160-25,31.03.24,CHILDRENS,247 CARS (WILLENHALL) LIMITED,25/03/2024,"1,387.50",6241-Hire of Vehicle with Driver,TRANSPORT,DIRECT TRANSPORT COSTS,REVENUE
Walsall Council,http://opendatacommunities.org/id/metropolitan-district-council/walsall ,WC160-26,31.03.24,CHILDRENS,247 CARS (WILLENHALL) LIMITED,25/03/2024,"1,387.50",6241-Hire of Vehicle with Driver,TRANSPORT,DIRECT TRANSPORT COSTS,REVENUE
Walsall Council,http://opendatacommunities.org/id/metropolitan-district-council/walsall ,WC160-27,31.03.24,CHILDRENS,247 CARS (WILLENHALL) LIMITED,25/03/2024,997.50,6241-Hire of Vehicle with Driver,TRANSPORT,DIRECT TRANSPORT COSTS,REVENUE
Walsall Council,http://opendatacommunities.org/id/metropolitan-district-council/walsall ,WC160-28,31.03.24,CHILDRENS,247 CARS (WILLENHALL) LIMITED,25/03/2024,"1,704.00",6241-Hire of Vehicle with Driver,TRANSPORT,DIRECT TRANSPORT COSTS,REVENUE
Walsall Council,http://opendatacommunities.org/id/metropolitan-district-council/walsall ,WC160-29,31.03.24,CHILDRENS,247 CARS (WILLENHALL) LIMITED,25/03/2024,"1,704.00",6241-Hire of Vehicle with Driver,TRANSPORT,DIRECT TRANSPORT COSTS,REVENUE
Walsall Council,http://opendatacommunities.org/id/metropolitan-district-council/walsall ,WC160-30,31.03.24,CHILDRENS,247 CARS (WILLENHALL) LIMITED,25/03/2024,"1,704.00",6241-Hire of Vehicle with Driver,TRANSPORT,DIRECT TRANSPORT COSTS,REVENUE
Walsall Council,http://opendatacommunities.org/id/metropolitan-district-council/walsall ,WC160-31,31.03.24,CHILDRENS,247 CARS (WILLENHALL) LIMITED,25/03/2024,"1,704.00",6241-Hire of Vehicle with Driver,TRANSPORT,DIRECT TRANSPORT COSTS,REVENUE
Walsall Council,http://opendatacommunities.org/id/metropolitan-district-council/walsall ,WC160-32,31.03.24,CHILDRENS,247 CARS (WILLENHALL) LIMITED,25/03/2024,"1,200.00",6241-Hire of Vehicle with Driver,TRANSPORT,DIRECT TRANSPORT COSTS,REVENUE
Walsall Council,http://opendatacommunities.org/id/metropolitan-district-council/walsall ,WC160-33,31.03.24,CHILDRENS,247 CARS (WILLENHALL) LIMITED,25/03/2024,"1,387.50",6241-Hire of Vehicle with Driver,TRANSPORT,DIRECT TRANSPORT COSTS,REVENUE
Walsall Council,http://opendatacommunities.org/id/metropolitan-district-council/walsall ,WC160-34,31.03.24,CHILDRENS,247 CARS (WILLENHALL) LIMITED,25/03/2024,"1,704.00",6241-Hire of Vehicle with Driver,TRANSPORT,DIRECT TRANSPORT COSTS,REVENUE
Walsall Council,http://opendatacommunities.org/id/metropolitan-district-council/walsall ,WC160-35,31.03.24,CHILDRENS,247 CARS (WILLENHALL) LIMITED,25/03/2024,"1,585.95",6241-Hire of Vehicle with Driver,TRANSPORT,DIRECT TRANSPORT COSTS,REVENUE
Walsall Council,http://opendatacommunities.org/id/metropolitan-district-council/walsall ,WC160-36,31.03.24,CHILDRENS,247 CARS (WILLENHALL) LIMITED,25/03/2024,"1,324.40",6241-Hire of Vehicle with Driver,TRANSPORT,DIRECT TRANSPORT COSTS,REVENUE
Walsall Council,http://opendatacommunities.org/id/metropolitan-district-council/walsall ,WC160-37,31.03.24,CHILDRENS,247 CARS (WILLENHALL) LIMITED,25/03/2024,"1,643.70",6241-Hire of Vehicle with Driver,TRANSPORT,DIRECT TRANSPORT COSTS,REVENUE
Walsall Council,http://opendatacommunities.org/id/metropolitan-district-council/walsall ,WC160-38,31.03.24,CHILDRENS,247 CARS (WILLENHALL) LIMITED,25/03/2024,"1,899.45",6241-Hire of Vehicle with Driver,TRANSPORT,DIRECT TRANSPORT COSTS,REVENUE
Walsall Council,http://opendatacommunities.org/id/metropolitan-district-council/walsall ,WC160-39,31.03.24,CHILDRENS,247 CARS (WILLENHALL) LIMITED,25/03/2024,"1,335.00",6241-Hire of Vehicle with Driver,TRANSPORT,DIRECT TRANSPORT COSTS,REVENUE
Walsall Council,http://opendatacommunities.org/id/metropolitan-district-council/walsall ,WC160-40,31.03.24,CHILDRENS,247 CARS (WILLENHALL) LIMITED,25/03/2024,"2,120.02",6241-Hire of Vehicle with Driver,TRANSPORT,DIRECT TRANSPORT COSTS,REVENUE
Walsall Council,http://opendatacommunities.org/id/metropolitan-district-council/walsall ,WC160-41,31.03.24,CHILDRENS,247 CARS (WILLENHALL) LIMITED,25/03/2024,"1,704.00",6241-Hire of Vehicle with Driver,TRANSPORT,DIRECT TRANSPORT COSTS,REVENUE
Walsall Council,http://opendatacommunities.org/id/metropolitan-district-council/walsall ,WC160-42,31.03.24,CHILDRENS,247 CARS (WILLENHALL) LIMITED,25/03/2024,"1,800.00",6241-Hire of Vehicle with Driver,TRANSPORT,DIRECT TRANSPORT COSTS,REVENUE
Walsall Council,http://opendatacommunities.org/id/metropolitan-district-council/walsall ,WC160-43,31.03.24,CHILDRENS,247 CARS (WILLENHALL) LIMITED,25/03/2024,"1,800.45",6241-Hire of Vehicle with Driver,TRANSPORT,DIRECT TRANSPORT COSTS,REVENUE
Walsall Council,http://opendatacommunities.org/id/metropolitan-district-council/walsall ,WC160-44,31.03.24,CHILDRENS,247 CARS (WILLENHALL) LIMITED,25/03/2024,"2,487.45",6241-Hire of Vehicle with Driver,TRANSPORT,DIRECT TRANSPORT COSTS,REVENUE
Walsall Council,http://opendatacommunities.org/id/metropolitan-district-council/walsall ,WC160-45,31.03.24,CHILDRENS,247 CARS (WILLENHALL) LIMITED,25/03/2024,"2,353.91",6241-Hire of Vehicle with Driver,TRANSPORT,DIRECT TRANSPORT COSTS,REVENUE
Walsall Council,http://opendatacommunities.org/id/metropolitan-district-council/walsall ,WC160-46,31.03.24,CHILDRENS,247 CARS (WILLENHALL) LIMITED,25/03/2024,"1,951.95",6241-Hire of Vehicle with Driver,TRANSPORT,DIRECT TRANSPORT COSTS,REVENUE
Walsall Council,http://opendatacommunities.org/id/metropolitan-district-council/walsall ,WC160-47,31.03.24,CHILDRENS,247 CARS (WILLENHALL) LIMITED,25/03/2024,"2,116.50",6241-Hire of Vehicle with Driver,TRANSPORT,DIRECT TRANSPORT COSTS,REVENUE
Walsall Council,http://opendatacommunities.org/id/metropolitan-district-council/walsall ,WC160-48,31.03.24,CHILDRENS,247 CARS (WILLENHALL) LIMITED,25/03/2024,848.16,6241-Hire of Vehicle with Driver,TRANSPORT,DIRECT TRANSPORT COSTS,REVENUE
Walsall Council,http://opendatacommunities.org/id/metropolitan-district-council/walsall ,WC160-49,31.03.24,CHILDRENS,247 CARS (WILLENHALL) LIMITED,25/03/2024,"1,332.75",6241-Hire of Vehicle with Driver,TRANSPORT,DIRECT TRANSPORT COSTS,REVENUE
Walsall Council,http://opendatacommunities.org/id/metropolitan-district-council/walsall ,WC160-50,31.03.24,CHILDRENS,247 CARS (WILLENHALL) LIMITED,25/03/2024,"1,332.75",6241-Hire of Vehicle with Driver,TRANSPORT,DIRECT TRANSPORT COSTS,REVENUE
Walsall Council,http://opendatacommunities.org/id/metropolitan-district-council/walsall ,WC160-51,31.03.24,CHILDRENS,247 CARS (WILLENHALL) LIMITED,25/03/2024,"1,873.50",6241-Hire of Vehicle with Driver,TRANSPORT,DIRECT TRANSPORT COSTS,REVENUE
Walsall Council,http://opendatacommunities.org/id/metropolitan-district-council/walsall ,WC160-52,31.03.24,CHILDRENS,247 CARS (WILLENHALL) LIMITED,25/03/2024,"1,511.40",6241-Hire of Vehicle with Driver,TRANSPORT,DIRECT TRANSPORT COSTS,REVENUE
Walsall Council,http://opendatacommunities.org/id/metropolitan-district-council/walsall ,WC160-53,31.03.24,CHILDRENS,247 CARS (WILLENHALL) LIMITED,25/03/2024,"1,704.00",6241-Hire of Vehicle with Driver,TRANSPORT,DIRECT TRANSPORT COSTS,REVENUE
Walsall Council,http://opendatacommunities.org/id/metropolitan-district-council/walsall ,WC160-54,31.03.24,CHILDRENS,247 CARS (WILLENHALL) LIMITED,25/03/2024,"1,605.00",6241-Hire of Vehicle with Driver,TRANSPORT,DIRECT TRANSPORT COSTS,REVENUE
Walsall Council,http://opendatacommunities.org/id/metropolitan-district-council/walsall ,WC160-55,31.03.24,CHILDRENS,247 CARS (WILLENHALL) LIMITED,25/03/2024,"1,545.00",6241-Hire of Vehicle with Driver,TRANSPORT,DIRECT TRANSPORT COSTS,REVENUE
Walsall Council,http://opendatacommunities.org/id/metropolitan-district-council/walsall ,WC160-56,31.03.24,CHILDRENS,247 CARS (WILLENHALL) LIMITED,25/03/2024,"1,267.50",6241-Hire of Vehicle with Driver,TRANSPORT,DIRECT TRANSPORT COSTS,REVENUE
Walsall Council,http://opendatacommunities.org/id/metropolitan-district-council/walsall ,WC160-57,31.03.24,CHILDRENS,247 CARS (WILLENHALL) LIMITED,25/03/2024,"1,111.20",6241-Hire of Vehicle with Driver,TRANSPORT,DIRECT TRANSPORT COSTS,REVENUE
Walsall Council,http://opendatacommunities.org/id/metropolitan-district-council/walsall ,WC160-58,31.03.24,CHILDRENS,247 CARS (WILLENHALL) LIMITED,25/03/2024,"1,966.50",6241-Hire of Vehicle with Driver,TRANSPORT,DIRECT TRANSPORT COSTS,REVENUE
Walsall Council,http://opendatacommunities.org/id/metropolitan-district-council/walsall ,WC160-59,31.03.24,CHILDRENS,247 CARS (WILLENHALL) LIMITED,25/03/2024,"1,200.00",6241-Hire of Vehicle with Driver,TRANSPORT,DIRECT TRANSPORT COSTS,REVENUE
Walsall Council,http://opendatacommunities.org/id/metropolitan-district-council/walsall ,WC160-60,31.03.24,CHILDRENS,247 CARS (WILLENHALL) LIMITED,25/03/2024,"1,742.13",6241-Hire of Vehicle with Driver,TRANSPORT,DIRECT TRANSPORT COSTS,REVENUE
Walsall Council,http://opendatacommunities.org/id/metropolitan-district-council/walsall ,WC160-61,31.03.24,RESOURCES AND TRANSFORMATION,3 SPIRIT UK TRAINING & CONSULTANCY,27/03/2024,700.00,6625-Consultant Fees,SUPPLIES & SERVICES,SERVICES,REVENUE
Walsall Council,http://opendatacommunities.org/id/metropolitan-district-council/walsall ,WC160-62,31.03.24,CHILDRENS,5 CARE SERVICES LTD,01/03/2024,"1,248.00",6222-Support Under Section 23 of The Childrens Act,THIRD PARTY PAYMENTS,PRIVATE CONTRACTOR,REVENUE
Walsall Council,http://opendatacommunities.org/id/metropolitan-district-council/walsall ,WC160-63,31.03.24,CHILDRENS,5 CARE SERVICES LTD,11/03/2024,333.00,6220-Professional Fees & Services,SUPPLIES & SERVICES,SERVICES,REVENUE
Walsall Council,http://opendatacommunities.org/id/metropolitan-district-council/walsall ,WC160-64,31.03.24,CHILDRENS,5 CARE SERVICES LTD,11/03/2024,792.00,6220-Professional Fees & Services,SUPPLIES & SERVICES,SERVICES,REVENUE
Walsall Council,http://opendatacommunities.org/id/metropolitan-district-council/walsall ,WC160-65,31.03.24,CHILDRENS,5 CARE SERVICES LTD,11/03/2024,"2,196.00",6220-Professional Fees & Services,SUPPLIES & SERVICES,SERVICES,REVENUE
Walsall Council,http://opendatacommunities.org/id/metropolitan-district-council/walsall ,WC160-66,31.03.24,CHILDRENS,5 CARE SERVICES LTD,20/03/2024,666.00,6220-Professional Fees & Services,SUPPLIES & SERVICES,SERVICES,REVENUE
Walsall Council,http://opendatacommunities.org/id/metropolitan-district-council/walsall ,WC160-67,31.03.24,CHILDRENS,5 CARE SERVICES LTD,20/03/2024,"2,304.00",6220-Professional Fees & Services,SUPPLIES & SERVICES,SERVICES,REVENUE
Walsall Council,http://opendatacommunities.org/id/metropolitan-district-council/walsall ,WC160-68,31.03.24,ADULT SOCIAL CARE,5 CARE SERVICES LTD,06/03/2024,252.00,6554-Professional Services-Priv Contractor & Other Agencies,THIRD PARTY PAYMENTS,PRIVATE CONTRACTOR,REVENUE
Walsall Council,http://opendatacommunities.org/id/metropolitan-district-council/walsall ,WC160-69,31.03.24,ADULT SOCIAL CARE,5 CARE SERVICES LTD,06/03/2024,"1,224.00",6554-Professional Services-Priv Contractor & Other Agencies,THIRD PARTY PAYMENTS,PRIVATE CONTRACTOR,REVENUE
Walsall Council,http://opendatacommunities.org/id/metropolitan-district-council/walsall ,WC160-70,31.03.24,ADULT SOCIAL CARE,5 CARE SERVICES LTD,06/03/2024,"-1,377.00",6554-Professional Services-Priv Contractor & Other Agencies,THIRD PARTY PAYMENTS,PRIVATE CONTRACTOR,REVENUE
Walsall Council,http://opendatacommunities.org/id/metropolitan-district-council/walsall ,WC160-71,31.03.24,ADULT SOCIAL CARE,5 CARE SERVICES LTD,06/03/2024,"2,988.00",6554-Professional Services-Priv Contractor & Other Agencies,THIRD PARTY PAYMENTS,PRIVATE CONTRACTOR,REVENUE
Walsall Council,http://opendatacommunities.org/id/metropolitan-district-council/walsall ,WC160-72,31.03.24,ADULT SOCIAL CARE,5 CARE SERVICES LTD,06/03/2024,"1,417.50",6554-Professional Services-Priv Contractor & Other Agencies,THIRD PARTY PAYMENTS,PRIVATE CONTRACTOR,REVENUE
Walsall Council,http://opendatacommunities.org/id/metropolitan-district-council/walsall ,WC160-73,31.03.24,ADULT SOCIAL CARE,5 CARE SERVICES LTD,06/03/2024,522.00,6554-Professional Services-Priv Contractor & Other Agencies,THIRD PARTY PAYMENTS,PRIVATE CONTRACTOR,REVENUE
Walsall Council,http://opendatacommunities.org/id/metropolitan-district-council/walsall ,WC160-74,31.03.24,ADULT SOCIAL CARE,5 CARE SERVICES LTD,06/03/2024,558.00,6554-Professional Services-Priv Contractor & Other Agencies,THIRD PARTY PAYMENTS,PRIVATE CONTRACTOR,REVENUE
Walsall Council,http://opendatacommunities.org/id/metropolitan-district-council/walsall ,WC160-75,31.03.24,ADULT SOCIAL CARE,5 CARE SERVICES LTD,06/03/2024,432.00,6554-Professional Services-Priv Contractor & Other Agencies,THIRD PARTY PAYMENTS,PRIVATE CONTRACTOR,REVENUE
Walsall Council,http://opendatacommunities.org/id/metropolitan-district-council/walsall ,WC160-76,31.03.24,ADULT SOCIAL CARE,5 CARE SERVICES LTD,06/03/2024,"1,080.00",6554-Professional Services-Priv Contractor & Other Agencies,THIRD PARTY PAYMENTS,PRIVATE CONTRACTOR,REVENUE
Walsall Council,http://opendatacommunities.org/id/metropolitan-district-council/walsall ,WC160-77,31.03.24,ADULT SOCIAL CARE,5 CARE SERVICES LTD,11/03/2024,774.00,6541-Domiciliary Care,THIRD PARTY PAYMENTS,PRIVATE CONTRACTOR,REVENUE
Walsall Council,http://opendatacommunities.org/id/metropolitan-district-council/walsall ,WC160-78,31.03.24,ADULT SOCIAL CARE,5 CARE SERVICES LTD,11/03/2024,283.50,6541-Domiciliary Care,THIRD PARTY PAYMENTS,PRIVATE CONTRACTOR,REVENUE
Walsall Council,http://opendatacommunities.org/id/metropolitan-district-council/walsall ,WC160-79,31.03.24,ADULT SOCIAL CARE,5 CARE SERVICES LTD,11/03/2024,648.00,6541-Domiciliary Care,THIRD PARTY PAYMENTS,PRIVATE CONTRACTOR,REVENUE
Walsall Council,http://opendatacommunities.org/id/metropolitan-district-council/walsall ,WC160-80,31.03.24,ADULT SOCIAL CARE,5 CARE SERVICES LTD,11/03/2024,567.00,6541-Domiciliary Care,THIRD PARTY PAYMENTS,PRIVATE CONTRACTOR,REVENUE
Walsall Council,http://opendatacommunities.org/id/metropolitan-district-council/walsall ,WC160-81,31.03.24,ADULT SOCIAL CARE,5 CARE SERVICES LTD,11/03/2024,504.00,6541-Domiciliary Care,THIRD PARTY PAYMENTS,PRIVATE CONTRACTOR,REVENUE
Walsall Council,http://opendatacommunities.org/id/metropolitan-district-council/walsall ,WC160-82,31.03.24,ADULT SOCIAL CARE,5 CARE SERVICES LTD,11/03/2024,702.00,6541-Domiciliary Care,THIRD PARTY PAYMENTS,PRIVATE CONTRACTOR,REVENUE
Walsall Council,http://opendatacommunities.org/id/metropolitan-district-council/walsall ,WC160-83,31.03.24,ADULT SOCIAL CARE,5 CARE SERVICES LTD,11/03/2024,"1,386.00",6541-Domiciliary Care,THIRD PARTY PAYMENTS,PRIVATE CONTRACTOR,REVENUE
Walsall Council,http://opendatacommunities.org/id/metropolitan-district-council/walsall ,WC160-84,31.03.24,ADULT SOCIAL CARE,5 CARE SERVICES LTD,11/03/2024,324.00,6541-Domiciliary Care,THIRD PARTY PAYMENTS,PRIVATE CONTRACTOR,REVENUE
Walsall Council,http://opendatacommunities.org/id/metropolitan-district-council/walsall ,WC160-85,31.03.24,ADULT SOCIAL CARE,5 CARE SERVICES LTD,11/03/2024,756.00,6541-Domiciliary Care,THIRD PARTY PAYMENTS,PRIVATE CONTRACTOR,REVENUE
Walsall Council,http://opendatacommunities.org/id/metropolitan-district-council/walsall ,WC160-86,31.03.24,ADULT SOCIAL CARE,5 CARE SERVICES LTD,11/03/2024,283.50,6541-Domiciliary Care,THIRD PARTY PAYMENTS,PRIVATE CONTRACTOR,REVENUE
Walsall Council,http://opendatacommunities.org/id/metropolitan-district-council/walsall ,WC160-87,31.03.24,ADULT SOCIAL CARE,5 CARE SERVICES LTD,11/03/2024,819.00,6541-Domiciliary Care,THIRD PARTY PAYMENTS,PRIVATE CONTRACTOR,REVENUE
Walsall Council,http://opendatacommunities.org/id/metropolitan-district-council/walsall ,WC160-88,31.03.24,ADULT SOCIAL CARE,5 CARE SERVICES LTD,11/03/2024,360.00,6541-Domiciliary Care,THIRD PARTY PAYMENTS,PRIVATE CONTRACTOR,REVENUE
Walsall Council,http://opendatacommunities.org/id/metropolitan-district-council/walsall ,WC160-89,31.03.24,ADULT SOCIAL CARE,5 CARE SERVICES LTD,11/03/2024,"-3,744.00",6541-Domiciliary Care,THIRD PARTY PAYMENTS,PRIVATE CONTRACTOR,REVENUE
Walsall Council,http://opendatacommunities.org/id/metropolitan-district-council/walsall ,WC160-90,31.03.24,ADULT SOCIAL CARE,5 CARE SERVICES LTD,11/03/2024,567.00,6541-Domiciliary Care,THIRD PARTY PAYMENTS,PRIVATE CONTRACTOR,REVENUE
Walsall Council,http://opendatacommunities.org/id/metropolitan-district-council/walsall ,WC160-91,31.03.24,ADULT SOCIAL CARE,5 CARE SERVICES LTD,11/03/2024,256.50,6541-Domiciliary Care,THIRD PARTY PAYMENTS,PRIVATE CONTRACTOR,REVENUE
Walsall Council,http://opendatacommunities.org/id/metropolitan-district-council/walsall ,WC160-92,31.03.24,ADULT SOCIAL CARE,5 CARE SERVICES LTD,11/03/2024,567.00,6541-Domiciliary Care,THIRD PARTY PAYMENTS,PRIVATE CONTRACTOR,REVENUE
Walsall Council,http://opendatacommunities.org/id/metropolitan-district-council/walsall ,WC160-93,31.03.24,ADULT SOCIAL CARE,5 CARE SERVICES LTD,11/03/2024,756.00,6541-Domiciliary Care,THIRD PARTY PAYMENTS,PRIVATE CONTRACTOR,REVENUE
Walsall Council,http://opendatacommunities.org/id/metropolitan-district-council/walsall ,WC160-94,31.03.24,ADULT SOCIAL CARE,5 CARE SERVICES LTD,11/03/2024,630.00,6541-Domiciliary Care,THIRD PARTY PAYMENTS,PRIVATE CONTRACTOR,REVENUE
Walsall Council,http://opendatacommunities.org/id/metropolitan-district-council/walsall ,WC160-95,31.03.24,ADULT SOCIAL CARE,5 CARE SERVICES LTD,11/03/2024,567.00,6541-Domiciliary Care,THIRD PARTY PAYMENTS,PRIVATE CONTRACTOR,REVENUE
Walsall Council,http://opendatacommunities.org/id/metropolitan-district-council/walsall ,WC160-96,31.03.24,ADULT SOCIAL CARE,5 CARE SERVICES LTD,11/03/2024,630.00,6541-Domiciliary Care,THIRD PARTY PAYMENTS,PRIVATE CONTRACTOR,REVENUE
Walsall Council,http://opendatacommunities.org/id/metropolitan-district-council/walsall ,WC160-97,31.03.24,ADULT SOCIAL CARE,5 CARE SERVICES LTD,11/03/2024,567.00,6541-Domiciliary Care,THIRD PARTY PAYMENTS,PRIVATE CONTRACTOR,REVENUE
Walsall Council,http://opendatacommunities.org/id/metropolitan-district-council/walsall ,WC160-98,31.03.24,ADULT SOCIAL CARE,5 CARE SERVICES LTD,11/03/2024,567.00,6541-Domiciliary Care,THIRD PARTY PAYMENTS,PRIVATE CONTRACTOR,REVENUE
Walsall Council,http://opendatacommunities.org/id/metropolitan-district-council/walsall ,WC160-99,31.03.24,ADULT SOCIAL CARE,5 CARE SERVICES LTD,11/03/2024,567.00,6541-Domiciliary Care,THIRD PARTY PAYMENTS,PRIVATE CONTRACTOR,REVENUE
Walsall Council,http://opendatacommunities.org/id/metropolitan-district-council/walsall ,WC160-100,31.03.24,ADULT SOCIAL CARE,5 CARE SERVICES LTD,11/03/2024,-450.00,6541-Domiciliary Care,THIRD PARTY PAYMENTS,PRIVATE CONTRACTOR,REVENUE
Walsall Council,http://opendatacommunities.org/id/metropolitan-district-council/walsall ,WC160-101,31.03.24,ADULT SOCIAL CARE,5 CARE SERVICES LTD,11/03/2024,630.00,6541-Domiciliary Care,THIRD PARTY PAYMENTS,PRIVATE CONTRACTOR,REVENUE
Walsall Council,http://opendatacommunities.org/id/metropolitan-district-council/walsall ,WC160-102,31.03.24,ADULT SOCIAL CARE,5 CARE SERVICES LTD,11/03/2024,252.00,6541-Domiciliary Care,THIRD PARTY PAYMENTS,PRIVATE CONTRACTOR,REVENUE
Walsall Council,http://opendatacommunities.org/id/metropolitan-district-council/walsall ,WC160-103,31.03.24,ADULT SOCIAL CARE,5 CARE SERVICES LTD,11/03/2024,648.00,6541-Domiciliary Care,THIRD PARTY PAYMENTS,PRIVATE CONTRACTOR,REVENUE
Walsall Council,http://opendatacommunities.org/id/metropolitan-district-council/walsall ,WC160-104,31.03.24,ADULT SOCIAL CARE,5 CARE SERVICES LTD,11/03/2024,-450.00,6541-Domiciliary Care,THIRD PARTY PAYMENTS,PRIVATE CONTRACTOR,REVENUE
Walsall Council,http://opendatacommunities.org/id/metropolitan-district-council/walsall ,WC160-105,31.03.24,ADULT SOCIAL CARE,5 CARE SERVICES LTD,11/03/2024,"1,197.00",6541-Domiciliary Care,THIRD PARTY PAYMENTS,PRIVATE CONTRACTOR,REVENUE
Walsall Council,http://opendatacommunities.org/id/metropolitan-district-council/walsall ,WC160-106,31.03.24,ADULT SOCIAL CARE,5 CARE SERVICES LTD,11/03/2024,567.00,6541-Domiciliary Care,THIRD PARTY PAYMENTS,PRIVATE CONTRACTOR,REVENUE
Walsall Council,http://opendatacommunities.org/id/metropolitan-district-council/walsall ,WC160-107,31.03.24,ADULT SOCIAL CARE,5 CARE SERVICES LTD,11/03/2024,486.00,6541-Domiciliary Care,THIRD PARTY PAYMENTS,PRIVATE CONTRACTOR,REVENUE
Walsall Council,http://opendatacommunities.org/id/metropolitan-district-council/walsall ,WC160-108,31.03.24,ADULT SOCIAL CARE,5 CARE SERVICES LTD,11/03/2024,294.00,6541-Domiciliary Care,THIRD PARTY PAYMENTS,PRIVATE CONTRACTOR,REVENUE
Walsall Council,http://opendatacommunities.org/id/metropolitan-district-council/walsall ,WC160-109,31.03.24,ADULT SOCIAL CARE,5 CARE SERVICES LTD,11/03/2024,567.00,6541-Domiciliary Care,THIRD PARTY PAYMENTS,PRIVATE CONTRACTOR,REVENUE
Walsall Council,http://opendatacommunities.org/id/metropolitan-district-council/walsall ,WC160-110,31.03.24,ADULT SOCIAL CARE,5 CARE SERVICES LTD,11/03/2024,328.50,6541-Domiciliary Care,THIRD PARTY PAYMENTS,PRIVATE CONTRACTOR,REVENUE
Walsall Council,http://opendatacommunities.org/id/metropolitan-district-council/walsall ,WC160-111,31.03.24,ADULT SOCIAL CARE,5 CARE SERVICES LTD,11/03/2024,"4,752.00",6541-Domiciliary Care,THIRD PARTY PAYMENTS,PRIVATE CONTRACTOR,REVENUE
Walsall Council,http://opendatacommunities.org/id/metropolitan-district-council/walsall ,WC160-112,31.03.24,ADULT SOCIAL CARE,5 CARE SERVICES LTD,11/03/2024,756.00,6541-Domiciliary Care,THIRD PARTY PAYMENTS,PRIVATE CONTRACTOR,REVENUE
Walsall Council,http://opendatacommunities.org/id/metropolitan-district-council/walsall ,WC160-113,31.03.24,ADULT SOCIAL CARE,5 CARE SERVICES LTD,11/03/2024,630.00,6541-Domiciliary Care,THIRD PARTY PAYMENTS,PRIVATE CONTRACTOR,REVENUE
Walsall Council,http://opendatacommunities.org/id/metropolitan-district-council/walsall ,WC160-114,31.03.24,ADULT SOCIAL CARE,5 CARE SERVICES LTD,11/03/2024,360.00,6541-Domiciliary Care,THIRD PARTY PAYMENTS,PRIVATE CONTRACTOR,REVENUE
Walsall Council,http://opendatacommunities.org/id/metropolitan-district-council/walsall ,WC160-115,31.03.24,ADULT SOCIAL CARE,5 CARE SERVICES LTD,11/03/2024,283.50,6541-Domiciliary Care,THIRD PARTY PAYMENTS,PRIVATE CONTRACTOR,REVENUE
Walsall Council,http://opendatacommunities.org/id/metropolitan-district-council/walsall ,WC160-116,31.03.24,ADULT SOCIAL CARE,5 CARE SERVICES LTD,11/03/2024,"1,296.00",6541-Domiciliary Care,THIRD PARTY PAYMENTS,PRIVATE CONTRACTOR,REVENUE
Walsall Council,http://opendatacommunities.org/id/metropolitan-district-council/walsall ,WC160-117,31.03.24,ADULT SOCIAL CARE,5 CARE SERVICES LTD,11/03/2024,567.00,6541-Domiciliary Care,THIRD PARTY PAYMENTS,PRIVATE CONTRACTOR,REVENUE
Walsall Council,http://opendatacommunities.org/id/metropolitan-district-council/walsall ,WC160-118,31.03.24,ADULT SOCIAL CARE,5 CARE SERVICES LTD,11/03/2024,567.00,6541-Domiciliary Care,THIRD PARTY PAYMENTS,PRIVATE CONTRACTOR,REVENUE
Walsall Council,http://opendatacommunities.org/id/metropolitan-district-council/walsall ,WC160-119,31.03.24,ADULT SOCIAL CARE,5 CARE SERVICES LTD,11/03/2024,774.00,6541-Domiciliary Care,THIRD PARTY PAYMENTS,PRIVATE CONTRACTOR,REVENUE
Walsall Council,http://opendatacommunities.org/id/metropolitan-district-council/walsall ,WC160-120,31.03.24,ADULT SOCIAL CARE,5 CARE SERVICES LTD,11/03/2024,567.00,6541-Domiciliary Care,THIRD PARTY PAYMENTS,PRIVATE CONTRACTOR,REVENUE
Walsall Council,http://opendatacommunities.org/id/metropolitan-district-council/walsall ,WC160-121,31.03.24,ADULT SOCIAL CARE,5 CARE SERVICES LTD,11/03/2024,504.00,6541-Domiciliary Care,THIRD PARTY PAYMENTS,PRIVATE CONTRACTOR,REVENUE
Walsall Council,http://opendatacommunities.org/id/metropolitan-district-council/walsall ,WC160-122,31.03.24,ADULT SOCIAL CARE,5 CARE SERVICES LTD,11/03/2024,630.00,6541-Domiciliary Care,THIRD PARTY PAYMENTS,PRIVATE CONTRACTOR,REVENUE
Walsall Council,http://opendatacommunities.org/id/metropolitan-district-council/walsall ,WC160-123,31.03.24,ADULT SOCIAL CARE,5 CARE SERVICES LTD,11/03/2024,"1,386.00",6541-Domiciliary Care,THIRD PARTY PAYMENTS,PRIVATE CONTRACTOR,REVENUE
Walsall Council,http://opendatacommunities.org/id/metropolitan-district-council/walsall ,WC160-124,31.03.24,ADULT SOCIAL CARE,5 CARE SERVICES LTD,11/03/2024,324.00,6541-Domiciliary Care,THIRD PARTY PAYMENTS,PRIVATE CONTRACTOR,REVENUE
Walsall Council,http://opendatacommunities.org/id/metropolitan-district-council/walsall ,WC160-125,31.03.24,ADULT SOCIAL CARE,5 CARE SERVICES LTD,11/03/2024,756.00,6541-Domiciliary Care,THIRD PARTY PAYMENTS,PRIVATE CONTRACTOR,REVENUE
Walsall Council,http://opendatacommunities.org/id/metropolitan-district-council/walsall ,WC160-126,31.03.24,ADULT SOCIAL CARE,5 CARE SERVICES LTD,11/03/2024,283.50,6541-Domiciliary Care,THIRD PARTY PAYMENTS,PRIVATE CONTRACTOR,REVENUE
Walsall Council,http://opendatacommunities.org/id/metropolitan-district-council/walsall ,WC160-127,31.03.24,ADULT SOCIAL CARE,5 CARE SERVICES LTD,11/03/2024,819.00,6541-Domiciliary Care,THIRD PARTY PAYMENTS,PRIVATE CONTRACTOR,REVENUE
Walsall Council,http://opendatacommunities.org/id/metropolitan-district-council/walsall ,WC160-128,31.03.24,ADULT SOCIAL CARE,5 CARE SERVICES LTD,11/03/2024,567.00,6541-Domiciliary Care,THIRD PARTY PAYMENTS,PRIVATE CONTRACTOR,REVENUE
Walsall Council,http://opendatacommunities.org/id/metropolitan-district-council/walsall ,WC160-129,31.03.24,ADULT SOCIAL CARE,5 CARE SERVICES LTD,11/03/2024,567.00,6541-Domiciliary Care,THIRD PARTY PAYMENTS,PRIVATE CONTRACTOR,REVENUE
Walsall Council,http://opendatacommunities.org/id/metropolitan-district-council/walsall ,WC160-130,31.03.24,ADULT SOCIAL CARE,5 CARE SERVICES LTD,11/03/2024,567.00,6541-Domiciliary Care,THIRD PARTY PAYMENTS,PRIVATE CONTRACTOR,REVENUE
Walsall Council,http://opendatacommunities.org/id/metropolitan-district-council/walsall ,WC160-131,31.03.24,ADULT SOCIAL CARE,5 CARE SERVICES LTD,11/03/2024,486.00,6541-Domiciliary Care,THIRD PARTY PAYMENTS,PRIVATE CONTRACTOR,REVENUE
Walsall Council,http://opendatacommunities.org/id/metropolitan-district-council/walsall ,WC160-132,31.03.24,ADULT SOCIAL CARE,5 CARE SERVICES LTD,11/03/2024,294.00,6541-Domiciliary Care,THIRD PARTY PAYMENTS,PRIVATE CONTRACTOR,REVENUE
Walsall Council,http://opendatacommunities.org/id/metropolitan-district-council/walsall ,WC160-133,31.03.24,ADULT SOCIAL CARE,5 CARE SERVICES LTD,11/03/2024,567.00,6541-Domiciliary Care,THIRD PARTY PAYMENTS,PRIVATE CONTRACTOR,REVENUE
Walsall Council,http://opendatacommunities.org/id/metropolitan-district-council/walsall ,WC160-134,31.03.24,ADULT SOCIAL CARE,5 CARE SERVICES LTD,11/03/2024,630.00,6541-Domiciliary Care,THIRD PARTY PAYMENTS,PRIVATE CONTRACTOR,REVENUE
Walsall Council,http://opendatacommunities.org/id/metropolitan-district-council/walsall ,WC160-135,31.03.24,ADULT SOCIAL CARE,5 CARE SERVICES LTD,11/03/2024,567.00,6541-Domiciliary Care,THIRD PARTY PAYMENTS,PRIVATE CONTRACTOR,REVENUE
Walsall Council,http://opendatacommunities.org/id/metropolitan-district-council/walsall ,WC160-136,31.03.24,ADULT SOCIAL CARE,5 CARE SERVICES LTD,11/03/2024,882.00,6541-Domiciliary Care,THIRD PARTY PAYMENTS,PRIVATE CONTRACTOR,REVENUE
Walsall Council,http://opendatacommunities.org/id/metropolitan-district-council/walsall ,WC160-137,31.03.24,ADULT SOCIAL CARE,5 CARE SERVICES LTD,11/03/2024,360.00,6541-Domiciliary Care,THIRD PARTY PAYMENTS,PRIVATE CONTRACTOR,REVENUE
Walsall Council,http://opendatacommunities.org/id/metropolitan-district-council/walsall ,WC160-138,31.03.24,ADULT SOCIAL CARE,5 CARE SERVICES LTD,11/03/2024,706.50,6541-Domiciliary Care,THIRD PARTY PAYMENTS,PRIVATE CONTRACTOR,REVENUE
Walsall Council,http://opendatacommunities.org/id/metropolitan-district-council/walsall ,WC160-139,31.03.24,ADULT SOCIAL CARE,5 CARE SERVICES LTD,11/03/2024,378.00,6541-Domiciliary Care,THIRD PARTY PAYMENTS,PRIVATE CONTRACTOR,REVENUE
Walsall Council,http://opendatacommunities.org/id/metropolitan-district-council/walsall ,WC160-140,31.03.24,ADULT SOCIAL CARE,5 CARE SERVICES LTD,11/03/2024,567.00,6541-Domiciliary Care,THIRD PARTY PAYMENTS,PRIVATE CONTRACTOR,REVENUE
Walsall Council,http://opendatacommunities.org/id/metropolitan-district-council/walsall ,WC160-141,31.03.24,ADULT SOCIAL CARE,5 CARE SERVICES LTD,11/03/2024,256.50,6541-Domiciliary Care,THIRD PARTY PAYMENTS,PRIVATE CONTRACTOR,REVENUE
Walsall Council,http://opendatacommunities.org/id/metropolitan-district-council/walsall ,WC160-142,31.03.24,ADULT SOCIAL CARE,5 CARE SERVICES LTD,11/03/2024,630.00,6541-Domiciliary Care,THIRD PARTY PAYMENTS,PRIVATE CONTRACTOR,REVENUE
Walsall Council,http://opendatacommunities.org/id/metropolitan-district-council/walsall ,WC160-143,31.03.24,ADULT SOCIAL CARE,5 CARE SERVICES LTD,11/03/2024,252.00,6541-Domiciliary Care,THIRD PARTY PAYMENTS,PRIVATE CONTRACTOR,REVENUE
Walsall Council,http://opendatacommunities.org/id/metropolitan-district-council/walsall ,WC160-144,31.03.24,ADULT SOCIAL CARE,5 CARE SERVICES LTD,11/03/2024,378.00,6541-Domiciliary Care,THIRD PARTY PAYMENTS,PRIVATE CONTRACTOR,REVENUE
Walsall Council,http://opendatacommunities.org/id/metropolitan-district-council/walsall ,WC160-145,31.03.24,ADULT SOCIAL CARE,5 CARE SERVICES LTD,25/03/2024,774.00,6541-Domiciliary Care,THIRD PARTY PAYMENTS,PRIVATE CONTRACTOR,REVENUE
Walsall Council,http://opendatacommunities.org/id/metropolitan-district-council/walsall ,WC160-146,31.03.24,ADULT SOCIAL CARE,5 CARE SERVICES LTD,25/03/2024,283.50,6541-Domiciliary Care,THIRD PARTY PAYMENTS,PRIVATE CONTRACTOR,REVENUE
Walsall Council,http://opendatacommunities.org/id/metropolitan-district-council/walsall ,WC160-147,31.03.24,ADULT SOCIAL CARE,5 CARE SERVICES LTD,25/03/2024,648.00,6541-Domiciliary Care,THIRD PARTY PAYMENTS,PRIVATE CONTRACTOR,REVENUE
Walsall Council,http://opendatacommunities.org/id/metropolitan-district-council/walsall ,WC160-148,31.03.24,ADULT SOCIAL CARE,5 CARE SERVICES LTD,25/03/2024,630.00,6541-Domiciliary Care,THIRD PARTY PAYMENTS,PRIVATE CONTRACTOR,REVENUE
Walsall Council,http://opendatacommunities.org/id/metropolitan-district-council/walsall ,WC160-149,31.03.24,ADULT SOCIAL CARE,5 CARE SERVICES LTD,25/03/2024,"1,386.00",6541-Domiciliary Care,THIRD PARTY PAYMENTS,PRIVATE CONTRACTOR,REVENUE
Walsall Council,http://opendatacommunities.org/id/metropolitan-district-council/walsall ,WC160-150,31.03.24,ADULT SOCIAL CARE,5 CARE SERVICES LTD,25/03/2024,324.00,6541-Domiciliary Care,THIRD PARTY PAYMENTS,PRIVATE CONTRACTOR,REVENUE
Walsall Council,http://opendatacommunities.org/id/metropolitan-district-council/walsall ,WC160-151,31.03.24,ADULT SOCIAL CARE,5 CARE SERVICES LTD,25/03/2024,756.00,6541-Domiciliary Care,THIRD PARTY PAYMENTS,PRIVATE CONTRACTOR,REVENUE
Walsall Council,http://opendatacommunities.org/id/metropolitan-district-council/walsall ,WC160-152,31.03.24,ADULT SOCIAL CARE,5 CARE SERVICES LTD,25/03/2024,283.50,6541-Domiciliary Care,THIRD PARTY PAYMENTS,PRIVATE CONTRACTOR,REVENUE
Walsall Council,http://opendatacommunities.org/id/metropolitan-district-council/walsall ,WC160-153,31.03.24,ADULT SOCIAL CARE,5 CARE SERVICES LTD,25/03/2024,819.00,6541-Domiciliary Care,THIRD PARTY PAYMENTS,PRIVATE CONTRACTOR,REVENUE
Walsall Council,http://opendatacommunities.org/id/metropolitan-district-council/walsall ,WC160-154,31.03.24,ADULT SOCIAL CARE,5 CARE SERVICES LTD,25/03/2024,567.00,6541-Domiciliary Care,THIRD PARTY PAYMENTS,PRIVATE CONTRACTOR,REVENUE
Walsall Council,http://opendatacommunities.org/id/metropolitan-district-council/walsall ,WC160-155,31.03.24,ADULT SOCIAL CARE,5 CARE SERVICES LTD,25/03/2024,504.00,6541-Domiciliary Care,THIRD PARTY PAYMENTS,PRIVATE CONTRACTOR,REVENUE
Walsall Council,http://opendatacommunities.org/id/metropolitan-district-council/walsall ,WC160-156,31.03.24,ADULT SOCIAL CARE,5 CARE SERVICES LTD,25/03/2024,756.00,6541-Domiciliary Care,THIRD PARTY PAYMENTS,PRIVATE CONTRACTOR,REVENUE
Walsall Council,http://opendatacommunities.org/id/metropolitan-district-council/walsall ,WC160-157,31.03.24,ADULT SOCIAL CARE,5 CARE SERVICES LTD,25/03/2024,630.00,6541-Domiciliary Care,THIRD PARTY PAYMENTS,PRIVATE CONTRACTOR,REVENUE
Walsall Council,http://opendatacommunities.org/id/metropolitan-district-council/walsall ,WC160-158,31.03.24,ADULT SOCIAL CARE,5 CARE SERVICES LTD,25/03/2024,567.00,6541-Domiciliary Care,THIRD PARTY PAYMENTS,PRIVATE CONTRACTOR,REVENUE
Walsall Council,http://opendatacommunities.org/id/metropolitan-district-council/walsall ,WC160-159,31.03.24,ADULT SOCIAL CARE,5 CARE SERVICES LTD,25/03/2024,-567.00,6541-Domiciliary Care,THIRD PARTY PAYMENTS,PRIVATE CONTRACTOR,REVENUE
Walsall Council,http://opendatacommunities.org/id/metropolitan-district-council/walsall ,WC160-160,31.03.24,ADULT SOCIAL CARE,5 CARE SERVICES LTD,25/03/2024,256.50,6541-Domiciliary Care,THIRD PARTY PAYMENTS,PRIVATE CONTRACTOR,REVENUE
Walsall Council,http://opendatacommunities.org/id/metropolitan-district-council/walsall ,WC160-161,31.03.24,ADULT SOCIAL CARE,5 CARE SERVICES LTD,25/03/2024,567.00,6541-Domiciliary Care,THIRD PARTY PAYMENTS,PRIVATE CONTRACTOR,REVENUE
Walsall Council,http://opendatacommunities.org/id/metropolitan-district-council/walsall ,WC160-162,31.03.24,ADULT SOCIAL CARE,5 CARE SERVICES LTD,25/03/2024,567.00,6541-Domiciliary Care,THIRD PARTY PAYMENTS,PRIVATE CONTRACTOR,REVENUE
Walsall Council,http://opendatacommunities.org/id/metropolitan-district-council/walsall ,WC160-163,31.03.24,ADULT SOCIAL CARE,5 CARE SERVICES LTD,25/03/2024,567.00,6541-Domiciliary Care,THIRD PARTY PAYMENTS,PRIVATE CONTRACTOR,REVENUE
Walsall Council,http://opendatacommunities.org/id/metropolitan-district-council/walsall ,WC160-164,31.03.24,ADULT SOCIAL CARE,5 CARE SERVICES LTD,25/03/2024,360.00,6541-Domiciliary Care,THIRD PARTY PAYMENTS,PRIVATE CONTRACTOR,REVENUE
Walsall Council,http://opendatacommunities.org/id/metropolitan-district-council/walsall ,WC160-165,31.03.24,ADULT SOCIAL CARE,5 CARE SERVICES LTD,25/03/2024,"-1,471.50",6541-Domiciliary Care,THIRD PARTY PAYMENTS,PRIVATE CONTRACTOR,REVENUE
Walsall Council,http://opendatacommunities.org/id/metropolitan-district-council/walsall ,WC160-166,31.03.24,ADULT SOCIAL CARE,5 CARE SERVICES LTD,25/03/2024,567.00,6541-Domiciliary Care,THIRD PARTY PAYMENTS,PRIVATE CONTRACTOR,REVENUE
Walsall Council,http://opendatacommunities.org/id/metropolitan-district-council/walsall ,WC160-167,31.03.24,ADULT SOCIAL CARE,5 CARE SERVICES LTD,25/03/2024,630.00,6541-Domiciliary Care,THIRD PARTY PAYMENTS,PRIVATE CONTRACTOR,REVENUE
Walsall Council,http://opendatacommunities.org/id/metropolitan-district-council/walsall ,WC160-168,31.03.24,ADULT SOCIAL CARE,5 CARE SERVICES LTD,25/03/2024,567.00,6541-Domiciliary Care,THIRD PARTY PAYMENTS,PRIVATE CONTRACTOR,REVENUE
Walsall Council,http://opendatacommunities.org/id/metropolitan-district-council/walsall ,WC160-169,31.03.24,ADULT SOCIAL CARE,5 CARE SERVICES LTD,25/03/2024,-490.50,6541-Domiciliary Care,THIRD PARTY PAYMENTS,PRIVATE CONTRACTOR,REVENUE
Walsall Council,http://opendatacommunities.org/id/metropolitan-district-council/walsall ,WC160-170,31.03.24,ADULT SOCIAL CARE,5 CARE SERVICES LTD,25/03/2024,486.00,6541-Domiciliary Care,THIRD PARTY PAYMENTS,PRIVATE CONTRACTOR,REVENUE
Walsall Council,http://opendatacommunities.org/id/metropolitan-district-council/walsall ,WC160-171,31.03.24,ADULT SOCIAL CARE,5 CARE SERVICES LTD,25/03/2024,294.00,6541-Domiciliary Care,THIRD PARTY PAYMENTS,PRIVATE CONTRACTOR,REVENUE
Walsall Council,http://opendatacommunities.org/id/metropolitan-district-council/walsall ,WC160-172,31.03.24,ADULT SOCIAL CARE,5 CARE SERVICES LTD,25/03/2024,567.00,6541-Domiciliary Care,THIRD PARTY PAYMENTS,PRIVATE CONTRACTOR,REVENUE
Walsall Council,http://opendatacommunities.org/id/metropolitan-district-council/walsall ,WC160-173,31.03.24,ADULT SOCIAL CARE,5 CARE SERVICES LTD,25/03/2024,630.00,6541-Domiciliary Care,THIRD PARTY PAYMENTS,PRIVATE CONTRACTOR,REVENUE
Walsall Council,http://opendatacommunities.org/id/metropolitan-district-council/walsall ,WC160-174,31.03.24,ADULT SOCIAL CARE,5 CARE SERVICES LTD,25/03/2024,252.00,6541-Domiciliary Care,THIRD PARTY PAYMENTS,PRIVATE CONTRACTOR,REVENUE
Walsall Council,http://opendatacommunities.org/id/metropolitan-district-council/walsall ,WC160-175,31.03.24,ADULT SOCIAL CARE,5 CARE SERVICES LTD,25/03/2024,378.00,6541-Domiciliary Care,THIRD PARTY PAYMENTS,PRIVATE CONTRACTOR,REVENUE
Walsall Council,http://opendatacommunities.org/id/metropolitan-district-council/walsall ,WC160-176,31.03.24,ADULT SOCIAL CARE,5 CARE SERVICES LTD,25/03/2024,"1,566.00",6541-Domiciliary Care,THIRD PARTY PAYMENTS,PRIVATE CONTRACTOR,REVENUE
Walsall Council,http://opendatacommunities.org/id/metropolitan-district-council/walsall ,WC160-177,31.03.24,ADULT SOCIAL CARE,5 CARE SERVICES LTD,25/03/2024,882.00,6541-Domiciliary Care,THIRD PARTY PAYMENTS,PRIVATE CONTRACTOR,REVENUE
Walsall Council,http://opendatacommunities.org/id/metropolitan-district-council/walsall ,WC160-178,31.03.24,ADULT SOCIAL CARE,5 CARE SERVICES LTD,25/03/2024,324.00,6541-Domiciliary Care,THIRD PARTY PAYMENTS,PRIVATE CONTRACTOR,REVENUE
Walsall Council,http://opendatacommunities.org/id/metropolitan-district-council/walsall ,WC160-179,31.03.24,ADULT SOCIAL CARE,5 CARE SERVICES LTD,25/03/2024,567.00,6541-Domiciliary Care,THIRD PARTY PAYMENTS,PRIVATE CONTRACTOR,REVENUE
Walsall Council,http://opendatacommunities.org/id/metropolitan-district-council/walsall ,WC160-180,31.03.24,ADULT SOCIAL CARE,5 CARE SERVICES LTD,25/03/2024,504.00,6541-Domiciliary Care,THIRD PARTY PAYMENTS,PRIVATE CONTRACTOR,REVENUE
Walsall Council,http://opendatacommunities.org/id/metropolitan-district-council/walsall ,WC160-181,31.03.24,ADULT SOCIAL CARE,5 CARE SERVICES LTD,25/03/2024,567.00,6541-Domiciliary Care,THIRD PARTY PAYMENTS,PRIVATE CONTRACTOR,REVENUE
Walsall Council,http://opendatacommunities.org/id/metropolitan-district-council/walsall ,WC160-182,31.03.24,ADULT SOCIAL CARE,5 CARE SERVICES LTD,25/03/2024,774.00,6541-Domiciliary Care,THIRD PARTY PAYMENTS,PRIVATE CONTRACTOR,REVENUE
Walsall Council,http://opendatacommunities.org/id/metropolitan-district-council/walsall ,WC160-183,31.03.24,ADULT SOCIAL CARE,5 CARE SERVICES LTD,25/03/2024,630.00,6541-Domiciliary Care,THIRD PARTY PAYMENTS,PRIVATE CONTRACTOR,REVENUE
Walsall Council,http://opendatacommunities.org/id/metropolitan-district-council/walsall ,WC160-184,31.03.24,ADULT SOCIAL CARE,5 CARE SERVICES LTD,25/03/2024,756.00,6541-Domiciliary Care,THIRD PARTY PAYMENTS,PRIVATE CONTRACTOR,REVENUE
Walsall Council,http://opendatacommunities.org/id/metropolitan-district-council/walsall ,WC160-185,31.03.24,ADULT SOCIAL CARE,5 CARE SERVICES LTD,25/03/2024,283.50,6541-Domiciliary Care,THIRD PARTY PAYMENTS,PRIVATE CONTRACTOR,REVENUE
Walsall Council,http://opendatacommunities.org/id/metropolitan-district-council/walsall ,WC160-186,31.03.24,ADULT SOCIAL CARE,5 CARE SERVICES LTD,25/03/2024,432.00,6541-Domiciliary Care,THIRD PARTY PAYMENTS,PRIVATE CONTRACTOR,REVENUE
Walsall Council,http://opendatacommunities.org/id/metropolitan-district-council/walsall ,WC160-187,31.03.24,ADULT SOCIAL CARE,5 CARE SERVICES LTD,25/03/2024,360.00,6541-Domiciliary Care,THIRD PARTY PAYMENTS,PRIVATE CONTRACTOR,REVENUE
Walsall Council,http://opendatacommunities.org/id/metropolitan-district-council/walsall ,WC160-188,31.03.24,ADULT SOCIAL CARE,5 CARE SERVICES LTD,25/03/2024,567.00,6541-Domiciliary Care,THIRD PARTY PAYMENTS,PRIVATE CONTRACTOR,REVENUE
Walsall Council,http://opendatacommunities.org/id/metropolitan-district-council/walsall ,WC160-189,31.03.24,ADULT SOCIAL CARE,5 CARE SERVICES LTD,25/03/2024,567.00,6541-Domiciliary Care,THIRD PARTY PAYMENTS,PRIVATE CONTRACTOR,REVENUE
Walsall Council,http://opendatacommunities.org/id/metropolitan-district-council/walsall ,WC160-190,31.03.24,ADULT SOCIAL CARE,5 CARE SERVICES LTD,25/03/2024,"1,386.00",6541-Domiciliary Care,THIRD PARTY PAYMENTS,PRIVATE CONTRACTOR,REVENUE
Walsall Council,http://opendatacommunities.org/id/metropolitan-district-council/walsall ,WC160-191,31.03.24,ADULT SOCIAL CARE,5 CARE SERVICES LTD,25/03/2024,324.00,6541-Domiciliary Care,THIRD PARTY PAYMENTS,PRIVATE CONTRACTOR,REVENUE
Walsall Council,http://opendatacommunities.org/id/metropolitan-district-council/walsall ,WC160-192,31.03.24,ADULT SOCIAL CARE,5 CARE SERVICES LTD,25/03/2024,756.00,6541-Domiciliary Care,THIRD PARTY PAYMENTS,PRIVATE CONTRACTOR,REVENUE
Walsall Council,http://opendatacommunities.org/id/metropolitan-district-council/walsall ,WC160-193,31.03.24,ADULT SOCIAL CARE,5 CARE SERVICES LTD,25/03/2024,283.50,6541-Domiciliary Care,THIRD PARTY PAYMENTS,PRIVATE CONTRACTOR,REVENUE
Walsall Council,http://opendatacommunities.org/id/metropolitan-district-council/walsall ,WC160-194,31.03.24,ADULT SOCIAL CARE,5 CARE SERVICES LTD,25/03/2024,819.00,6541-Domiciliary Care,THIRD PARTY PAYMENTS,PRIVATE CONTRACTOR,REVENUE
Walsall Council,http://opendatacommunities.org/id/metropolitan-district-council/walsall ,WC160-195,31.03.24,ADULT SOCIAL CARE,5 CARE SERVICES LTD,25/03/2024,567.00,6541-Domiciliary Care,THIRD PARTY PAYMENTS,PRIVATE CONTRACTOR,REVENUE
Walsall Council,http://opendatacommunities.org/id/metropolitan-district-council/walsall ,WC160-196,31.03.24,ADULT SOCIAL CARE,5 CARE SERVICES LTD,25/03/2024,504.00,6541-Domiciliary Care,THIRD PARTY PAYMENTS,PRIVATE CONTRACTOR,REVENUE
Walsall Council,http://opendatacommunities.org/id/metropolitan-district-council/walsall ,WC160-197,31.03.24,ADULT SOCIAL CARE,5 CARE SERVICES LTD,25/03/2024,567.00,6541-Domiciliary Care,THIRD PARTY PAYMENTS,PRIVATE CONTRACTOR,REVENUE
Walsall Council,http://opendatacommunities.org/id/metropolitan-district-council/walsall ,WC160-198,31.03.24,ADULT SOCIAL CARE,5 CARE SERVICES LTD,25/03/2024,256.50,6541-Domiciliary Care,THIRD PARTY PAYMENTS,PRIVATE CONTRACTOR,REVENUE
Walsall Council,http://opendatacommunities.org/id/metropolitan-district-council/walsall ,WC160-199,31.03.24,ADULT SOCIAL CARE,5 CARE SERVICES LTD,25/03/2024,567.00,6541-Domiciliary Care,THIRD PARTY PAYMENTS,PRIVATE CONTRACTOR,REVENUE
Walsall Council,http://opendatacommunities.org/id/metropolitan-district-council/walsall ,WC160-200,31.03.24,ADULT SOCIAL CARE,5 CARE SERVICES LTD,25/03/2024,567.00,6541-Domiciliary Care,THIRD PARTY PAYMENTS,PRIVATE CONTRACTOR,REVENUE
Walsall Council,http://opendatacommunities.org/id/metropolitan-district-council/walsall ,WC160-201,31.03.24,ADULT SOCIAL CARE,5 CARE SERVICES LTD,25/03/2024,630.00,6541-Domiciliary Care,THIRD PARTY PAYMENTS,PRIVATE CONTRACTOR,REVENUE
Walsall Council,http://opendatacommunities.org/id/metropolitan-district-council/walsall ,WC160-202,31.03.24,ADULT SOCIAL CARE,5 CARE SERVICES LTD,25/03/2024,567.00,6541-Domiciliary Care,THIRD PARTY PAYMENTS,PRIVATE CONTRACTOR,REVENUE
Walsall Council,http://opendatacommunities.org/id/metropolitan-district-council/walsall ,WC160-203,31.03.24,ADULT SOCIAL CARE,5 CARE SERVICES LTD,25/03/2024,630.00,6541-Domiciliary Care,THIRD PARTY PAYMENTS,PRIVATE CONTRACTOR,REVENUE
Walsall Council,http://opendatacommunities.org/id/metropolitan-district-council/walsall ,WC160-204,31.03.24,ADULT SOCIAL CARE,5 CARE SERVICES LTD,25/03/2024,567.00,6541-Domiciliary Care,THIRD PARTY PAYMENTS,PRIVATE CONTRACTOR,REVENUE
Walsall Council,http://opendatacommunities.org/id/metropolitan-district-council/walsall ,WC160-205,31.03.24,ADULT SOCIAL CARE,5 CARE SERVICES LTD,25/03/2024,252.00,6541-Domiciliary Care,THIRD PARTY PAYMENTS,PRIVATE CONTRACTOR,REVENUE
Walsall Council,http://opendatacommunities.org/id/metropolitan-district-council/walsall ,WC160-206,31.03.24,ADULT SOCIAL CARE,5 CARE SERVICES LTD,25/03/2024,378.00,6541-Domiciliary Care,THIRD PARTY PAYMENTS,PRIVATE CONTRACTOR,REVENUE
Walsall Council,http://opendatacommunities.org/id/metropolitan-district-council/walsall ,WC160-207,31.03.24,ADULT SOCIAL CARE,5 CARE SERVICES LTD,25/03/2024,472.50,6541-Domiciliary Care,THIRD PARTY PAYMENTS,PRIVATE CONTRACTOR,REVENUE
Walsall Council,http://opendatacommunities.org/id/metropolitan-district-council/walsall ,WC160-208,31.03.24,ADULT SOCIAL CARE,5 CARE SERVICES LTD,25/03/2024,378.00,6541-Domiciliary Care,THIRD PARTY PAYMENTS,PRIVATE CONTRACTOR,REVENUE
Walsall Council,http://opendatacommunities.org/id/metropolitan-district-council/walsall ,WC160-209,31.03.24,ADULT SOCIAL CARE,5 CARE SERVICES LTD,25/03/2024,283.50,6541-Domiciliary Care,THIRD PARTY PAYMENTS,PRIVATE CONTRACTOR,REVENUE
Walsall Council,http://opendatacommunities.org/id/metropolitan-district-council/walsall ,WC160-210,31.03.24,ADULT SOCIAL CARE,5 CARE SERVICES LTD,25/03/2024,486.00,6541-Domiciliary Care,THIRD PARTY PAYMENTS,PRIVATE CONTRACTOR,REVENUE
Walsall Council,http://opendatacommunities.org/id/metropolitan-district-council/walsall ,WC160-211,31.03.24,ADULT SOCIAL CARE,5 CARE SERVICES LTD,25/03/2024,294.00,6541-Domiciliary Care,THIRD PARTY PAYMENTS,PRIVATE CONTRACTOR,REVENUE
Walsall Council,http://opendatacommunities.org/id/metropolitan-district-council/walsall ,WC160-212,31.03.24,ADULT SOCIAL CARE,5 CARE SERVICES LTD,25/03/2024,567.00,6541-Domiciliary Care,THIRD PARTY PAYMENTS,PRIVATE CONTRACTOR,REVENUE
Walsall Council,http://opendatacommunities.org/id/metropolitan-district-council/walsall ,WC160-213,31.03.24,ADULT SOCIAL CARE,5 CARE SERVICES LTD,25/03/2024,882.00,6541-Domiciliary Care,THIRD PARTY PAYMENTS,PRIVATE CONTRACTOR,REVENUE
Walsall Council,http://opendatacommunities.org/id/metropolitan-district-council/walsall ,WC160-214,31.03.24,ADULT SOCIAL CARE,5 CARE SERVICES LTD,25/03/2024,252.00,6541-Domiciliary Care,THIRD PARTY PAYMENTS,PRIVATE CONTRACTOR,REVENUE
Walsall Council,http://opendatacommunities.org/id/metropolitan-district-council/walsall ,WC160-215,31.03.24,ADULT SOCIAL CARE,A & A SERVICES WEST MIDLANDS,28/03/2024,"1,750.00",6541-Community Supported Living/Supported Accommodation,THIRD PARTY PAYMENTS,PRIVATE CONTRACTOR,REVENUE
Walsall Council,http://opendatacommunities.org/id/metropolitan-district-council/walsall ,WC160-216,31.03.24,RESOURCES AND TRANSFORMATION,A D T FIRE AND SECURITY PLC,12/03/2024,"1,783.05",6310-Planned Maintenance,PREMISES,REPAIRS & MAINTENANCE,REVENUE
Walsall Council,http://opendatacommunities.org/id/metropolitan-district-council/walsall ,WC160-217,31.03.24,RESOURCES AND TRANSFORMATION,A D T FIRE AND SECURITY PLC,18/03/2024,-906.00,6310-Security & Alarm Maintenance,PREMISES,REPAIRS & MAINTENANCE,REVENUE
Walsall Council,http://opendatacommunities.org/id/metropolitan-district-council/walsall ,WC160-218,31.03.24,RESOURCES AND TRANSFORMATION,A D T FIRE AND SECURITY PLC,18/03/2024,906.00,6310-Security & Alarm Maintenance,PREMISES,REPAIRS & MAINTENANCE,REVENUE
Walsall Council,http://opendatacommunities.org/id/metropolitan-district-council/walsall ,WC160-219,31.03.24,"ECONOMY, ENVIRONMENT & COMMUNITIES",A F BLAKEMORE & SON LTD,05/03/2024,353.40,6413-Food & Drink Supplies,SUPPLIES & SERVICES,CATERING,REVENUE
Walsall Council,http://opendatacommunities.org/id/metropolitan-district-council/walsall ,WC160-220,31.03.24,"ECONOMY, ENVIRONMENT & COMMUNITIES",A F BLAKEMORE & SON LTD,05/03/2024,-273.30,6413-Food & Drink Supplies,SUPPLIES & SERVICES,CATERING,REVENUE
Walsall Council,http://opendatacommunities.org/id/metropolitan-district-council/walsall ,WC160-221,31.03.24,"ECONOMY, ENVIRONMENT & COMMUNITIES",A F BLAKEMORE & SON LTD,05/03/2024,273.30,6413-Food & Drink Supplies,SUPPLIES & SERVICES,CATERING,REVENUE
Walsall Council,http://opendatacommunities.org/id/metropolitan-district-council/walsall ,WC160-222,31.03.24,"ECONOMY, ENVIRONMENT & COMMUNITIES",A F BLAKEMORE & SON LTD,05/03/2024,786.61,6413-Food & Drink Supplies,SUPPLIES & SERVICES,CATERING,REVENUE
Walsall Council,http://opendatacommunities.org/id/metropolitan-district-council/walsall ,WC160-223,31.03.24,"ECONOMY, ENVIRONMENT & COMMUNITIES",A F BLAKEMORE & SON LTD,05/03/2024,390.86,6413-Food & Drink Supplies,SUPPLIES & SERVICES,CATERING,REVENUE
Walsall Council,http://opendatacommunities.org/id/metropolitan-district-council/walsall ,WC160-224,31.03.24,"ECONOMY, ENVIRONMENT & COMMUNITIES",A F BLAKEMORE & SON LTD,05/03/2024,727.01,6413-Food & Drink Supplies,SUPPLIES & SERVICES,CATERING,REVENUE
Walsall Council,http://opendatacommunities.org/id/metropolitan-district-council/walsall ,WC160-225,31.03.24,"ECONOMY, ENVIRONMENT & COMMUNITIES",A F BLAKEMORE & SON LTD,05/03/2024,504.17,6413-Food & Drink Supplies,SUPPLIES & SERVICES,CATERING,REVENUE
Walsall Council,http://opendatacommunities.org/id/metropolitan-district-council/walsall ,WC160-226,31.03.24,"ECONOMY, ENVIRONMENT & COMMUNITIES",A F BLAKEMORE & SON LTD,05/03/2024,714.49,6413-Food & Drink Supplies,SUPPLIES & SERVICES,CATERING,REVENUE
Walsall Council,http://opendatacommunities.org/id/metropolitan-district-council/walsall ,WC160-227,31.03.24,"ECONOMY, ENVIRONMENT & COMMUNITIES",A F BLAKEMORE & SON LTD,05/03/2024,770.49,6413-Materials,SUPPLIES & SERVICES,EQUIPMENT FURNITURE & MATERIALS,REVENUE
Walsall Council,http://opendatacommunities.org/id/metropolitan-district-council/walsall ,WC160-228,31.03.24,"ECONOMY, ENVIRONMENT & COMMUNITIES",A F BLAKEMORE & SON LTD,13/03/2024,804.78,6413-Materials,SUPPLIES & SERVICES,EQUIPMENT FURNITURE & MATERIALS,REVENUE
Walsall Council,http://opendatacommunities.org/id/metropolitan-district-council/walsall ,WC160-229,31.03.24,"ECONOMY, ENVIRONMENT & COMMUNITIES",A F BLAKEMORE & SON LTD,27/03/2024,272.70,6413-Materials,SUPPLIES & SERVICES,EQUIPMENT FURNITURE & MATERIALS,REVENUE
Walsall Council,http://opendatacommunities.org/id/metropolitan-district-council/walsall ,WC160-230,31.03.24,"ECONOMY, ENVIRONMENT & COMMUNITIES",A F BLAKEMORE & SON LTD,27/03/2024,727.36,6413-Materials,SUPPLIES & SERVICES,EQUIPMENT FURNITURE & MATERIALS,REVENUE
Walsall Council,http://opendatacommunities.org/id/metropolitan-district-council/walsall ,WC160-231,31.03.24,RESOURCES AND TRANSFORMATION CAPITAL,A.R.M. SURVEYS LIMITED,21/03/2024,490.00,7300-Consultants Fees,CAPITAL,"NEW CONSTRUCTION,CONVERSION & RENOVATION",CAPITAL
Walsall Council,http://opendatacommunities.org/id/metropolitan-district-council/walsall ,WC160-232,31.03.24,CHILDRENS,A1 WALSALL RADIO CARS,25/03/2024,"2,016.00",6241-Hire of Vehicle with Driver,TRANSPORT,DIRECT TRANSPORT COSTS,REVENUE
Walsall Council,http://opendatacommunities.org/id/metropolitan-district-council/walsall ,WC160-233,31.03.24,CHILDRENS,A1 WALSALL RADIO CARS,25/03/2024,864.00,6241-Hire of Vehicle with Driver,TRANSPORT,DIRECT TRANSPORT COSTS,REVENUE
Walsall Council,http://opendatacommunities.org/id/metropolitan-district-council/walsall ,WC160-234,31.03.24,CHILDRENS,A1 WALSALL RADIO CARS,25/03/2024,"1,245.00",6241-Hire of Vehicle with Driver,TRANSPORT,DIRECT TRANSPORT COSTS,REVENUE
Walsall Council,http://opendatacommunities.org/id/metropolitan-district-council/walsall ,WC160-235,31.03.24,CHILDRENS,A1 WALSALL RADIO CARS,25/03/2024,"1,372.00",6241-Hire of Vehicle with Driver,TRANSPORT,DIRECT TRANSPORT COSTS,REVENUE
Walsall Council,http://opendatacommunities.org/id/metropolitan-district-council/walsall ,WC160-236,31.03.24,CHILDRENS,A1 WALSALL RADIO CARS,25/03/2024,747.00,6241-Hire of Vehicle with Driver,TRANSPORT,DIRECT TRANSPORT COSTS,REVENUE
Walsall Council,http://opendatacommunities.org/id/metropolitan-district-council/walsall ,WC160-237,31.03.24,CHILDRENS,A1 WALSALL RADIO CARS,25/03/2024,960.00,6241-Hire of Vehicle with Driver,TRANSPORT,DIRECT TRANSPORT COSTS,REVENUE
Walsall Council,http://opendatacommunities.org/id/metropolitan-district-council/walsall ,WC160-238,31.03.24,CHILDRENS,A1 WALSALL RADIO CARS,25/03/2024,336.00,6241-Hire of Vehicle with Driver,TRANSPORT,DIRECT TRANSPORT COSTS,REVENUE
Walsall Council,http://opendatacommunities.org/id/metropolitan-district-council/walsall ,WC160-239,31.03.24,CHILDRENS,A1 WALSALL RADIO CARS,25/03/2024,"1,410.00",6241-Hire of Vehicle with Driver,TRANSPORT,DIRECT TRANSPORT COSTS,REVENUE
Walsall Council,http://opendatacommunities.org/id/metropolitan-district-council/walsall ,WC160-240,31.03.24,CHILDRENS,A1 WALSALL RADIO CARS,25/03/2024,"1,575.00",6241-Hire of Vehicle with Driver,TRANSPORT,DIRECT TRANSPORT COSTS,REVENUE
Walsall Council,http://opendatacommunities.org/id/metropolitan-district-council/walsall ,WC160-241,31.03.24,"ECONOMY, ENVIRONMENT & COMMUNITIES",AAINA COMMUNITY HUB,22/03/2024,"15,217.53",6430-Grants to Other Orgs,SUPPLIES & SERVICES,GRANTS (EXP) & SUBSCRIPTIONS,REVENUE
Walsall Council,http://opendatacommunities.org/id/metropolitan-district-council/walsall ,WC160-242,31.03.24,"ECONOMY, ENVIRONMENT & COMMUNITIES",AAINA COMMUNITY HUB,28/03/2024,"1,485.80",6430-Grants to Other Orgs,SUPPLIES & SERVICES,GRANTS (EXP) & SUBSCRIPTIONS,REVENUE
Walsall Council,http://opendatacommunities.org/id/metropolitan-district-council/walsall ,WC160-243,31.03.24,ADULT SOCIAL CARE,REDACTED,06/03/2024,"1,126.20",6541-Direct Payment,THIRD PARTY PAYMENTS,PRIVATE CONTRACTOR,REVENUE
Walsall Council,http://opendatacommunities.org/id/metropolitan-district-council/walsall ,WC160-244,31.03.24,CHILDRENS,ABACUS FOSTERING LTD,19/03/2024,"3,477.09",6223-Independent Foster Care-Oth Agency Provision,THIRD PARTY PAYMENTS,PRIVATE CONTRACTOR,REVENUE
Walsall Council,http://opendatacommunities.org/id/metropolitan-district-council/walsall ,WC160-245,31.03.24,CHILDRENS,ABACUS FOSTERING LTD,19/03/2024,"3,685.15",6223-Independent Foster Care-Oth Agency Provision,THIRD PARTY PAYMENTS,PRIVATE CONTRACTOR,REVENUE
Walsall Council,http://opendatacommunities.org/id/metropolitan-district-council/walsall ,WC160-246,31.03.24,CHILDRENS,ABACUS FOSTERING LTD,19/03/2024,"3,504.95",6223-Independent Foster Care-Oth Agency Provision,THIRD PARTY PAYMENTS,PRIVATE CONTRACTOR,REVENUE
Walsall Council,http://opendatacommunities.org/id/metropolitan-district-council/walsall ,WC160-247,31.03.24,CHILDRENS,ABACUS FOSTERING LTD,19/03/2024,"3,683.14",6223-Independent Foster Care-Oth Agency Provision,THIRD PARTY PAYMENTS,PRIVATE CONTRACTOR,REVENUE
Walsall Council,http://opendatacommunities.org/id/metropolitan-district-council/walsall ,WC160-248,31.03.24,ADULT SOCIAL CARE,ABBEY HEALTHCARE HOMES LTD,11/03/2024,"3,180.76",6541-Residential,THIRD PARTY PAYMENTS,PRIVATE CONTRACTOR,REVENUE
Walsall Council,http://opendatacommunities.org/id/metropolitan-district-council/walsall ,WC160-249,31.03.24,ADULT SOCIAL CARE,ABBEY HEALTHCARE HOMES LTD,11/03/2024,"4,000.00",6541-Residential,THIRD PARTY PAYMENTS,PRIVATE CONTRACTOR,REVENUE
Walsall Council,http://opendatacommunities.org/id/metropolitan-district-council/walsall ,WC160-250,31.03.24,ADULT SOCIAL CARE,ABBEY HEALTHCARE HOMES LTD,11/03/2024,"2,432.32",6541-Residential,THIRD PARTY PAYMENTS,PRIVATE CONTRACTOR,REVENUE
Walsall Council,http://opendatacommunities.org/id/metropolitan-district-council/walsall ,WC160-251,31.03.24,ADULT SOCIAL CARE,ABBEY HEALTHCARE HOMES LTD,11/03/2024,"3,180.76",6541-Residential,THIRD PARTY PAYMENTS,PRIVATE CONTRACTOR,REVENUE
Walsall Council,http://opendatacommunities.org/id/metropolitan-district-council/walsall ,WC160-252,31.03.24,CHILDRENS,ABC DAY NURSERY (WILLENHALL) LIMITED,20/03/2024,409.12,1184-Other-Grants to Other Orgs,SUPPLIES & SERVICES,GRANTS (EXP) & SUBSCRIPTIONS,REVENUE
Walsall Council,http://opendatacommunities.org/id/metropolitan-district-council/walsall ,WC160-253,31.03.24,CHILDRENS CAPITAL,REDACTED,11/03/2024,"11,523.83",7100-Private Grants,CAPITAL,CAPITAL GRANTS,CAPITAL GRANTS
Walsall Council,http://opendatacommunities.org/id/metropolitan-district-council/walsall ,WC160-254,31.03.24,"ECONOMY, ENVIRONMENT & COMMUNITIES",ABEL ALARM CO LTD,20/03/2024,278.00,6413-Security & Alarm Maintenance,PREMISES,REPAIRS & MAINTENANCE,REVENUE
Walsall Council,http://opendatacommunities.org/id/metropolitan-district-council/walsall ,WC160-255,31.03.24,ADULT SOCIAL CARE,REDACTED,06/03/2024,"3,047.80",6541-Direct Payment,THIRD PARTY PAYMENTS,PRIVATE CONTRACTOR,REVENUE
Walsall Council,http://opendatacommunities.org/id/metropolitan-district-council/walsall ,WC160-256,31.03.24,ADULT SOCIAL CARE,ABILITY HEALTHCARE CANNOCK LTD,06/03/2024,"1,698.00",6541-Domiciliary Care,THIRD PARTY PAYMENTS,PRIVATE CONTRACTOR,REVENUE
Walsall Council,http://opendatacommunities.org/id/metropolitan-district-council/walsall ,WC160-257,31.03.24,ADULT SOCIAL CARE,ABILITY HEALTHCARE CANNOCK LTD,06/03/2024,"1,944.00",6541-Domiciliary Care,THIRD PARTY PAYMENTS,PRIVATE CONTRACTOR,REVENUE
Walsall Council,http://opendatacommunities.org/id/metropolitan-district-council/walsall ,WC160-258,31.03.24,ADULT SOCIAL CARE,ABILITY HEALTHCARE CANNOCK LTD,06/03/2024,"1,647.00",6541-Domiciliary Care,THIRD PARTY PAYMENTS,PRIVATE CONTRACTOR,REVENUE
Walsall Council,http://opendatacommunities.org/id/metropolitan-district-council/walsall ,WC160-259,31.03.24,ADULT SOCIAL CARE,ABILITY HEALTHCARE CANNOCK LTD,06/03/2024,840.00,6541-Domiciliary Care,THIRD PARTY PAYMENTS,PRIVATE CONTRACTOR,REVENUE
Walsall Council,http://opendatacommunities.org/id/metropolitan-district-council/walsall ,WC160-260,31.03.24,ADULT SOCIAL CARE,ABILITY HEALTHCARE CANNOCK LTD,06/03/2024,"2,016.00",6541-Domiciliary Care,THIRD PARTY PAYMENTS,PRIVATE CONTRACTOR,REVENUE
Walsall Council,http://opendatacommunities.org/id/metropolitan-district-council/walsall ,WC160-261,31.03.24,ADULT SOCIAL CARE,ABILITY HEALTHCARE CANNOCK LTD,06/03/2024,"2,412.00",6541-Domiciliary Care,THIRD PARTY PAYMENTS,PRIVATE CONTRACTOR,REVENUE
Walsall Council,http://opendatacommunities.org/id/metropolitan-district-council/walsall ,WC160-262,31.03.24,ADULT SOCIAL CARE,ABILITY HEALTHCARE CANNOCK LTD,06/03/2024,"2,268.00",6541-Domiciliary Care,THIRD PARTY PAYMENTS,PRIVATE CONTRACTOR,REVENUE
Walsall Council,http://opendatacommunities.org/id/metropolitan-district-council/walsall ,WC160-263,31.03.24,ADULT SOCIAL CARE,ABILITY HEALTHCARE CANNOCK LTD,06/03/2024,"2,268.00",6541-Domiciliary Care,THIRD PARTY PAYMENTS,PRIVATE CONTRACTOR,REVENUE
Walsall Council,http://opendatacommunities.org/id/metropolitan-district-council/walsall ,WC160-264,31.03.24,ADULT SOCIAL CARE,ABILITY HEALTHCARE CANNOCK LTD,06/03/2024,"2,016.00",6541-Domiciliary Care,THIRD PARTY PAYMENTS,PRIVATE CONTRACTOR,REVENUE
Walsall Council,http://opendatacommunities.org/id/metropolitan-district-council/walsall ,WC160-265,31.03.24,ADULT SOCIAL CARE,ABILITY HEALTHCARE CANNOCK LTD,06/03/2024,"1,692.00",6541-Domiciliary Care,THIRD PARTY PAYMENTS,PRIVATE CONTRACTOR,REVENUE
Walsall Council,http://opendatacommunities.org/id/metropolitan-district-council/walsall ,WC160-266,31.03.24,ADULT SOCIAL CARE,ABILITY HEALTHCARE CANNOCK LTD,06/03/2024,"3,528.00",6541-Domiciliary Care,THIRD PARTY PAYMENTS,PRIVATE CONTRACTOR,REVENUE
Walsall Council,http://opendatacommunities.org/id/metropolitan-district-council/walsall ,WC160-267,31.03.24,ADULT SOCIAL CARE,ABILITY HEALTHCARE CANNOCK LTD,06/03/2024,"2,016.00",6541-Domiciliary Care,THIRD PARTY PAYMENTS,PRIVATE CONTRACTOR,REVENUE
Walsall Council,http://opendatacommunities.org/id/metropolitan-district-council/walsall ,WC160-268,31.03.24,ADULT SOCIAL CARE,ABILITY HEALTHCARE CANNOCK LTD,06/03/2024,630.00,6541-Domiciliary Care,THIRD PARTY PAYMENTS,PRIVATE CONTRACTOR,REVENUE
Walsall Council,http://opendatacommunities.org/id/metropolitan-district-council/walsall ,WC160-269,31.03.24,ADULT SOCIAL CARE,ABILITY HEALTHCARE CANNOCK LTD,06/03/2024,"1,008.00",6541-Domiciliary Care,THIRD PARTY PAYMENTS,PRIVATE CONTRACTOR,REVENUE
Walsall Council,http://opendatacommunities.org/id/metropolitan-district-council/walsall ,WC160-270,31.03.24,ADULT SOCIAL CARE,ABILITY HEALTHCARE CANNOCK LTD,06/03/2024,"2,772.00",6541-Domiciliary Care,THIRD PARTY PAYMENTS,PRIVATE CONTRACTOR,REVENUE
Walsall Council,http://opendatacommunities.org/id/metropolitan-district-council/walsall ,WC160-271,31.03.24,ADULT SOCIAL CARE,ABILITY HEALTHCARE CANNOCK LTD,06/03/2024,"2,304.00",6541-Domiciliary Care,THIRD PARTY PAYMENTS,PRIVATE CONTRACTOR,REVENUE
Walsall Council,http://opendatacommunities.org/id/metropolitan-district-council/walsall ,WC160-272,31.03.24,ADULT SOCIAL CARE,ABILITY HEALTHCARE CANNOCK LTD,06/03/2024,"2,016.00",6541-Domiciliary Care,THIRD PARTY PAYMENTS,PRIVATE CONTRACTOR,REVENUE
Walsall Council,http://opendatacommunities.org/id/metropolitan-district-council/walsall ,WC160-273,31.03.24,ADULT SOCIAL CARE,ABILITY HEALTHCARE CANNOCK LTD,06/03/2024,"2,268.00",6541-Domiciliary Care,THIRD PARTY PAYMENTS,PRIVATE CONTRACTOR,REVENUE
Walsall Council,http://opendatacommunities.org/id/metropolitan-district-council/walsall ,WC160-274,31.03.24,ADULT SOCIAL CARE,ABILITY HEALTHCARE CANNOCK LTD,06/03/2024,"1,488.00",6541-Domiciliary Care,THIRD PARTY PAYMENTS,PRIVATE CONTRACTOR,REVENUE
Walsall Council,http://opendatacommunities.org/id/metropolitan-district-council/walsall ,WC160-275,31.03.24,ADULT SOCIAL CARE,ABILITY HEALTHCARE CANNOCK LTD,06/03/2024,"1,512.00",6541-Domiciliary Care,THIRD PARTY PAYMENTS,PRIVATE CONTRACTOR,REVENUE
Walsall Council,http://opendatacommunities.org/id/metropolitan-district-council/walsall ,WC160-276,31.03.24,ADULT SOCIAL CARE,ABILITY HEALTHCARE CANNOCK LTD,06/03/2024,"1,680.00",6541-Domiciliary Care,THIRD PARTY PAYMENTS,PRIVATE CONTRACTOR,REVENUE
Walsall Council,http://opendatacommunities.org/id/metropolitan-district-council/walsall ,WC160-277,31.03.24,ADULT SOCIAL CARE,ABILITY HEALTHCARE CANNOCK LTD,06/03/2024,"2,268.00",6541-Domiciliary Care,THIRD PARTY PAYMENTS,PRIVATE CONTRACTOR,REVENUE
Walsall Council,http://opendatacommunities.org/id/metropolitan-district-council/walsall ,WC160-278,31.03.24,ADULT SOCIAL CARE,ABILITY HEALTHCARE CANNOCK LTD,06/03/2024,"1,467.00",6541-Domiciliary Care,THIRD PARTY PAYMENTS,PRIVATE CONTRACTOR,REVENUE
Walsall Council,http://opendatacommunities.org/id/metropolitan-district-council/walsall ,WC160-279,31.03.24,ADULT SOCIAL CARE,ABILITY HEALTHCARE CANNOCK LTD,06/03/2024,336.00,6541-Domiciliary Care,THIRD PARTY PAYMENTS,PRIVATE CONTRACTOR,REVENUE
Walsall Council,http://opendatacommunities.org/id/metropolitan-district-council/walsall ,WC160-280,31.03.24,ADULT SOCIAL CARE,ABILITY HEALTHCARE CANNOCK LTD,06/03/2024,"1,764.00",6541-Domiciliary Care,THIRD PARTY PAYMENTS,PRIVATE CONTRACTOR,REVENUE
Walsall Council,http://opendatacommunities.org/id/metropolitan-district-council/walsall ,WC160-281,31.03.24,ADULT SOCIAL CARE,ABILITY HEALTHCARE CANNOCK LTD,06/03/2024,"1,344.00",6541-Domiciliary Care,THIRD PARTY PAYMENTS,PRIVATE CONTRACTOR,REVENUE
Walsall Council,http://opendatacommunities.org/id/metropolitan-district-council/walsall ,WC160-282,31.03.24,ADULT SOCIAL CARE,ABILITY HEALTHCARE CANNOCK LTD,06/03/2024,"2,142.00",6541-Domiciliary Care,THIRD PARTY PAYMENTS,PRIVATE CONTRACTOR,REVENUE
Walsall Council,http://opendatacommunities.org/id/metropolitan-district-council/walsall ,WC160-283,31.03.24,ADULT SOCIAL CARE,ABILITY HEALTHCARE CANNOCK LTD,06/03/2024,"1,512.00",6541-Domiciliary Care,THIRD PARTY PAYMENTS,PRIVATE CONTRACTOR,REVENUE
Walsall Council,http://opendatacommunities.org/id/metropolitan-district-council/walsall ,WC160-284,31.03.24,ADULT SOCIAL CARE,ABILITY HEALTHCARE CANNOCK LTD,06/03/2024,"1,701.00",6541-Domiciliary Care,THIRD PARTY PAYMENTS,PRIVATE CONTRACTOR,REVENUE
Walsall Council,http://opendatacommunities.org/id/metropolitan-district-council/walsall ,WC160-285,31.03.24,ADULT SOCIAL CARE,ABILITY HEALTHCARE CANNOCK LTD,06/03/2024,"2,268.00",6541-Domiciliary Care,THIRD PARTY PAYMENTS,PRIVATE CONTRACTOR,REVENUE
Walsall Council,http://opendatacommunities.org/id/metropolitan-district-council/walsall ,WC160-286,31.03.24,ADULT SOCIAL CARE,ABILITY HEALTHCARE CANNOCK LTD,06/03/2024,"1,806.00",6541-Domiciliary Care,THIRD PARTY PAYMENTS,PRIVATE CONTRACTOR,REVENUE
Walsall Council,http://opendatacommunities.org/id/metropolitan-district-council/walsall ,WC160-287,31.03.24,ADULT SOCIAL CARE,ABILITY HEALTHCARE CANNOCK LTD,06/03/2024,"1,296.00",6554-Professional Services-Priv Contractor & Other Agencies,THIRD PARTY PAYMENTS,PRIVATE CONTRACTOR,REVENUE
Walsall Council,http://opendatacommunities.org/id/metropolitan-district-council/walsall ,WC160-288,31.03.24,ADULT SOCIAL CARE,ABILITY HEALTHCARE CANNOCK LTD,06/03/2024,364.50,6554-Professional Services-Priv Contractor & Other Agencies,THIRD PARTY PAYMENTS,PRIVATE CONTRACTOR,REVENUE
Walsall Council,http://opendatacommunities.org/id/metropolitan-district-council/walsall ,WC160-289,31.03.24,ADULT SOCIAL CARE,ABILITY HEALTHCARE CANNOCK LTD,06/03/2024,522.00,6554-Professional Services-Priv Contractor & Other Agencies,THIRD PARTY PAYMENTS,PRIVATE CONTRACTOR,REVENUE
Walsall Council,http://opendatacommunities.org/id/metropolitan-district-council/walsall ,WC160-290,31.03.24,ADULT SOCIAL CARE,ABILITY HEALTHCARE CANNOCK LTD,06/03/2024,"2,061.00",6554-Professional Services-Priv Contractor & Other Agencies,THIRD PARTY PAYMENTS,PRIVATE CONTRACTOR,REVENUE
Walsall Council,http://opendatacommunities.org/id/metropolitan-district-council/walsall ,WC160-291,31.03.24,ADULT SOCIAL CARE,ABILITY HEALTHCARE CANNOCK LTD,06/03/2024,252.00,6554-Professional Services-Priv Contractor & Other Agencies,THIRD PARTY PAYMENTS,PRIVATE CONTRACTOR,REVENUE
Walsall Council,http://opendatacommunities.org/id/metropolitan-district-council/walsall ,WC160-292,31.03.24,ADULT SOCIAL CARE,ABILITY HEALTHCARE CANNOCK LTD,06/03/2024,441.00,6554-Professional Services-Priv Contractor & Other Agencies,THIRD PARTY PAYMENTS,PRIVATE CONTRACTOR,REVENUE
Walsall Council,http://opendatacommunities.org/id/metropolitan-district-council/walsall ,WC160-293,31.03.24,ADULT SOCIAL CARE,ABILITY HEALTHCARE CANNOCK LTD,06/03/2024,540.00,6554-Professional Services-Priv Contractor & Other Agencies,THIRD PARTY PAYMENTS,PRIVATE CONTRACTOR,REVENUE
Walsall Council,http://opendatacommunities.org/id/metropolitan-district-council/walsall ,WC160-294,31.03.24,ADULT SOCIAL CARE,ABILITY HEALTHCARE CANNOCK LTD,06/03/2024,420.00,6554-Professional Services-Priv Contractor & Other Agencies,THIRD PARTY PAYMENTS,PRIVATE CONTRACTOR,REVENUE
Walsall Council,http://opendatacommunities.org/id/metropolitan-district-council/walsall ,WC160-295,31.03.24,ADULT SOCIAL CARE,ABILITY HEALTHCARE CANNOCK LTD,06/03/2024,567.00,6554-Professional Services-Priv Contractor & Other Agencies,THIRD PARTY PAYMENTS,PRIVATE CONTRACTOR,REVENUE
Walsall Council,http://opendatacommunities.org/id/metropolitan-district-council/walsall ,WC160-296,31.03.24,ADULT SOCIAL CARE,ABILITY HEALTHCARE CANNOCK LTD,06/03/2024,"1,251.00",6554-Professional Services-Priv Contractor & Other Agencies,THIRD PARTY PAYMENTS,PRIVATE CONTRACTOR,REVENUE
Walsall Council,http://opendatacommunities.org/id/metropolitan-district-council/walsall ,WC160-297,31.03.24,"ECONOMY, ENVIRONMENT & COMMUNITIES",ABLE INVESTIGATIONS & ENFORCEMENTS LTD,05/03/2024,"1,380.00",6440-Professional Fees & Services,SUPPLIES & SERVICES,SERVICES,REVENUE
Walsall Council,http://opendatacommunities.org/id/metropolitan-district-council/walsall ,WC160-298,31.03.24,"ECONOMY, ENVIRONMENT & COMMUNITIES",ABLE INVESTIGATIONS & ENFORCEMENTS LTD,05/03/2024,"5,388.00",6440-Professional Fees & Services,SUPPLIES & SERVICES,SERVICES,REVENUE
Walsall Council,http://opendatacommunities.org/id/metropolitan-district-council/walsall ,WC160-299,31.03.24,"ECONOMY, ENVIRONMENT & COMMUNITIES",ABLE INVESTIGATIONS & ENFORCEMENTS LTD,05/03/2024,"3,245.00",6440-Professional Fees & Services,SUPPLIES & SERVICES,SERVICES,REVENUE
Walsall Council,http://opendatacommunities.org/id/metropolitan-district-council/walsall ,WC160-300,31.03.24,"ECONOMY, ENVIRONMENT & COMMUNITIES",ABLE INVESTIGATIONS & ENFORCEMENTS LTD,05/03/2024,"1,235.00",6440-Professional Fees & Services,SUPPLIES & SERVICES,SERVICES,REVENUE
Walsall Council,http://opendatacommunities.org/id/metropolitan-district-council/walsall ,WC160-301,31.03.24,CHILDRENS,ABLEWELL CARS,25/03/2024,"1,110.00",6241-Hire of Vehicle with Driver,TRANSPORT,DIRECT TRANSPORT COSTS,REVENUE
Walsall Council,http://opendatacommunities.org/id/metropolitan-district-council/walsall ,WC160-302,31.03.24,CHILDRENS,ABLEWELL CARS,25/03/2024,948.00,6241-Hire of Vehicle with Driver,TRANSPORT,DIRECT TRANSPORT COSTS,REVENUE
Walsall Council,http://opendatacommunities.org/id/metropolitan-district-council/walsall ,WC160-303,31.03.24,CHILDRENS,ABLEWELL CARS,25/03/2024,"1,262.40",6241-Hire of Vehicle with Driver,TRANSPORT,DIRECT TRANSPORT COSTS,REVENUE
Walsall Council,http://opendatacommunities.org/id/metropolitan-district-council/walsall ,WC160-304,31.03.24,CHILDRENS,ABLEWELL CARS,25/03/2024,"2,137.50",6241-Hire of Vehicle with Driver,TRANSPORT,DIRECT TRANSPORT COSTS,REVENUE
Walsall Council,http://opendatacommunities.org/id/metropolitan-district-council/walsall ,WC160-305,31.03.24,CHILDRENS,ABS TAXIS (ALDRIDGE),25/03/2024,"2,119.60",6241-Hire of Vehicle with Driver,TRANSPORT,DIRECT TRANSPORT COSTS,REVENUE
Walsall Council,http://opendatacommunities.org/id/metropolitan-district-council/walsall ,WC160-306,31.03.24,CHILDRENS,ABS TAXIS (ALDRIDGE),25/03/2024,"1,207.50",6241-Hire of Vehicle with Driver,TRANSPORT,DIRECT TRANSPORT COSTS,REVENUE
Walsall Council,http://opendatacommunities.org/id/metropolitan-district-council/walsall ,WC160-307,31.03.24,CHILDRENS,ABS TAXIS (ALDRIDGE),25/03/2024,"1,480.50",6241-Hire of Vehicle with Driver,TRANSPORT,DIRECT TRANSPORT COSTS,REVENUE
Walsall Council,http://opendatacommunities.org/id/metropolitan-district-council/walsall ,WC160-308,31.03.24,ADULT SOCIAL CARE,ABSOLUTE CARE HOMES (CENTRAL) LTD,11/03/2024,"1,028.57",6541-Residential,THIRD PARTY PAYMENTS,PRIVATE CONTRACTOR,REVENUE
Walsall Council,http://opendatacommunities.org/id/metropolitan-district-council/walsall ,WC160-309,31.03.24,ADULT SOCIAL CARE,ABSOLUTE CARE HOMES (CENTRAL) LTD,11/03/2024,"7,600.00",6541-Nursing EMI,THIRD PARTY PAYMENTS,PRIVATE CONTRACTOR,REVENUE
Walsall Council,http://opendatacommunities.org/id/metropolitan-district-council/walsall ,WC160-310,31.03.24,ADULT SOCIAL CARE,ABSOLUTE HEALTHCARE SWAN HOUSE LTD,11/03/2024,"2,137.32",6541-Residential,THIRD PARTY PAYMENTS,PRIVATE CONTRACTOR,REVENUE
Walsall Council,http://opendatacommunities.org/id/metropolitan-district-council/walsall ,WC160-311,31.03.24,ADULT SOCIAL CARE,ABSOLUTE HEALTHCARE SWAN HOUSE LTD,11/03/2024,"2,137.32",6541-Residential,THIRD PARTY PAYMENTS,PRIVATE CONTRACTOR,REVENUE
Walsall Council,http://opendatacommunities.org/id/metropolitan-district-council/walsall ,WC160-312,31.03.24,ADULT SOCIAL CARE,ABSOLUTE HEALTHCARE SWAN HOUSE LTD,11/03/2024,"2,137.32",6541-Residential,THIRD PARTY PAYMENTS,PRIVATE CONTRACTOR,REVENUE
Walsall Council,http://opendatacommunities.org/id/metropolitan-district-council/walsall ,WC160-313,31.03.24,ADULT SOCIAL CARE,ABSOLUTE HEALTHCARE SWAN HOUSE LTD,11/03/2024,"-4,912.92",6541-Residential EMI,THIRD PARTY PAYMENTS,PRIVATE CONTRACTOR,REVENUE
Walsall Council,http://opendatacommunities.org/id/metropolitan-district-council/walsall ,WC160-314,31.03.24,ADULT SOCIAL CARE,ABSOLUTE HEALTHCARE SWAN HOUSE LTD,11/03/2024,"4,342.86",6541-Nursing,THIRD PARTY PAYMENTS,PRIVATE CONTRACTOR,REVENUE
Walsall Council,http://opendatacommunities.org/id/metropolitan-district-council/walsall ,WC160-315,31.03.24,ADULT SOCIAL CARE,ABSOLUTE HEALTHCARE SWAN HOUSE LTD,11/03/2024,"4,233.75",6541-Residential EMI,THIRD PARTY PAYMENTS,PRIVATE CONTRACTOR,REVENUE
Walsall Council,http://opendatacommunities.org/id/metropolitan-district-council/walsall ,WC160-316,31.03.24,ADULT SOCIAL CARE,ABSOLUTE HEALTHCARE SWAN HOUSE LTD,11/03/2024,"2,413.36",6541-Residential EMI,THIRD PARTY PAYMENTS,PRIVATE CONTRACTOR,REVENUE
Walsall Council,http://opendatacommunities.org/id/metropolitan-district-council/walsall ,WC160-317,31.03.24,ADULT SOCIAL CARE,ABSOLUTE HEALTHCARE SWAN HOUSE LTD,11/03/2024,"3,400.00",6541-Residential EMI,THIRD PARTY PAYMENTS,PRIVATE CONTRACTOR,REVENUE
Walsall Council,http://opendatacommunities.org/id/metropolitan-district-council/walsall ,WC160-318,31.03.24,ADULT SOCIAL CARE,ABSOLUTE HEALTHCARE SWAN HOUSE LTD,11/03/2024,"10,000.00",6541-Nursing EMI,THIRD PARTY PAYMENTS,PRIVATE CONTRACTOR,REVENUE
Walsall Council,http://opendatacommunities.org/id/metropolitan-district-council/walsall ,WC160-319,31.03.24,ADULT SOCIAL CARE,ABSOLUTE HEALTHCARE SWAN HOUSE LTD,11/03/2024,"-6,000.00",6541-Residential,THIRD PARTY PAYMENTS,PRIVATE CONTRACTOR,REVENUE
Walsall Council,http://opendatacommunities.org/id/metropolitan-district-council/walsall ,WC160-320,31.03.24,ADULT SOCIAL CARE,ABSOLUTE HEALTHCARE SWAN HOUSE LTD,11/03/2024,"2,413.36",6541-Residential EMI,THIRD PARTY PAYMENTS,PRIVATE CONTRACTOR,REVENUE
Walsall Council,http://opendatacommunities.org/id/metropolitan-district-council/walsall ,WC160-321,31.03.24,ADULT SOCIAL CARE,ABSOLUTE HEALTHCARE SWAN HOUSE LTD,11/03/2024,"2,277.32",6541-Residential,THIRD PARTY PAYMENTS,PRIVATE CONTRACTOR,REVENUE
Walsall Council,http://opendatacommunities.org/id/metropolitan-district-council/walsall ,WC160-322,31.03.24,ADULT SOCIAL CARE,ABSOLUTE HEALTHCARE SWAN HOUSE LTD,11/03/2024,"2,137.32",6541-Residential,THIRD PARTY PAYMENTS,PRIVATE CONTRACTOR,REVENUE
Walsall Council,http://opendatacommunities.org/id/metropolitan-district-council/walsall ,WC160-323,31.03.24,ADULT SOCIAL CARE,ABSOLUTE HEALTHCARE SWAN HOUSE LTD,11/03/2024,"3,600.00",6541-Residential,THIRD PARTY PAYMENTS,PRIVATE CONTRACTOR,REVENUE
Walsall Council,http://opendatacommunities.org/id/metropolitan-district-council/walsall ,WC160-324,31.03.24,ADULT SOCIAL CARE,ABSOLUTE HEALTHCARE SWAN HOUSE LTD,11/03/2024,"4,056.00",6541-Residential,THIRD PARTY PAYMENTS,PRIVATE CONTRACTOR,REVENUE
Walsall Council,http://opendatacommunities.org/id/metropolitan-district-council/walsall ,WC160-325,31.03.24,ADULT SOCIAL CARE,ABSOLUTE HEALTHCARE SWAN HOUSE LTD,11/03/2024,"2,413.36",6541-Residential EMI,THIRD PARTY PAYMENTS,PRIVATE CONTRACTOR,REVENUE
Walsall Council,http://opendatacommunities.org/id/metropolitan-district-council/walsall ,WC160-326,31.03.24,ADULT SOCIAL CARE,ABSOLUTE HEALTHCARE SWAN HOUSE LTD,11/03/2024,"-6,550.60",6541-Nursing EMI,THIRD PARTY PAYMENTS,PRIVATE CONTRACTOR,REVENUE
Walsall Council,http://opendatacommunities.org/id/metropolitan-district-council/walsall ,WC160-327,31.03.24,CHILDRENS,ABU BAKR NURSERY,20/03/2024,"1,000.07",1184-Other-Grants to Other Orgs,SUPPLIES & SERVICES,GRANTS (EXP) & SUBSCRIPTIONS,REVENUE
Walsall Council,http://opendatacommunities.org/id/metropolitan-district-council/walsall ,WC160-328,31.03.24,CHILDRENS,ABU BAKR NURSERY,08/03/2024,640.00,1184-Transfer Payments-Other Schoolchildren/Student Related Items,TRANSFER PAYMENTS,SCHOOLCHILDREN/STUDENTS,REVENUE
Walsall Council,http://opendatacommunities.org/id/metropolitan-district-council/walsall ,WC160-329,31.03.24,CHILDRENS,ACADEMY 21 LTD,18/03/2024,"3,660.00",1220-Professional Fees & Services,SUPPLIES & SERVICES,SERVICES,REVENUE
Walsall Council,http://opendatacommunities.org/id/metropolitan-district-council/walsall ,WC160-330,31.03.24,CHILDRENS,ACADEMY 21 LTD,18/03/2024,"1,464.00",1220-Professional Fees & Services,SUPPLIES & SERVICES,SERVICES,REVENUE
Walsall Council,http://opendatacommunities.org/id/metropolitan-district-council/walsall ,WC160-331,31.03.24,CHILDRENS,ACADEMY 21 LTD,18/03/2024,"1,305.00",1220-Professional Fees & Services,SUPPLIES & SERVICES,SERVICES,REVENUE
Walsall Council,http://opendatacommunities.org/id/metropolitan-district-council/walsall ,WC160-332,31.03.24,CHILDRENS,ACCALIA CARE SERVICES LTD,19/03/2024,"21,160.00",6223-External Residential Care-Oth Agency Provision,THIRD PARTY PAYMENTS,PRIVATE CONTRACTOR,REVENUE
Walsall Council,http://opendatacommunities.org/id/metropolitan-district-council/walsall ,WC160-333,31.03.24,CHILDRENS,ACCEPTING BEHAVIOUR LTD,05/03/2024,747.50,1220-Professional Fees & Services,SUPPLIES & SERVICES,SERVICES,REVENUE
Walsall Council,http://opendatacommunities.org/id/metropolitan-district-council/walsall ,WC160-334,31.03.24,CHILDRENS,ACCEPTING BEHAVIOUR LTD,15/03/2024,292.50,1220-Professional Fees & Services,SUPPLIES & SERVICES,SERVICES,REVENUE
Walsall Council,http://opendatacommunities.org/id/metropolitan-district-council/walsall ,WC160-335,31.03.24,ADULT SOCIAL CARE,ACCESS UK LTD,04/03/2024,"18,315.00",6551-Professional Fees & Services,SUPPLIES & SERVICES,SERVICES,REVENUE
Walsall Council,http://opendatacommunities.org/id/metropolitan-district-council/walsall ,WC160-336,31.03.24,CHILDRENS,ACCESS UK LTD,06/03/2024,349.49,6240-Fees & Licences,SUPPLIES & SERVICES,SERVICES,REVENUE
Walsall Council,http://opendatacommunities.org/id/metropolitan-district-council/walsall ,WC160-337,31.03.24,CHILDRENS,ACCESS UK LTD,06/03/2024,518.27,6240-Fees & Licences,SUPPLIES & SERVICES,SERVICES,REVENUE
Walsall Council,http://opendatacommunities.org/id/metropolitan-district-council/walsall ,WC160-338,31.03.24,CHILDRENS,ACCESS UK LTD,06/03/2024,524.35,6240-Fees & Licences,SUPPLIES & SERVICES,SERVICES,REVENUE
Walsall Council,http://opendatacommunities.org/id/metropolitan-district-council/walsall ,WC160-339,31.03.24,CHILDRENS,ACCESS UK LTD,06/03/2024,699.14,6240-Fees & Licences,SUPPLIES & SERVICES,SERVICES,REVENUE
Walsall Council,http://opendatacommunities.org/id/metropolitan-district-council/walsall ,WC160-340,31.03.24,CHILDRENS,ACCESS UK LTD,06/03/2024,"1,052.00",6240-Fees & Licences,SUPPLIES & SERVICES,SERVICES,REVENUE
Walsall Council,http://opendatacommunities.org/id/metropolitan-district-council/walsall ,WC160-341,31.03.24,CHILDRENS,ACCESS UK LTD,06/03/2024,"1,083.56",6240-Fees & Licences,SUPPLIES & SERVICES,SERVICES,REVENUE
Walsall Council,http://opendatacommunities.org/id/metropolitan-district-council/walsall ,WC160-342,31.03.24,CHILDRENS,ACCESS UK LTD,06/03/2024,"1,126.69",6240-Fees & Licences,SUPPLIES & SERVICES,SERVICES,REVENUE
Walsall Council,http://opendatacommunities.org/id/metropolitan-district-council/walsall ,WC160-343,31.03.24,CHILDRENS,ACCESS UK LTD,06/03/2024,"1,183.02",6240-Fees & Licences,SUPPLIES & SERVICES,SERVICES,REVENUE
Walsall Council,http://opendatacommunities.org/id/metropolitan-district-council/walsall ,WC160-344,31.03.24,CHILDRENS,ACCESS UK LTD,06/03/2024,"1,369.50",6240-Fees & Licences,SUPPLIES & SERVICES,SERVICES,REVENUE
Walsall Council,http://opendatacommunities.org/id/metropolitan-district-council/walsall ,WC160-345,31.03.24,CHILDRENS,ACCESS UK LTD,06/03/2024,"1,585.36",6240-Fees & Licences,SUPPLIES & SERVICES,SERVICES,REVENUE
Walsall Council,http://opendatacommunities.org/id/metropolitan-district-council/walsall ,WC160-346,31.03.24,CHILDRENS,ACCESS UK LTD,06/03/2024,"2,944.25",6240-Fees & Licences,SUPPLIES & SERVICES,SERVICES,REVENUE
Walsall Council,http://opendatacommunities.org/id/metropolitan-district-council/walsall ,WC160-347,31.03.24,CHILDRENS,ACCESS UK LTD,06/03/2024,"4,810.97",6240-Fees & Licences,SUPPLIES & SERVICES,SERVICES,REVENUE
Walsall Council,http://opendatacommunities.org/id/metropolitan-district-council/walsall ,WC160-348,31.03.24,CHILDRENS,ACCESS UK LTD,06/03/2024,"1,104.60",6240-Fees & Licences,SUPPLIES & SERVICES,SERVICES,REVENUE
Walsall Council,http://opendatacommunities.org/id/metropolitan-district-council/walsall ,WC160-349,31.03.24,ADULT SOCIAL CARE,ACCORD - AGE MATTERS,06/03/2024,-437.50,6553-Direct Payments Support,TRANSFER PAYMENTS,ADULT SOCIAL SERVICES CLIENT,REVENUE
Walsall Council,http://opendatacommunities.org/id/metropolitan-district-council/walsall ,WC160-350,31.03.24,ADULT SOCIAL CARE,ACCORD HOUSING ASSOCIATION LIMITED - HOBS MEADOW,11/03/2024,"4,776.84",6541-Residential,THIRD PARTY PAYMENTS,PRIVATE CONTRACTOR,REVENUE
Walsall Council,http://opendatacommunities.org/id/metropolitan-district-council/walsall ,WC160-351,31.03.24,ADULT SOCIAL CARE,ACCORD HOUSING ASSOCIATION LIMITED - HOBS MEADOW,11/03/2024,"-9,212.48",6541-Residential,THIRD PARTY PAYMENTS,PRIVATE CONTRACTOR,REVENUE
Walsall Council,http://opendatacommunities.org/id/metropolitan-district-council/walsall ,WC160-352,31.03.24,ADULT SOCIAL CARE,ACCORD HOUSING ASSOCIATION LIMITED - HOBS MEADOW,11/03/2024,"4,872.36",6541-Residential,THIRD PARTY PAYMENTS,PRIVATE CONTRACTOR,REVENUE
Walsall Council,http://opendatacommunities.org/id/metropolitan-district-council/walsall ,WC160-353,31.03.24,ADULT SOCIAL CARE,ACCORD HOUSING ASSOCIATION LIMITED - HOBS MEADOW,11/03/2024,"14,095.04",6541-Residential,THIRD PARTY PAYMENTS,PRIVATE CONTRACTOR,REVENUE
Walsall Council,http://opendatacommunities.org/id/metropolitan-district-council/walsall ,WC160-354,31.03.24,CHILDRENS,ACE CARS & MINIBUSES LTD,25/03/2024,"1,605.00",6241-Hire of Vehicle with Driver,TRANSPORT,DIRECT TRANSPORT COSTS,REVENUE
Walsall Council,http://opendatacommunities.org/id/metropolitan-district-council/walsall ,WC160-355,31.03.24,CHILDRENS,ACE CARS & MINIBUSES LTD,25/03/2024,"1,605.00",6241-Hire of Vehicle with Driver,TRANSPORT,DIRECT TRANSPORT COSTS,REVENUE
Walsall Council,http://opendatacommunities.org/id/metropolitan-district-council/walsall ,WC160-356,31.03.24,CHILDRENS,ACE CARS & MINIBUSES LTD,25/03/2024,"1,605.00",6241-Hire of Vehicle with Driver,TRANSPORT,DIRECT TRANSPORT COSTS,REVENUE
Walsall Council,http://opendatacommunities.org/id/metropolitan-district-council/walsall ,WC160-357,31.03.24,CHILDRENS,ACE CARS & MINIBUSES LTD,25/03/2024,"1,605.00",6241-Hire of Vehicle with Driver,TRANSPORT,DIRECT TRANSPORT COSTS,REVENUE
Walsall Council,http://opendatacommunities.org/id/metropolitan-district-council/walsall ,WC160-358,31.03.24,CHILDRENS,ACE CARS & MINIBUSES LTD,25/03/2024,"1,770.00",6241-Hire of Vehicle with Driver,TRANSPORT,DIRECT TRANSPORT COSTS,REVENUE
Walsall Council,http://opendatacommunities.org/id/metropolitan-district-council/walsall ,WC160-359,31.03.24,CHILDRENS,ACE CARS & MINIBUSES LTD,25/03/2024,"2,377.50",6241-Hire of Vehicle with Driver,TRANSPORT,DIRECT TRANSPORT COSTS,REVENUE
Walsall Council,http://opendatacommunities.org/id/metropolitan-district-council/walsall ,WC160-360,31.03.24,CHILDRENS,ACE CARS & MINIBUSES LTD,25/03/2024,"2,542.50",6241-Hire of Vehicle with Driver,TRANSPORT,DIRECT TRANSPORT COSTS,REVENUE
Walsall Council,http://opendatacommunities.org/id/metropolitan-district-council/walsall ,WC160-361,31.03.24,CHILDRENS,ACE CARS & MINIBUSES LTD,25/03/2024,"1,792.50",6241-Hire of Vehicle with Driver,TRANSPORT,DIRECT TRANSPORT COSTS,REVENUE
Walsall Council,http://opendatacommunities.org/id/metropolitan-district-council/walsall ,WC160-362,31.03.24,CHILDRENS,ACE CARS & MINIBUSES LTD,25/03/2024,"7,057.67",6241-Hire of Vehicle with Driver,TRANSPORT,DIRECT TRANSPORT COSTS,REVENUE
Walsall Council,http://opendatacommunities.org/id/metropolitan-district-council/walsall ,WC160-363,31.03.24,CHILDRENS,ACE CARS & MINIBUSES LTD,25/03/2024,"1,905.40",6241-Hire of Vehicle with Driver,TRANSPORT,DIRECT TRANSPORT COSTS,REVENUE
Walsall Council,http://opendatacommunities.org/id/metropolitan-district-council/walsall ,WC160-364,31.03.24,CHILDRENS,ACE CARS & MINIBUSES LTD,25/03/2024,"1,905.40",6241-Hire of Vehicle with Driver,TRANSPORT,DIRECT TRANSPORT COSTS,REVENUE
Walsall Council,http://opendatacommunities.org/id/metropolitan-district-council/walsall ,WC160-365,31.03.24,CHILDRENS,ACE CARS & MINIBUSES LTD,25/03/2024,"1,770.00",6241-Hire of Vehicle with Driver,TRANSPORT,DIRECT TRANSPORT COSTS,REVENUE
Walsall Council,http://opendatacommunities.org/id/metropolitan-district-council/walsall ,WC160-366,31.03.24,CHILDRENS,ACE CARS & MINIBUSES LTD,25/03/2024,"2,017.80",6241-Hire of Vehicle with Driver,TRANSPORT,DIRECT TRANSPORT COSTS,REVENUE
Walsall Council,http://opendatacommunities.org/id/metropolitan-district-council/walsall ,WC160-367,31.03.24,CHILDRENS,ACE CARS & MINIBUSES LTD,25/03/2024,"1,876.20",6241-Hire of Vehicle with Driver,TRANSPORT,DIRECT TRANSPORT COSTS,REVENUE
Walsall Council,http://opendatacommunities.org/id/metropolitan-district-council/walsall ,WC160-368,31.03.24,CHILDRENS,ACE CARS & MINIBUSES LTD,25/03/2024,"1,710.00",6241-Hire of Vehicle with Driver,TRANSPORT,DIRECT TRANSPORT COSTS,REVENUE
Walsall Council,http://opendatacommunities.org/id/metropolitan-district-council/walsall ,WC160-369,31.03.24,CHILDRENS,ACE CARS & MINIBUSES LTD,25/03/2024,"1,770.00",6241-Hire of Vehicle with Driver,TRANSPORT,DIRECT TRANSPORT COSTS,REVENUE
Walsall Council,http://opendatacommunities.org/id/metropolitan-district-council/walsall ,WC160-370,31.03.24,CHILDRENS,ACE CARS & MINIBUSES LTD,25/03/2024,"2,648.66",6241-Hire of Vehicle with Driver,TRANSPORT,DIRECT TRANSPORT COSTS,REVENUE
Walsall Council,http://opendatacommunities.org/id/metropolitan-district-council/walsall ,WC160-371,31.03.24,CHILDRENS,ACE CARS & MINIBUSES LTD,25/03/2024,"1,905.40",6241-Hire of Vehicle with Driver,TRANSPORT,DIRECT TRANSPORT COSTS,REVENUE
Walsall Council,http://opendatacommunities.org/id/metropolitan-district-council/walsall ,WC160-372,31.03.24,CHILDRENS,ACE CARS & MINIBUSES LTD,25/03/2024,"2,153.06",6241-Hire of Vehicle with Driver,TRANSPORT,DIRECT TRANSPORT COSTS,REVENUE
Walsall Council,http://opendatacommunities.org/id/metropolitan-district-council/walsall ,WC160-373,31.03.24,CHILDRENS,ACE CARS & MINIBUSES LTD,25/03/2024,"1,557.60",6241-Hire of Vehicle with Driver,TRANSPORT,DIRECT TRANSPORT COSTS,REVENUE
Walsall Council,http://opendatacommunities.org/id/metropolitan-district-council/walsall ,WC160-374,31.03.24,CHILDRENS,ACE CARS & MINIBUSES LTD,25/03/2024,"1,710.00",6241-Hire of Vehicle with Driver,TRANSPORT,DIRECT TRANSPORT COSTS,REVENUE
Walsall Council,http://opendatacommunities.org/id/metropolitan-district-council/walsall ,WC160-375,31.03.24,CHILDRENS,ACE CARS & MINIBUSES LTD,25/03/2024,"2,326.00",6241-Hire of Vehicle with Driver,TRANSPORT,DIRECT TRANSPORT COSTS,REVENUE
Walsall Council,http://opendatacommunities.org/id/metropolitan-district-council/walsall ,WC160-376,31.03.24,CHILDRENS,ACE CARS & MINIBUSES LTD,25/03/2024,"1,792.50",6241-Hire of Vehicle with Driver,TRANSPORT,DIRECT TRANSPORT COSTS,REVENUE
Walsall Council,http://opendatacommunities.org/id/metropolitan-district-council/walsall ,WC160-377,31.03.24,CHILDRENS,ACE CARS & MINIBUSES LTD,25/03/2024,"1,605.00",6241-Hire of Vehicle with Driver,TRANSPORT,DIRECT TRANSPORT COSTS,REVENUE
Walsall Council,http://opendatacommunities.org/id/metropolitan-district-council/walsall ,WC160-378,31.03.24,CHILDRENS,ACE CARS & MINIBUSES LTD,25/03/2024,"1,605.00",6241-Hire of Vehicle with Driver,TRANSPORT,DIRECT TRANSPORT COSTS,REVENUE
Walsall Council,http://opendatacommunities.org/id/metropolitan-district-council/walsall ,WC160-379,31.03.24,CHILDRENS,ACE CARS & MINIBUSES LTD,25/03/2024,"1,770.00",6241-Hire of Vehicle with Driver,TRANSPORT,DIRECT TRANSPORT COSTS,REVENUE
Walsall Council,http://opendatacommunities.org/id/metropolitan-district-council/walsall ,WC160-380,31.03.24,CHILDRENS,ACE CARS & MINIBUSES LTD,25/03/2024,"2,545.35",6241-Hire of Vehicle with Driver,TRANSPORT,DIRECT TRANSPORT COSTS,REVENUE
Walsall Council,http://opendatacommunities.org/id/metropolitan-district-council/walsall ,WC160-381,31.03.24,CHILDRENS,ACE CARS & MINIBUSES LTD,25/03/2024,"1,792.50",6241-Hire of Vehicle with Driver,TRANSPORT,DIRECT TRANSPORT COSTS,REVENUE
Walsall Council,http://opendatacommunities.org/id/metropolitan-district-council/walsall ,WC160-382,31.03.24,CHILDRENS,ACE CARS & MINIBUSES LTD,25/03/2024,"1,710.00",6241-Hire of Vehicle with Driver,TRANSPORT,DIRECT TRANSPORT COSTS,REVENUE
Walsall Council,http://opendatacommunities.org/id/metropolitan-district-council/walsall ,WC160-383,31.03.24,CHILDRENS,ACE CARS & MINIBUSES LTD,25/03/2024,"1,605.00",6241-Hire of Vehicle with Driver,TRANSPORT,DIRECT TRANSPORT COSTS,REVENUE
Walsall Council,http://opendatacommunities.org/id/metropolitan-district-council/walsall ,WC160-384,31.03.24,CHILDRENS,ACE CARS & MINIBUSES LTD,25/03/2024,"1,605.00",6241-Hire of Vehicle with Driver,TRANSPORT,DIRECT TRANSPORT COSTS,REVENUE
Walsall Council,http://opendatacommunities.org/id/metropolitan-district-council/walsall ,WC160-385,31.03.24,CHILDRENS,ACE CARS & MINIBUSES LTD,25/03/2024,"3,186.00",6241-Hire of Vehicle with Driver,TRANSPORT,DIRECT TRANSPORT COSTS,REVENUE
Walsall Council,http://opendatacommunities.org/id/metropolitan-district-council/walsall ,WC160-386,31.03.24,CHILDRENS,ACE CARS & MINIBUSES LTD,25/03/2024,"1,605.00",6241-Hire of Vehicle with Driver,TRANSPORT,DIRECT TRANSPORT COSTS,REVENUE
Walsall Council,http://opendatacommunities.org/id/metropolitan-district-council/walsall ,WC160-387,31.03.24,CHILDRENS,ACE CARS & MINIBUSES LTD,25/03/2024,"1,605.00",6241-Hire of Vehicle with Driver,TRANSPORT,DIRECT TRANSPORT COSTS,REVENUE
Walsall Council,http://opendatacommunities.org/id/metropolitan-district-council/walsall ,WC160-388,31.03.24,CHILDRENS,ACE CARS & MINIBUSES LTD,25/03/2024,"1,605.00",6241-Hire of Vehicle with Driver,TRANSPORT,DIRECT TRANSPORT COSTS,REVENUE
Walsall Council,http://opendatacommunities.org/id/metropolitan-district-council/walsall ,WC160-389,31.03.24,CHILDRENS,ACE CARS & MINIBUSES LTD,25/03/2024,"1,770.00",6241-Hire of Vehicle with Driver,TRANSPORT,DIRECT TRANSPORT COSTS,REVENUE
Walsall Council,http://opendatacommunities.org/id/metropolitan-district-council/walsall ,WC160-390,31.03.24,CHILDRENS,ACE CARS & MINIBUSES LTD,25/03/2024,"1,905.40",6241-Hire of Vehicle with Driver,TRANSPORT,DIRECT TRANSPORT COSTS,REVENUE
Walsall Council,http://opendatacommunities.org/id/metropolitan-district-council/walsall ,WC160-391,31.03.24,CHILDRENS,ACE CARS & MINIBUSES LTD,25/03/2024,"1,905.40",6241-Hire of Vehicle with Driver,TRANSPORT,DIRECT TRANSPORT COSTS,REVENUE
Walsall Council,http://opendatacommunities.org/id/metropolitan-district-council/walsall ,WC160-392,31.03.24,CHILDRENS,ACE CARS & MINIBUSES LTD,25/03/2024,"1,905.40",6241-Hire of Vehicle with Driver,TRANSPORT,DIRECT TRANSPORT COSTS,REVENUE
Walsall Council,http://opendatacommunities.org/id/metropolitan-district-council/walsall ,WC160-393,31.03.24,CHILDRENS,ACE CARS & MINIBUSES LTD,25/03/2024,"2,886.00",6241-Hire of Vehicle with Driver,TRANSPORT,DIRECT TRANSPORT COSTS,REVENUE
Walsall Council,http://opendatacommunities.org/id/metropolitan-district-council/walsall ,WC160-394,31.03.24,CHILDRENS,ACE COACHING LIMITED,19/03/2024,"2,108.00",6211-Professional Fees & Services,SUPPLIES & SERVICES,SERVICES,REVENUE
Walsall Council,http://opendatacommunities.org/id/metropolitan-district-council/walsall ,WC160-395,31.03.24,ADULT SOCIAL CARE,ACEPAY LTD (COTTAGE NUR HOME),11/03/2024,"2,505.36",6541-Nursing,THIRD PARTY PAYMENTS,PRIVATE CONTRACTOR,REVENUE
Walsall Council,http://opendatacommunities.org/id/metropolitan-district-council/walsall ,WC160-396,31.03.24,ADULT SOCIAL CARE,ACEPAY LTD (COTTAGE NUR HOME),11/03/2024,"2,505.36",6541-Nursing,THIRD PARTY PAYMENTS,PRIVATE CONTRACTOR,REVENUE
Walsall Council,http://opendatacommunities.org/id/metropolitan-district-council/walsall ,WC160-397,31.03.24,ADULT SOCIAL CARE,ACEPAY LTD (COTTAGE NUR HOME),11/03/2024,"2,413.36",6541-Residential EMI,THIRD PARTY PAYMENTS,PRIVATE CONTRACTOR,REVENUE
Walsall Council,http://opendatacommunities.org/id/metropolitan-district-council/walsall ,WC160-398,31.03.24,ADULT SOCIAL CARE,ACEPAY LTD (COTTAGE NUR HOME),11/03/2024,"2,505.36",6541-Nursing,THIRD PARTY PAYMENTS,PRIVATE CONTRACTOR,REVENUE
Walsall Council,http://opendatacommunities.org/id/metropolitan-district-council/walsall ,WC160-399,31.03.24,ADULT SOCIAL CARE,ACEPAY LTD (COTTAGE NUR HOME),11/03/2024,"2,505.36",6541-Nursing,THIRD PARTY PAYMENTS,PRIVATE CONTRACTOR,REVENUE
Walsall Council,http://opendatacommunities.org/id/metropolitan-district-council/walsall ,WC160-400,31.03.24,ADULT SOCIAL CARE,ACEPAY LTD (COTTAGE NUR HOME),11/03/2024,"2,505.36",6541-Nursing,THIRD PARTY PAYMENTS,PRIVATE CONTRACTOR,REVENUE
Walsall Council,http://opendatacommunities.org/id/metropolitan-district-council/walsall ,WC160-401,31.03.24,ADULT SOCIAL CARE,ACEPAY LTD (COTTAGE NUR HOME),11/03/2024,"2,505.36",6541-Nursing,THIRD PARTY PAYMENTS,PRIVATE CONTRACTOR,REVENUE
Walsall Council,http://opendatacommunities.org/id/metropolitan-district-council/walsall ,WC160-402,31.03.24,ADULT SOCIAL CARE,ACEPAY LTD (COTTAGE NUR HOME),11/03/2024,"2,505.36",6541-Nursing,THIRD PARTY PAYMENTS,PRIVATE CONTRACTOR,REVENUE
Walsall Council,http://opendatacommunities.org/id/metropolitan-district-council/walsall ,WC160-403,31.03.24,ADULT SOCIAL CARE,ACEPAY LTD (COTTAGE NUR HOME),11/03/2024,"3,059.08",6541-Nursing EMI,THIRD PARTY PAYMENTS,PRIVATE CONTRACTOR,REVENUE
Walsall Council,http://opendatacommunities.org/id/metropolitan-district-council/walsall ,WC160-404,31.03.24,ADULT SOCIAL CARE,ACEPAY LTD (COTTAGE NUR HOME),11/03/2024,"2,505.36",6541-Nursing,THIRD PARTY PAYMENTS,PRIVATE CONTRACTOR,REVENUE
Walsall Council,http://opendatacommunities.org/id/metropolitan-district-council/walsall ,WC160-405,31.03.24,ADULT SOCIAL CARE,ACEPAY LTD (COTTAGE NUR HOME),11/03/2024,"2,505.36",6541-Nursing,THIRD PARTY PAYMENTS,PRIVATE CONTRACTOR,REVENUE
Walsall Council,http://opendatacommunities.org/id/metropolitan-district-council/walsall ,WC160-406,31.03.24,ADULT SOCIAL CARE,ACEPAY LTD (COTTAGE NUR HOME),11/03/2024,"2,819.08",6541-Nursing EMI,THIRD PARTY PAYMENTS,PRIVATE CONTRACTOR,REVENUE
Walsall Council,http://opendatacommunities.org/id/metropolitan-district-council/walsall ,WC160-407,31.03.24,ADULT SOCIAL CARE,ACEPAY LTD (COTTAGE NUR HOME),11/03/2024,"2,505.36",6541-Nursing,THIRD PARTY PAYMENTS,PRIVATE CONTRACTOR,REVENUE
Walsall Council,http://opendatacommunities.org/id/metropolitan-district-council/walsall ,WC160-408,31.03.24,ADULT SOCIAL CARE,ACEPAY LTD (COTTAGE NUR HOME),11/03/2024,"2,505.36",6541-Nursing,THIRD PARTY PAYMENTS,PRIVATE CONTRACTOR,REVENUE
Walsall Council,http://opendatacommunities.org/id/metropolitan-district-council/walsall ,WC160-409,31.03.24,ADULT SOCIAL CARE,ACEPAY LTD (COTTAGE NUR HOME),11/03/2024,"2,114.31",6541-Nursing EMI,THIRD PARTY PAYMENTS,PRIVATE CONTRACTOR,REVENUE
Walsall Council,http://opendatacommunities.org/id/metropolitan-district-council/walsall ,WC160-410,31.03.24,ADULT SOCIAL CARE,ACEPAY LTD (COTTAGE NUR HOME),11/03/2024,"2,413.36",6541-Residential EMI,THIRD PARTY PAYMENTS,PRIVATE CONTRACTOR,REVENUE
Walsall Council,http://opendatacommunities.org/id/metropolitan-district-council/walsall ,WC160-411,31.03.24,ADULT SOCIAL CARE,ACEPAY LTD (COTTAGE NUR HOME),11/03/2024,"2,819.08",6541-Nursing EMI,THIRD PARTY PAYMENTS,PRIVATE CONTRACTOR,REVENUE
Walsall Council,http://opendatacommunities.org/id/metropolitan-district-council/walsall ,WC160-412,31.03.24,ADULT SOCIAL CARE,ACEPAY LTD (COTTAGE NUR HOME),11/03/2024,"2,413.36",6541-Residential EMI,THIRD PARTY PAYMENTS,PRIVATE CONTRACTOR,REVENUE
Walsall Council,http://opendatacommunities.org/id/metropolitan-district-council/walsall ,WC160-413,31.03.24,ADULT SOCIAL CARE,ACEPAY LTD (COTTAGE NUR HOME),11/03/2024,"2,413.36",6541-Residential EMI,THIRD PARTY PAYMENTS,PRIVATE CONTRACTOR,REVENUE
Walsall Council,http://opendatacommunities.org/id/metropolitan-district-council/walsall ,WC160-414,31.03.24,ADULT SOCIAL CARE,ACEPAY LTD (COTTAGE NUR HOME),11/03/2024,"2,819.08",6541-Nursing EMI,THIRD PARTY PAYMENTS,PRIVATE CONTRACTOR,REVENUE
Walsall Council,http://opendatacommunities.org/id/metropolitan-district-council/walsall ,WC160-415,31.03.24,ADULT SOCIAL CARE,ACEPAY LTD (COTTAGE NUR HOME),11/03/2024,"2,819.08",6541-Nursing EMI,THIRD PARTY PAYMENTS,PRIVATE CONTRACTOR,REVENUE
Walsall Council,http://opendatacommunities.org/id/metropolitan-district-council/walsall ,WC160-416,31.03.24,ADULT SOCIAL CARE,ACEPAY LTD (COTTAGE NUR HOME),11/03/2024,"2,819.08",6541-Nursing EMI,THIRD PARTY PAYMENTS,PRIVATE CONTRACTOR,REVENUE
Walsall Council,http://opendatacommunities.org/id/metropolitan-district-council/walsall ,WC160-417,31.03.24,ADULT SOCIAL CARE,ACEPAY LTD (COTTAGE NUR HOME),11/03/2024,"2,505.36",6541-Nursing,THIRD PARTY PAYMENTS,PRIVATE CONTRACTOR,REVENUE
Walsall Council,http://opendatacommunities.org/id/metropolitan-district-council/walsall ,WC160-418,31.03.24,ADULT SOCIAL CARE,ACHIEVE TOGETHER LIMITED,11/03/2024,"3,852.80",6541-Residential,THIRD PARTY PAYMENTS,PRIVATE CONTRACTOR,REVENUE
Walsall Council,http://opendatacommunities.org/id/metropolitan-district-council/walsall ,WC160-419,31.03.24,ADULT SOCIAL CARE,ACHIEVE TOGETHER LIMITED,11/03/2024,"4,920.72",6541-Residential,THIRD PARTY PAYMENTS,PRIVATE CONTRACTOR,REVENUE
Walsall Council,http://opendatacommunities.org/id/metropolitan-district-council/walsall ,WC160-420,31.03.24,ADULT SOCIAL CARE,ACHIEVE TOGETHER LIMITED,11/03/2024,"6,572.72",6541-Residential,THIRD PARTY PAYMENTS,PRIVATE CONTRACTOR,REVENUE
Walsall Council,http://opendatacommunities.org/id/metropolitan-district-council/walsall ,WC160-421,31.03.24,ADULT SOCIAL CARE,ACHIEVE TOGETHER LIMITED,11/03/2024,"5,506.08",6541-Residential,THIRD PARTY PAYMENTS,PRIVATE CONTRACTOR,REVENUE
Walsall Council,http://opendatacommunities.org/id/metropolitan-district-council/walsall ,WC160-422,31.03.24,ADULT SOCIAL CARE,ACHIEVE TOGETHER LIMITED,11/03/2024,"9,178.80",6541-Residential,THIRD PARTY PAYMENTS,PRIVATE CONTRACTOR,REVENUE
Walsall Council,http://opendatacommunities.org/id/metropolitan-district-council/walsall ,WC160-423,31.03.24,CHILDRENS,ACORN CARE & EDUCATION LTD (SALES),22/03/2024,485.00,1220-Top Up Funding -Grants to Schools,SUPPLIES & SERVICES,GRANTS (EXP) & SUBSCRIPTIONS,REVENUE
Walsall Council,http://opendatacommunities.org/id/metropolitan-district-council/walsall ,WC160-424,31.03.24,CHILDRENS,ACORN CARE & EDUCATION LTD (SALES),22/03/2024,485.00,1220-Top Up Funding -Grants to Schools,SUPPLIES & SERVICES,GRANTS (EXP) & SUBSCRIPTIONS,REVENUE
Walsall Council,http://opendatacommunities.org/id/metropolitan-district-council/walsall ,WC160-425,31.03.24,CHILDRENS,ACORN CARE & EDUCATION LTD (SALES),14/03/2024,592.85,1220-Top Up Funding -Grants to Schools,SUPPLIES & SERVICES,GRANTS (EXP) & SUBSCRIPTIONS,REVENUE
Walsall Council,http://opendatacommunities.org/id/metropolitan-district-council/walsall ,WC160-426,31.03.24,CHILDRENS,ACORN CARE & EDUCATION LTD (SALES),14/03/2024,587.99,1220-Top Up Funding -Grants to Schools,SUPPLIES & SERVICES,GRANTS (EXP) & SUBSCRIPTIONS,REVENUE
Walsall Council,http://opendatacommunities.org/id/metropolitan-district-council/walsall ,WC160-427,31.03.24,CHILDRENS,ACORN CARE & EDUCATION LTD (SALES),21/03/2024,534.10,1220-Top Up Funding -Grants to Schools,SUPPLIES & SERVICES,GRANTS (EXP) & SUBSCRIPTIONS,REVENUE
Walsall Council,http://opendatacommunities.org/id/metropolitan-district-council/walsall ,WC160-428,31.03.24,CHILDRENS,ACORN CARE & EDUCATION LTD (SALES),21/03/2024,529.72,1220-Top Up Funding -Grants to Schools,SUPPLIES & SERVICES,GRANTS (EXP) & SUBSCRIPTIONS,REVENUE
Walsall Council,http://opendatacommunities.org/id/metropolitan-district-council/walsall ,WC160-429,31.03.24,CHILDRENS,ACORN CARE & EDUCATION LTD (SALES),21/03/2024,534.10,1220-Top Up Funding -Grants to Schools,SUPPLIES & SERVICES,GRANTS (EXP) & SUBSCRIPTIONS,REVENUE
Walsall Council,http://opendatacommunities.org/id/metropolitan-district-council/walsall ,WC160-430,31.03.24,CHILDRENS,ACORN CARE & EDUCATION LTD (SALES),21/03/2024,529.72,1220-Top Up Funding -Grants to Schools,SUPPLIES & SERVICES,GRANTS (EXP) & SUBSCRIPTIONS,REVENUE
Walsall Council,http://opendatacommunities.org/id/metropolitan-district-council/walsall ,WC160-431,31.03.24,CHILDRENS,ACORN CARE & EDUCATION LTD (SALES),21/03/2024,550.00,1220-Top Up Funding -Grants to Schools,SUPPLIES & SERVICES,GRANTS (EXP) & SUBSCRIPTIONS,REVENUE
Walsall Council,http://opendatacommunities.org/id/metropolitan-district-council/walsall ,WC160-432,31.03.24,CHILDRENS,ACORN CARE & EDUCATION LTD (SALES),21/03/2024,545.49,1220-Top Up Funding -Grants to Schools,SUPPLIES & SERVICES,GRANTS (EXP) & SUBSCRIPTIONS,REVENUE
Walsall Council,http://opendatacommunities.org/id/metropolitan-district-council/walsall ,WC160-433,31.03.24,CHILDRENS,ACORN CARE & EDUCATION LTD (SALES),21/03/2024,741.15,1220-Top Up Funding -Grants to Schools,SUPPLIES & SERVICES,GRANTS (EXP) & SUBSCRIPTIONS,REVENUE
Walsall Council,http://opendatacommunities.org/id/metropolitan-district-council/walsall ,WC160-434,31.03.24,CHILDRENS,ACORN CARE & EDUCATION LTD (SALES),21/03/2024,735.07,1220-Top Up Funding -Grants to Schools,SUPPLIES & SERVICES,GRANTS (EXP) & SUBSCRIPTIONS,REVENUE
Walsall Council,http://opendatacommunities.org/id/metropolitan-district-council/walsall ,WC160-435,31.03.24,CHILDRENS,ACORN CARE & EDUCATION LTD (SALES),21/03/2024,889.55,1220-Top Up Funding -Grants to Schools,SUPPLIES & SERVICES,GRANTS (EXP) & SUBSCRIPTIONS,REVENUE
Walsall Council,http://opendatacommunities.org/id/metropolitan-district-council/walsall ,WC160-436,31.03.24,CHILDRENS,ACORN CARE & EDUCATION LTD (SALES),21/03/2024,882.26,1220-Top Up Funding -Grants to Schools,SUPPLIES & SERVICES,GRANTS (EXP) & SUBSCRIPTIONS,REVENUE
Walsall Council,http://opendatacommunities.org/id/metropolitan-district-council/walsall ,WC160-437,31.03.24,CHILDRENS,ACORN CARE & EDUCATION LTD (SALES),21/03/2024,801.40,1220-Top Up Funding -Grants to Schools,SUPPLIES & SERVICES,GRANTS (EXP) & SUBSCRIPTIONS,REVENUE
Walsall Council,http://opendatacommunities.org/id/metropolitan-district-council/walsall ,WC160-438,31.03.24,CHILDRENS,ACORN CARE & EDUCATION LTD (SALES),21/03/2024,794.83,1220-Top Up Funding -Grants to Schools,SUPPLIES & SERVICES,GRANTS (EXP) & SUBSCRIPTIONS,REVENUE
Walsall Council,http://opendatacommunities.org/id/metropolitan-district-council/walsall ,WC160-439,31.03.24,CHILDRENS,ACORN CARE & EDUCATION LTD (SALES),22/03/2024,534.10,1220-Top Up Funding -Grants to Schools,SUPPLIES & SERVICES,GRANTS (EXP) & SUBSCRIPTIONS,REVENUE
Walsall Council,http://opendatacommunities.org/id/metropolitan-district-council/walsall ,WC160-440,31.03.24,CHILDRENS,ACORN CARE & EDUCATION LTD (SALES),21/03/2024,592.85,1220-Top Up Funding -Grants to Schools,SUPPLIES & SERVICES,GRANTS (EXP) & SUBSCRIPTIONS,REVENUE
Walsall Council,http://opendatacommunities.org/id/metropolitan-district-council/walsall ,WC160-441,31.03.24,CHILDRENS,ACORN CARE & EDUCATION LTD (SALES),21/03/2024,587.99,1220-Top Up Funding -Grants to Schools,SUPPLIES & SERVICES,GRANTS (EXP) & SUBSCRIPTIONS,REVENUE
Walsall Council,http://opendatacommunities.org/id/metropolitan-district-council/walsall ,WC160-442,31.03.24,CHILDRENS,ACORN CARE & EDUCATION LTD (SALES),21/03/2024,592.85,1220-Top Up Funding -Grants to Schools,SUPPLIES & SERVICES,GRANTS (EXP) & SUBSCRIPTIONS,REVENUE
Walsall Council,http://opendatacommunities.org/id/metropolitan-district-council/walsall ,WC160-443,31.03.24,CHILDRENS,ACORN CARE & EDUCATION LTD (SALES),21/03/2024,592.85,1220-Top Up Funding -Grants to Schools,SUPPLIES & SERVICES,GRANTS (EXP) & SUBSCRIPTIONS,REVENUE
Walsall Council,http://opendatacommunities.org/id/metropolitan-district-council/walsall ,WC160-444,31.03.24,CHILDRENS,ACORN CARE & EDUCATION LTD (SALES),21/03/2024,534.10,1220-Top Up Funding -Grants to Schools,SUPPLIES & SERVICES,GRANTS (EXP) & SUBSCRIPTIONS,REVENUE
Walsall Council,http://opendatacommunities.org/id/metropolitan-district-council/walsall ,WC160-445,31.03.24,CHILDRENS,ACORN CARE & EDUCATION LTD (SALES),21/03/2024,534.10,1220-Top Up Funding -Grants to Schools,SUPPLIES & SERVICES,GRANTS (EXP) & SUBSCRIPTIONS,REVENUE
Walsall Council,http://opendatacommunities.org/id/metropolitan-district-council/walsall ,WC160-446,31.03.24,CHILDRENS,ACORN CARE & EDUCATION LTD (SALES),21/03/2024,741.15,1220-Top Up Funding -Grants to Schools,SUPPLIES & SERVICES,GRANTS (EXP) & SUBSCRIPTIONS,REVENUE
Walsall Council,http://opendatacommunities.org/id/metropolitan-district-council/walsall ,WC160-447,31.03.24,CHILDRENS,ACORN CARE & EDUCATION LTD (SALES),21/03/2024,741.15,1220-Top Up Funding -Grants to Schools,SUPPLIES & SERVICES,GRANTS (EXP) & SUBSCRIPTIONS,REVENUE
Walsall Council,http://opendatacommunities.org/id/metropolitan-district-council/walsall ,WC160-448,31.03.24,CHILDRENS,ACORN CARE & EDUCATION LTD (SALES),22/03/2024,592.85,1220-Top Up Funding -Grants to Schools,SUPPLIES & SERVICES,GRANTS (EXP) & SUBSCRIPTIONS,REVENUE
Walsall Council,http://opendatacommunities.org/id/metropolitan-district-council/walsall ,WC160-449,31.03.24,CHILDRENS,ACORN CARE & EDUCATION LTD (SALES),21/03/2024,519.06,1220-Top Up Funding -Grants to Schools,SUPPLIES & SERVICES,GRANTS (EXP) & SUBSCRIPTIONS,REVENUE
Walsall Council,http://opendatacommunities.org/id/metropolitan-district-council/walsall ,WC160-450,31.03.24,CHILDRENS,ACORN CARE & EDUCATION LTD (SALES),21/03/2024,519.06,1220-Top Up Funding -Grants to Schools,SUPPLIES & SERVICES,GRANTS (EXP) & SUBSCRIPTIONS,REVENUE
Walsall Council,http://opendatacommunities.org/id/metropolitan-district-council/walsall ,WC160-451,31.03.24,CHILDRENS,ACORN CARE & EDUCATION LTD (SALES),21/03/2024,667.70,1220-Top Up Funding -Grants to Schools,SUPPLIES & SERVICES,GRANTS (EXP) & SUBSCRIPTIONS,REVENUE
Walsall Council,http://opendatacommunities.org/id/metropolitan-district-council/walsall ,WC160-452,31.03.24,CHILDRENS,ACORN CARE & EDUCATION LTD (SALES),21/03/2024,667.70,1220-Top Up Funding -Grants to Schools,SUPPLIES & SERVICES,GRANTS (EXP) & SUBSCRIPTIONS,REVENUE
Walsall Council,http://opendatacommunities.org/id/metropolitan-district-council/walsall ,WC160-453,31.03.24,CHILDRENS,ACORN CARE & EDUCATION LTD (SALES),21/03/2024,466.63,1220-Top Up Funding -Grants to Schools,SUPPLIES & SERVICES,GRANTS (EXP) & SUBSCRIPTIONS,REVENUE
Walsall Council,http://opendatacommunities.org/id/metropolitan-district-council/walsall ,WC160-454,31.03.24,CHILDRENS,ACORN CARE & EDUCATION LTD (SALES),21/03/2024,466.63,1220-Top Up Funding -Grants to Schools,SUPPLIES & SERVICES,GRANTS (EXP) & SUBSCRIPTIONS,REVENUE
Walsall Council,http://opendatacommunities.org/id/metropolitan-district-council/walsall ,WC160-455,31.03.24,CHILDRENS,ACORN CARE & EDUCATION LTD (SALES),21/03/2024,778.80,1220-Top Up Funding -Grants to Schools,SUPPLIES & SERVICES,GRANTS (EXP) & SUBSCRIPTIONS,REVENUE
Walsall Council,http://opendatacommunities.org/id/metropolitan-district-council/walsall ,WC160-456,31.03.24,CHILDRENS,ACORN CARE & EDUCATION LTD (SALES),21/03/2024,778.80,1220-Top Up Funding -Grants to Schools,SUPPLIES & SERVICES,GRANTS (EXP) & SUBSCRIPTIONS,REVENUE
Walsall Council,http://opendatacommunities.org/id/metropolitan-district-council/walsall ,WC160-457,31.03.24,CHILDRENS,ACORN CARE & EDUCATION LTD (SALES),21/03/2024,519.06,1220-Top Up Funding -Grants to Schools,SUPPLIES & SERVICES,GRANTS (EXP) & SUBSCRIPTIONS,REVENUE
Walsall Council,http://opendatacommunities.org/id/metropolitan-district-council/walsall ,WC160-458,31.03.24,CHILDRENS,ACORN CARE & EDUCATION LTD (SALES),21/03/2024,519.06,1220-Top Up Funding -Grants to Schools,SUPPLIES & SERVICES,GRANTS (EXP) & SUBSCRIPTIONS,REVENUE
Walsall Council,http://opendatacommunities.org/id/metropolitan-district-council/walsall ,WC160-459,31.03.24,CHILDRENS,ACORN CARE & EDUCATION LTD (SALES),21/03/2024,801.40,1220-Top Up Funding -Grants to Schools,SUPPLIES & SERVICES,GRANTS (EXP) & SUBSCRIPTIONS,REVENUE
Walsall Council,http://opendatacommunities.org/id/metropolitan-district-council/walsall ,WC160-460,31.03.24,CHILDRENS,ACORN CARE & EDUCATION LTD (SALES),21/03/2024,801.40,1220-Top Up Funding -Grants to Schools,SUPPLIES & SERVICES,GRANTS (EXP) & SUBSCRIPTIONS,REVENUE
Walsall Council,http://opendatacommunities.org/id/metropolitan-district-council/walsall ,WC160-461,31.03.24,CHILDRENS,ACORN CARE & EDUCATION LTD (SALES),21/03/2024,778.80,1220-Top Up Funding -Grants to Schools,SUPPLIES & SERVICES,GRANTS (EXP) & SUBSCRIPTIONS,REVENUE
Walsall Council,http://opendatacommunities.org/id/metropolitan-district-council/walsall ,WC160-462,31.03.24,CHILDRENS,ACORN CARE & EDUCATION LTD (SALES),21/03/2024,778.80,1220-Top Up Funding -Grants to Schools,SUPPLIES & SERVICES,GRANTS (EXP) & SUBSCRIPTIONS,REVENUE
Walsall Council,http://opendatacommunities.org/id/metropolitan-district-council/walsall ,WC160-463,31.03.24,CHILDRENS,ACORN CARE & EDUCATION LTD (SALES),21/03/2024,800.00,1220-Top Up Funding -Grants to Schools,SUPPLIES & SERVICES,GRANTS (EXP) & SUBSCRIPTIONS,REVENUE
Walsall Council,http://opendatacommunities.org/id/metropolitan-district-council/walsall ,WC160-464,31.03.24,CHILDRENS,ACORN CARE & EDUCATION LTD (SALES),21/03/2024,800.00,1220-Top Up Funding -Grants to Schools,SUPPLIES & SERVICES,GRANTS (EXP) & SUBSCRIPTIONS,REVENUE
Walsall Council,http://opendatacommunities.org/id/metropolitan-district-council/walsall ,WC160-465,31.03.24,CHILDRENS,ACORN CARE & EDUCATION LTD (SALES),21/03/2024,681.32,1220-Top Up Funding -Grants to Schools,SUPPLIES & SERVICES,GRANTS (EXP) & SUBSCRIPTIONS,REVENUE
Walsall Council,http://opendatacommunities.org/id/metropolitan-district-council/walsall ,WC160-466,31.03.24,CHILDRENS,ACORN CARE & EDUCATION LTD (SALES),21/03/2024,681.32,1220-Top Up Funding -Grants to Schools,SUPPLIES & SERVICES,GRANTS (EXP) & SUBSCRIPTIONS,REVENUE
Walsall Council,http://opendatacommunities.org/id/metropolitan-district-council/walsall ,WC160-467,31.03.24,CHILDRENS,ACORN CARE & EDUCATION LTD (SALES),22/03/2024,"6,389.17",1220-Professional Fees & Services,SUPPLIES & SERVICES,SERVICES,REVENUE
Walsall Council,http://opendatacommunities.org/id/metropolitan-district-council/walsall ,WC160-468,31.03.24,CHILDRENS,ACORN CARE & EDUCATION LTD (SALES),22/03/2024,"16,486.86",1220-Professional Fees & Services,SUPPLIES & SERVICES,SERVICES,REVENUE
Walsall Council,http://opendatacommunities.org/id/metropolitan-district-council/walsall ,WC160-469,31.03.24,CHILDRENS,ACORN CARE & EDUCATION LTD (SALES),21/03/2024,"6,389.17",1220-Professional Fees & Services,SUPPLIES & SERVICES,SERVICES,REVENUE
Walsall Council,http://opendatacommunities.org/id/metropolitan-district-council/walsall ,WC160-470,31.03.24,CHILDRENS,ACORN CARE & EDUCATION LTD (SALES),25/03/2024,"15,554.33",1220-Top Up Funding -Grants to Schools,SUPPLIES & SERVICES,GRANTS (EXP) & SUBSCRIPTIONS,REVENUE
Walsall Council,http://opendatacommunities.org/id/metropolitan-district-council/walsall ,WC160-471,31.03.24,CHILDRENS,ACORN CARE & EDUCATION LTD (SALES),25/03/2024,"25,960.00",1220-Top Up Funding -Grants to Schools,SUPPLIES & SERVICES,GRANTS (EXP) & SUBSCRIPTIONS,REVENUE
Walsall Council,http://opendatacommunities.org/id/metropolitan-district-council/walsall ,WC160-472,31.03.24,CHILDRENS,ACORN CARE & EDUCATION LTD (SALES),25/03/2024,"17,302.00",1220-Top Up Funding -Grants to Schools,SUPPLIES & SERVICES,GRANTS (EXP) & SUBSCRIPTIONS,REVENUE
Walsall Council,http://opendatacommunities.org/id/metropolitan-district-council/walsall ,WC160-473,31.03.24,CHILDRENS,ACORN CARE & EDUCATION LTD (SALES),25/03/2024,"19,226.67",1220-Top Up Funding -Grants to Schools,SUPPLIES & SERVICES,GRANTS (EXP) & SUBSCRIPTIONS,REVENUE
Walsall Council,http://opendatacommunities.org/id/metropolitan-district-council/walsall ,WC160-474,31.03.24,CHILDRENS,ACORN CARE & EDUCATION LTD (SALES),25/03/2024,"19,761.67",1220-Top Up Funding -Grants to Schools,SUPPLIES & SERVICES,GRANTS (EXP) & SUBSCRIPTIONS,REVENUE
Walsall Council,http://opendatacommunities.org/id/metropolitan-district-council/walsall ,WC160-475,31.03.24,CHILDRENS,ACORN CARE & EDUCATION LTD (SALES),25/03/2024,"17,803.33",1220-Top Up Funding -Grants to Schools,SUPPLIES & SERVICES,GRANTS (EXP) & SUBSCRIPTIONS,REVENUE
Walsall Council,http://opendatacommunities.org/id/metropolitan-district-council/walsall ,WC160-476,31.03.24,CHILDRENS,ACORN CARE & EDUCATION LTD (SALES),25/03/2024,"24,705.00",1220-Professional Fees & Services,SUPPLIES & SERVICES,SERVICES,REVENUE
Walsall Council,http://opendatacommunities.org/id/metropolitan-district-council/walsall ,WC160-477,31.03.24,CHILDRENS,ACORN CARE & EDUCATION LTD (SALES),25/03/2024,"17,302.00",1220-Professional Fees & Services,SUPPLIES & SERVICES,SERVICES,REVENUE
Walsall Council,http://opendatacommunities.org/id/metropolitan-district-council/walsall ,WC160-478,31.03.24,CHILDRENS,ACORN CARE & EDUCATION LTD (SALES),22/03/2024,"16,486.87",1220-Professional Fees & Services,SUPPLIES & SERVICES,SERVICES,REVENUE
Walsall Council,http://opendatacommunities.org/id/metropolitan-district-council/walsall ,WC160-479,31.03.24,CHILDRENS,ACORN CARE & EDUCATION LTD (SALES),25/03/2024,"24,705.00",1220-Professional Fees & Services,SUPPLIES & SERVICES,SERVICES,REVENUE
Walsall Council,http://opendatacommunities.org/id/metropolitan-district-council/walsall ,WC160-480,31.03.24,CHILDRENS,ACORN CARE & EDUCATION LTD (SALES),25/03/2024,"16,166.67",1220-Professional Fees & Services,SUPPLIES & SERVICES,SERVICES,REVENUE
Walsall Council,http://opendatacommunities.org/id/metropolitan-district-council/walsall ,WC160-481,31.03.24,CHILDRENS,ACORN CARE & EDUCATION LTD (SALES),25/03/2024,"27,653.67",1220-Professional Fees & Services,SUPPLIES & SERVICES,SERVICES,REVENUE
Walsall Council,http://opendatacommunities.org/id/metropolitan-district-council/walsall ,WC160-482,31.03.24,CHILDRENS,ACORN CARE & EDUCATION LTD (SALES),25/03/2024,"26,713.33",1220-Top Up Funding -Grants to Schools,SUPPLIES & SERVICES,GRANTS (EXP) & SUBSCRIPTIONS,REVENUE
Walsall Council,http://opendatacommunities.org/id/metropolitan-district-council/walsall ,WC160-483,31.03.24,CHILDRENS,ACORN CARE & EDUCATION LTD (SALES),25/03/2024,"19,923.64",1220-Top Up Funding -Grants to Schools,SUPPLIES & SERVICES,GRANTS (EXP) & SUBSCRIPTIONS,REVENUE
Walsall Council,http://opendatacommunities.org/id/metropolitan-district-council/walsall ,WC160-484,31.03.24,CHILDRENS,ACORN CARE & EDUCATION LTD (SALES),25/03/2024,"17,949.26",1220-Top Up Funding -Grants to Schools,SUPPLIES & SERVICES,GRANTS (EXP) & SUBSCRIPTIONS,REVENUE
Walsall Council,http://opendatacommunities.org/id/metropolitan-district-council/walsall ,WC160-485,31.03.24,CHILDRENS,ACORN CARE & EDUCATION LTD (SALES),25/03/2024,"17,949.26",1220-Top Up Funding -Grants to Schools,SUPPLIES & SERVICES,GRANTS (EXP) & SUBSCRIPTIONS,REVENUE
Walsall Council,http://opendatacommunities.org/id/metropolitan-district-council/walsall ,WC160-486,31.03.24,CHILDRENS,ACORN CARE & EDUCATION LTD (SALES),25/03/2024,"18,483.61",1220-Professional Fees & Services,SUPPLIES & SERVICES,SERVICES,REVENUE
Walsall Council,http://opendatacommunities.org/id/metropolitan-district-council/walsall ,WC160-487,31.03.24,CHILDRENS,ACORN CARE & EDUCATION LTD (SALES),25/03/2024,"24,907.50",1220-Top Up Funding -Grants to Schools,SUPPLIES & SERVICES,GRANTS (EXP) & SUBSCRIPTIONS,REVENUE
Walsall Council,http://opendatacommunities.org/id/metropolitan-district-council/walsall ,WC160-488,31.03.24,CHILDRENS,ACORN CARE & EDUCATION LTD (SALES),25/03/2024,"29,894.71",1220-Top Up Funding -Grants to Schools,SUPPLIES & SERVICES,GRANTS (EXP) & SUBSCRIPTIONS,REVENUE
Walsall Council,http://opendatacommunities.org/id/metropolitan-district-council/walsall ,WC160-489,31.03.24,CHILDRENS,ACORN CARE & EDUCATION LTD (SALES),25/03/2024,"21,560.29",1220-Top Up Funding -Grants to Schools,SUPPLIES & SERVICES,GRANTS (EXP) & SUBSCRIPTIONS,REVENUE
Walsall Council,http://opendatacommunities.org/id/metropolitan-district-council/walsall ,WC160-490,31.03.24,CHILDRENS,ACORN CARE & EDUCATION LTD (SALES),25/03/2024,"25,566.67",1220-Professional Fees & Services,SUPPLIES & SERVICES,SERVICES,REVENUE
Walsall Council,http://opendatacommunities.org/id/metropolitan-district-council/walsall ,WC160-491,31.03.24,CHILDRENS,ACORN CARE & EDUCATION LTD (SALES),25/03/2024,"21,560.29",1220-Top Up Funding -Grants to Schools,SUPPLIES & SERVICES,GRANTS (EXP) & SUBSCRIPTIONS,REVENUE
Walsall Council,http://opendatacommunities.org/id/metropolitan-district-council/walsall ,WC160-492,31.03.24,CHILDRENS,ACORN CARE & EDUCATION LTD (SALES),25/03/2024,"26,932.30",1220-Top Up Funding -Grants to Schools,SUPPLIES & SERVICES,GRANTS (EXP) & SUBSCRIPTIONS,REVENUE
Walsall Council,http://opendatacommunities.org/id/metropolitan-district-council/walsall ,WC160-493,31.03.24,CHILDRENS,ACORN CARE & EDUCATION LTD (SALES),25/03/2024,"19,923.64",1220-Top Up Funding -Grants to Schools,SUPPLIES & SERVICES,GRANTS (EXP) & SUBSCRIPTIONS,REVENUE
Walsall Council,http://opendatacommunities.org/id/metropolitan-district-council/walsall ,WC160-494,31.03.24,CHILDRENS,ACORN CARE & EDUCATION LTD (SALES),25/03/2024,"21,546.84",1220-Top Up Funding -Grants to Schools,SUPPLIES & SERVICES,GRANTS (EXP) & SUBSCRIPTIONS,REVENUE
Walsall Council,http://opendatacommunities.org/id/metropolitan-district-council/walsall ,WC160-495,31.03.24,CHILDRENS,ACORN CARE & EDUCATION LTD (SALES),25/03/2024,"27,816.15",1220-Professional Fees & Services,SUPPLIES & SERVICES,SERVICES,REVENUE
Walsall Council,http://opendatacommunities.org/id/metropolitan-district-council/walsall ,WC160-496,31.03.24,CHILDRENS,ACORN CARE & EDUCATION LTD (SALES),25/03/2024,"26,666.67",1220-Professional Fees & Services,SUPPLIES & SERVICES,SERVICES,REVENUE
Walsall Council,http://opendatacommunities.org/id/metropolitan-district-council/walsall ,WC160-497,31.03.24,CHILDRENS,ACORN CARE & EDUCATION LTD (SALES),25/03/2024,"22,710.67",1220-Professional Fees & Services,SUPPLIES & SERVICES,SERVICES,REVENUE
Walsall Council,http://opendatacommunities.org/id/metropolitan-district-council/walsall ,WC160-498,31.03.24,CHILDRENS,ACORN CARE & EDUCATION LTD (SALES),19/03/2024,"26,723.60",6223-External Residential Care-Oth Agency Provision,THIRD PARTY PAYMENTS,PRIVATE CONTRACTOR,REVENUE
Walsall Council,http://opendatacommunities.org/id/metropolitan-district-council/walsall ,WC160-499,31.03.24,CHILDRENS,ACORN FOSTERING SERVICES LTD,19/03/2024,"3,340.00",6223-Independent Foster Care-Oth Agency Provision,THIRD PARTY PAYMENTS,PRIVATE CONTRACTOR,REVENUE
Walsall Council,http://opendatacommunities.org/id/metropolitan-district-council/walsall ,WC160-500,31.03.24,CHILDRENS,ACORNS CHILDRENS HOSPICE TRUST,18/03/2024,"1,950.00",6220-Professional Fees & Services,SUPPLIES & SERVICES,SERVICES,REVENUE
Walsall Council,http://opendatacommunities.org/id/metropolitan-district-council/walsall ,WC160-501,31.03.24,CHILDRENS,ACPAS LIMITED,18/03/2024,889.20,6222-Consultant Fees,SUPPLIES & SERVICES,SERVICES,REVENUE
Walsall Council,http://opendatacommunities.org/id/metropolitan-district-council/walsall ,WC160-502,31.03.24,CHILDRENS,ACPAS LIMITED,18/03/2024,889.20,6222-Consultant Fees,SUPPLIES & SERVICES,SERVICES,REVENUE
Walsall Council,http://opendatacommunities.org/id/metropolitan-district-council/walsall ,WC160-503,31.03.24,"ECONOMY, ENVIRONMENT & COMMUNITIES",ACTION GRAPHICS & DISPLAY LTD,12/03/2024,335.00,6414-Outwork Print & Design,SUPPLIES & SERVICES,PRINTING STATIONERY & GENERAL OFFICE,REVENUE
Walsall Council,http://opendatacommunities.org/id/metropolitan-district-council/walsall ,WC160-504,31.03.24,CHILDRENS,ACTIVE CARE SOLUTIONS LTD,19/03/2024,"4,335.27",6223-Independent Foster Care-Oth Agency Provision,THIRD PARTY PAYMENTS,PRIVATE CONTRACTOR,REVENUE
Walsall Council,http://opendatacommunities.org/id/metropolitan-district-council/walsall ,WC160-505,31.03.24,CHILDRENS,ACTIVE CARE SOLUTIONS LTD,19/03/2024,549.04,6223-Independent Foster Care-Oth Agency Provision,THIRD PARTY PAYMENTS,PRIVATE CONTRACTOR,REVENUE
Walsall Council,http://opendatacommunities.org/id/metropolitan-district-council/walsall ,WC160-506,31.03.24,CHILDRENS,ACTIVE CARE SOLUTIONS LTD,19/03/2024,"1,481.64",6223-Independent Foster Care-Oth Agency Provision,THIRD PARTY PAYMENTS,PRIVATE CONTRACTOR,REVENUE
Walsall Council,http://opendatacommunities.org/id/metropolitan-district-council/walsall ,WC160-507,31.03.24,CHILDRENS,ACTIVITY GYM LTD,19/03/2024,"1,908.96",6211-Professional Fees & Services,SUPPLIES & SERVICES,SERVICES,REVENUE
Walsall Council,http://opendatacommunities.org/id/metropolitan-district-council/walsall ,WC160-508,31.03.24,ADULT SOCIAL CARE,REDACTED,06/03/2024,934.90,6541-Direct Payment,THIRD PARTY PAYMENTS,PRIVATE CONTRACTOR,REVENUE
Walsall Council,http://opendatacommunities.org/id/metropolitan-district-council/walsall ,WC160-509,31.03.24,CHILDRENS,REDACTED,06/03/2024,562.84,6223-Special Guardianship Orders,TRANSFER PAYMENTS,CHILDREN SOCIAL SERVICES CLIENT,REVENUE
Walsall Council,http://opendatacommunities.org/id/metropolitan-district-council/walsall ,WC160-510,31.03.24,CHILDRENS,ADAMS TOURS LTD,12/03/2024,575.00,6211-Transfer Payments - Social Services Clients,TRANSFER PAYMENTS,ADULT SOCIAL SERVICES CLIENT,REVENUE
Walsall Council,http://opendatacommunities.org/id/metropolitan-district-council/walsall ,WC160-511,31.03.24,CHILDRENS,REDACTED,06/03/2024,350.96,6223-Residents Orders,TRANSFER PAYMENTS,CHILDREN SOCIAL SERVICES CLIENT,REVENUE
Walsall Council,http://opendatacommunities.org/id/metropolitan-district-council/walsall ,WC160-512,31.03.24,ADULT SOCIAL CARE,REDACTED,06/03/2024,"2,611.65",6541-Direct Payment,THIRD PARTY PAYMENTS,PRIVATE CONTRACTOR,REVENUE
Walsall Council,http://opendatacommunities.org/id/metropolitan-district-council/walsall ,WC160-513,31.03.24,ADULT SOCIAL CARE,ADVANCE HEALTH CARE (UK) LTD,06/03/2024,900.00,6541-Domiciliary Care,THIRD PARTY PAYMENTS,PRIVATE CONTRACTOR,REVENUE
Walsall Council,http://opendatacommunities.org/id/metropolitan-district-council/walsall ,WC160-514,31.03.24,ADULT SOCIAL CARE,ADVANCE HEALTH CARE (UK) LTD,06/03/2024,744.00,6541-Domiciliary Care,THIRD PARTY PAYMENTS,PRIVATE CONTRACTOR,REVENUE
Walsall Council,http://opendatacommunities.org/id/metropolitan-district-council/walsall ,WC160-515,31.03.24,ADULT SOCIAL CARE,ADVANCE HEALTH CARE (UK) LTD,06/03/2024,"1,134.00",6541-Domiciliary Care,THIRD PARTY PAYMENTS,PRIVATE CONTRACTOR,REVENUE
Walsall Council,http://opendatacommunities.org/id/metropolitan-district-council/walsall ,WC160-516,31.03.24,ADULT SOCIAL CARE,ADVANCE HEALTH CARE (UK) LTD,06/03/2024,714.00,6541-Domiciliary Care,THIRD PARTY PAYMENTS,PRIVATE CONTRACTOR,REVENUE
Walsall Council,http://opendatacommunities.org/id/metropolitan-district-council/walsall ,WC160-517,31.03.24,ADULT SOCIAL CARE,ADVANCE HEALTH CARE (UK) LTD,06/03/2024,"1,242.00",6541-Domiciliary Care,THIRD PARTY PAYMENTS,PRIVATE CONTRACTOR,REVENUE
Walsall Council,http://opendatacommunities.org/id/metropolitan-district-council/walsall ,WC160-518,31.03.24,ADULT SOCIAL CARE,ADVANCE HEALTH CARE (UK) LTD,06/03/2024,"1,254.00",6541-Domiciliary Care,THIRD PARTY PAYMENTS,PRIVATE CONTRACTOR,REVENUE
Walsall Council,http://opendatacommunities.org/id/metropolitan-district-council/walsall ,WC160-519,31.03.24,ADULT SOCIAL CARE,ADVANCE HEALTH CARE (UK) LTD,06/03/2024,840.00,6541-Domiciliary Care,THIRD PARTY PAYMENTS,PRIVATE CONTRACTOR,REVENUE
Walsall Council,http://opendatacommunities.org/id/metropolitan-district-council/walsall ,WC160-520,31.03.24,ADULT SOCIAL CARE,ADVANCE HEALTH CARE (UK) LTD,06/03/2024,924.00,6541-Domiciliary Care,THIRD PARTY PAYMENTS,PRIVATE CONTRACTOR,REVENUE
Walsall Council,http://opendatacommunities.org/id/metropolitan-district-council/walsall ,WC160-521,31.03.24,ADULT SOCIAL CARE,ADVANCE HEALTH CARE (UK) LTD,06/03/2024,828.00,6541-Domiciliary Care,THIRD PARTY PAYMENTS,PRIVATE CONTRACTOR,REVENUE
Walsall Council,http://opendatacommunities.org/id/metropolitan-district-council/walsall ,WC160-522,31.03.24,ADULT SOCIAL CARE,ADVANCE HEALTH CARE (UK) LTD,06/03/2024,"1,050.00",6541-Domiciliary Care,THIRD PARTY PAYMENTS,PRIVATE CONTRACTOR,REVENUE
Walsall Council,http://opendatacommunities.org/id/metropolitan-district-council/walsall ,WC160-523,31.03.24,ADULT SOCIAL CARE,ADVANCE HEALTH CARE (UK) LTD,06/03/2024,"1,008.00",6541-Domiciliary Care,THIRD PARTY PAYMENTS,PRIVATE CONTRACTOR,REVENUE
Walsall Council,http://opendatacommunities.org/id/metropolitan-district-council/walsall ,WC160-524,31.03.24,ADULT SOCIAL CARE,ADVANCE HEALTH CARE (UK) LTD,06/03/2024,948.00,6541-Domiciliary Care,THIRD PARTY PAYMENTS,PRIVATE CONTRACTOR,REVENUE
Walsall Council,http://opendatacommunities.org/id/metropolitan-district-council/walsall ,WC160-525,31.03.24,ADULT SOCIAL CARE,ADVANCE HEALTH CARE (UK) LTD,06/03/2024,576.00,6541-Domiciliary Care,THIRD PARTY PAYMENTS,PRIVATE CONTRACTOR,REVENUE
Walsall Council,http://opendatacommunities.org/id/metropolitan-district-council/walsall ,WC160-526,31.03.24,ADULT SOCIAL CARE,ADVANCE HEALTH CARE (UK) LTD,06/03/2024,403.50,6541-Domiciliary Care,THIRD PARTY PAYMENTS,PRIVATE CONTRACTOR,REVENUE
Walsall Council,http://opendatacommunities.org/id/metropolitan-district-council/walsall ,WC160-527,31.03.24,ADULT SOCIAL CARE,ADVANCE HEALTH CARE (UK) LTD,06/03/2024,432.00,6541-Domiciliary Care,THIRD PARTY PAYMENTS,PRIVATE CONTRACTOR,REVENUE
Walsall Council,http://opendatacommunities.org/id/metropolitan-district-council/walsall ,WC160-528,31.03.24,ADULT SOCIAL CARE,ADVANCE HEALTH CARE (UK) LTD,06/03/2024,660.00,6541-Domiciliary Care,THIRD PARTY PAYMENTS,PRIVATE CONTRACTOR,REVENUE
Walsall Council,http://opendatacommunities.org/id/metropolitan-district-council/walsall ,WC160-529,31.03.24,ADULT SOCIAL CARE,ADVANCE HEALTH CARE (UK) LTD,06/03/2024,"1,278.00",6541-Domiciliary Care,THIRD PARTY PAYMENTS,PRIVATE CONTRACTOR,REVENUE
Walsall Council,http://opendatacommunities.org/id/metropolitan-district-council/walsall ,WC160-530,31.03.24,ADULT SOCIAL CARE,ADVANCE HEALTH CARE (UK) LTD,06/03/2024,"1,341.00",6554-Professional Services-Priv Contractor & Other Agencies,THIRD PARTY PAYMENTS,PRIVATE CONTRACTOR,REVENUE
Walsall Council,http://opendatacommunities.org/id/metropolitan-district-council/walsall ,WC160-531,31.03.24,ADULT SOCIAL CARE,ADVANCE HEALTH CARE (UK) LTD,06/03/2024,624.00,6554-Professional Services-Priv Contractor & Other Agencies,THIRD PARTY PAYMENTS,PRIVATE CONTRACTOR,REVENUE
Walsall Council,http://opendatacommunities.org/id/metropolitan-district-council/walsall ,WC160-532,31.03.24,ADULT SOCIAL CARE,ADVANCE HEALTH CARE (UK) LTD,06/03/2024,252.00,6554-Professional Services-Priv Contractor & Other Agencies,THIRD PARTY PAYMENTS,PRIVATE CONTRACTOR,REVENUE
Walsall Council,http://opendatacommunities.org/id/metropolitan-district-council/walsall ,WC160-533,31.03.24,ADULT SOCIAL CARE,ADVANCE HEALTH CARE (UK) LTD,11/03/2024,963.00,6541-Domiciliary Care,THIRD PARTY PAYMENTS,PRIVATE CONTRACTOR,REVENUE
Walsall Council,http://opendatacommunities.org/id/metropolitan-district-council/walsall ,WC160-534,31.03.24,ADULT SOCIAL CARE,ADVANCE HEALTH CARE (UK) LTD,11/03/2024,666.00,6541-Domiciliary Care,THIRD PARTY PAYMENTS,PRIVATE CONTRACTOR,REVENUE
Walsall Council,http://opendatacommunities.org/id/metropolitan-district-council/walsall ,WC160-535,31.03.24,ADULT SOCIAL CARE,ADVANCE HEALTH CARE (UK) LTD,11/03/2024,301.50,6541-Domiciliary Care,THIRD PARTY PAYMENTS,PRIVATE CONTRACTOR,REVENUE
Walsall Council,http://opendatacommunities.org/id/metropolitan-district-council/walsall ,WC160-536,31.03.24,ADULT SOCIAL CARE,ADVANCE HEALTH CARE (UK) LTD,11/03/2024,283.50,6541-Domiciliary Care,THIRD PARTY PAYMENTS,PRIVATE CONTRACTOR,REVENUE
Walsall Council,http://opendatacommunities.org/id/metropolitan-district-council/walsall ,WC160-537,31.03.24,ADULT SOCIAL CARE,ADVANCE HEALTH CARE (UK) LTD,11/03/2024,420.00,6541-Domiciliary Care,THIRD PARTY PAYMENTS,PRIVATE CONTRACTOR,REVENUE
Walsall Council,http://opendatacommunities.org/id/metropolitan-district-council/walsall ,WC160-538,31.03.24,ADULT SOCIAL CARE,ADVANCE HEALTH CARE (UK) LTD,11/03/2024,378.00,6541-Domiciliary Care,THIRD PARTY PAYMENTS,PRIVATE CONTRACTOR,REVENUE
Walsall Council,http://opendatacommunities.org/id/metropolitan-district-council/walsall ,WC160-539,31.03.24,ADULT SOCIAL CARE,ADVANCE HEALTH CARE (UK) LTD,11/03/2024,504.00,6541-Domiciliary Care,THIRD PARTY PAYMENTS,PRIVATE CONTRACTOR,REVENUE
Walsall Council,http://opendatacommunities.org/id/metropolitan-district-council/walsall ,WC160-540,31.03.24,ADULT SOCIAL CARE,ADVANCE HEALTH CARE (UK) LTD,11/03/2024,283.50,6541-Domiciliary Care,THIRD PARTY PAYMENTS,PRIVATE CONTRACTOR,REVENUE
Walsall Council,http://opendatacommunities.org/id/metropolitan-district-council/walsall ,WC160-541,31.03.24,ADULT SOCIAL CARE,ADVANCE HEALTH CARE (UK) LTD,11/03/2024,567.00,6541-Domiciliary Care,THIRD PARTY PAYMENTS,PRIVATE CONTRACTOR,REVENUE
Walsall Council,http://opendatacommunities.org/id/metropolitan-district-council/walsall ,WC160-542,31.03.24,ADULT SOCIAL CARE,ADVANCE HEALTH CARE (UK) LTD,11/03/2024,"2,268.00",6541-Domiciliary Care,THIRD PARTY PAYMENTS,PRIVATE CONTRACTOR,REVENUE
Walsall Council,http://opendatacommunities.org/id/metropolitan-district-council/walsall ,WC160-543,31.03.24,ADULT SOCIAL CARE,ADVANCE HEALTH CARE (UK) LTD,11/03/2024,567.00,6541-Domiciliary Care,THIRD PARTY PAYMENTS,PRIVATE CONTRACTOR,REVENUE
Walsall Council,http://opendatacommunities.org/id/metropolitan-district-council/walsall ,WC160-544,31.03.24,ADULT SOCIAL CARE,ADVANCE HEALTH CARE (UK) LTD,11/03/2024,252.00,6541-Domiciliary Care,THIRD PARTY PAYMENTS,PRIVATE CONTRACTOR,REVENUE
Walsall Council,http://opendatacommunities.org/id/metropolitan-district-council/walsall ,WC160-545,31.03.24,ADULT SOCIAL CARE,ADVANCE HEALTH CARE (UK) LTD,11/03/2024,567.00,6541-Domiciliary Care,THIRD PARTY PAYMENTS,PRIVATE CONTRACTOR,REVENUE
Walsall Council,http://opendatacommunities.org/id/metropolitan-district-council/walsall ,WC160-546,31.03.24,ADULT SOCIAL CARE,ADVANCE HEALTH CARE (UK) LTD,11/03/2024,693.00,6541-Domiciliary Care,THIRD PARTY PAYMENTS,PRIVATE CONTRACTOR,REVENUE
Walsall Council,http://opendatacommunities.org/id/metropolitan-district-council/walsall ,WC160-547,31.03.24,ADULT SOCIAL CARE,ADVANCE HEALTH CARE (UK) LTD,11/03/2024,441.00,6541-Domiciliary Care,THIRD PARTY PAYMENTS,PRIVATE CONTRACTOR,REVENUE
Walsall Council,http://opendatacommunities.org/id/metropolitan-district-council/walsall ,WC160-548,31.03.24,ADULT SOCIAL CARE,ADVANCE HEALTH CARE (UK) LTD,11/03/2024,283.50,6541-Domiciliary Care,THIRD PARTY PAYMENTS,PRIVATE CONTRACTOR,REVENUE
Walsall Council,http://opendatacommunities.org/id/metropolitan-district-council/walsall ,WC160-549,31.03.24,ADULT SOCIAL CARE,ADVANCE HEALTH CARE (UK) LTD,11/03/2024,891.00,6541-Domiciliary Care,THIRD PARTY PAYMENTS,PRIVATE CONTRACTOR,REVENUE
Walsall Council,http://opendatacommunities.org/id/metropolitan-district-council/walsall ,WC160-550,31.03.24,ADULT SOCIAL CARE,ADVANCE HEALTH CARE (UK) LTD,11/03/2024,441.00,6541-Domiciliary Care,THIRD PARTY PAYMENTS,PRIVATE CONTRACTOR,REVENUE
Walsall Council,http://opendatacommunities.org/id/metropolitan-district-council/walsall ,WC160-551,31.03.24,ADULT SOCIAL CARE,ADVANCE HEALTH CARE (UK) LTD,11/03/2024,630.00,6541-Domiciliary Care,THIRD PARTY PAYMENTS,PRIVATE CONTRACTOR,REVENUE
Walsall Council,http://opendatacommunities.org/id/metropolitan-district-council/walsall ,WC160-552,31.03.24,ADULT SOCIAL CARE,ADVANCE HEALTH CARE (UK) LTD,11/03/2024,441.00,6541-Domiciliary Care,THIRD PARTY PAYMENTS,PRIVATE CONTRACTOR,REVENUE
Walsall Council,http://opendatacommunities.org/id/metropolitan-district-council/walsall ,WC160-553,31.03.24,ADULT SOCIAL CARE,ADVANCE HEALTH CARE (UK) LTD,11/03/2024,441.00,6541-Domiciliary Care,THIRD PARTY PAYMENTS,PRIVATE CONTRACTOR,REVENUE
Walsall Council,http://opendatacommunities.org/id/metropolitan-district-council/walsall ,WC160-554,31.03.24,ADULT SOCIAL CARE,ADVANCE HEALTH CARE (UK) LTD,11/03/2024,594.00,6541-Domiciliary Care,THIRD PARTY PAYMENTS,PRIVATE CONTRACTOR,REVENUE
Walsall Council,http://opendatacommunities.org/id/metropolitan-district-council/walsall ,WC160-555,31.03.24,ADULT SOCIAL CARE,ADVANCE HEALTH CARE (UK) LTD,11/03/2024,567.00,6541-Domiciliary Care,THIRD PARTY PAYMENTS,PRIVATE CONTRACTOR,REVENUE
Walsall Council,http://opendatacommunities.org/id/metropolitan-district-council/walsall ,WC160-556,31.03.24,ADULT SOCIAL CARE,ADVANCE HEALTH CARE (UK) LTD,11/03/2024,283.50,6541-Domiciliary Care,THIRD PARTY PAYMENTS,PRIVATE CONTRACTOR,REVENUE
Walsall Council,http://opendatacommunities.org/id/metropolitan-district-council/walsall ,WC160-557,31.03.24,ADULT SOCIAL CARE,ADVANCE HEALTH CARE (UK) LTD,11/03/2024,420.00,6541-Domiciliary Care,THIRD PARTY PAYMENTS,PRIVATE CONTRACTOR,REVENUE
Walsall Council,http://opendatacommunities.org/id/metropolitan-district-council/walsall ,WC160-558,31.03.24,ADULT SOCIAL CARE,ADVANCE HEALTH CARE (UK) LTD,11/03/2024,378.00,6541-Domiciliary Care,THIRD PARTY PAYMENTS,PRIVATE CONTRACTOR,REVENUE
Walsall Council,http://opendatacommunities.org/id/metropolitan-district-council/walsall ,WC160-559,31.03.24,ADULT SOCIAL CARE,ADVANCE HEALTH CARE (UK) LTD,11/03/2024,252.00,6541-Domiciliary Care,THIRD PARTY PAYMENTS,PRIVATE CONTRACTOR,REVENUE
Walsall Council,http://opendatacommunities.org/id/metropolitan-district-council/walsall ,WC160-560,31.03.24,ADULT SOCIAL CARE,ADVANCE HEALTH CARE (UK) LTD,11/03/2024,567.00,6541-Domiciliary Care,THIRD PARTY PAYMENTS,PRIVATE CONTRACTOR,REVENUE
Walsall Council,http://opendatacommunities.org/id/metropolitan-district-council/walsall ,WC160-561,31.03.24,ADULT SOCIAL CARE,ADVANCE HEALTH CARE (UK) LTD,11/03/2024,963.00,6541-Domiciliary Care,THIRD PARTY PAYMENTS,PRIVATE CONTRACTOR,REVENUE
Walsall Council,http://opendatacommunities.org/id/metropolitan-district-council/walsall ,WC160-562,31.03.24,ADULT SOCIAL CARE,ADVANCE HEALTH CARE (UK) LTD,11/03/2024,666.00,6541-Domiciliary Care,THIRD PARTY PAYMENTS,PRIVATE CONTRACTOR,REVENUE
Walsall Council,http://opendatacommunities.org/id/metropolitan-district-council/walsall ,WC160-563,31.03.24,ADULT SOCIAL CARE,ADVANCE HEALTH CARE (UK) LTD,11/03/2024,441.00,6541-Domiciliary Care,THIRD PARTY PAYMENTS,PRIVATE CONTRACTOR,REVENUE
Walsall Council,http://opendatacommunities.org/id/metropolitan-district-council/walsall ,WC160-564,31.03.24,ADULT SOCIAL CARE,ADVANCE HEALTH CARE (UK) LTD,11/03/2024,283.50,6541-Domiciliary Care,THIRD PARTY PAYMENTS,PRIVATE CONTRACTOR,REVENUE
Walsall Council,http://opendatacommunities.org/id/metropolitan-district-council/walsall ,WC160-565,31.03.24,ADULT SOCIAL CARE,ADVANCE HEALTH CARE (UK) LTD,11/03/2024,891.00,6541-Domiciliary Care,THIRD PARTY PAYMENTS,PRIVATE CONTRACTOR,REVENUE
Walsall Council,http://opendatacommunities.org/id/metropolitan-district-council/walsall ,WC160-566,31.03.24,ADULT SOCIAL CARE,ADVANCE HEALTH CARE (UK) LTD,11/03/2024,301.50,6541-Domiciliary Care,THIRD PARTY PAYMENTS,PRIVATE CONTRACTOR,REVENUE
Walsall Council,http://opendatacommunities.org/id/metropolitan-district-council/walsall ,WC160-567,31.03.24,ADULT SOCIAL CARE,ADVANCE HEALTH CARE (UK) LTD,11/03/2024,504.00,6541-Domiciliary Care,THIRD PARTY PAYMENTS,PRIVATE CONTRACTOR,REVENUE
Walsall Council,http://opendatacommunities.org/id/metropolitan-district-council/walsall ,WC160-568,31.03.24,ADULT SOCIAL CARE,ADVANCE HEALTH CARE (UK) LTD,11/03/2024,441.00,6541-Domiciliary Care,THIRD PARTY PAYMENTS,PRIVATE CONTRACTOR,REVENUE
Walsall Council,http://opendatacommunities.org/id/metropolitan-district-council/walsall ,WC160-569,31.03.24,ADULT SOCIAL CARE,ADVANCE HEALTH CARE (UK) LTD,11/03/2024,441.00,6541-Domiciliary Care,THIRD PARTY PAYMENTS,PRIVATE CONTRACTOR,REVENUE
Walsall Council,http://opendatacommunities.org/id/metropolitan-district-council/walsall ,WC160-570,31.03.24,ADULT SOCIAL CARE,ADVANCE HEALTH CARE (UK) LTD,11/03/2024,441.00,6541-Domiciliary Care,THIRD PARTY PAYMENTS,PRIVATE CONTRACTOR,REVENUE
Walsall Council,http://opendatacommunities.org/id/metropolitan-district-council/walsall ,WC160-571,31.03.24,ADULT SOCIAL CARE,ADVANCE HEALTH CARE (UK) LTD,11/03/2024,594.00,6541-Domiciliary Care,THIRD PARTY PAYMENTS,PRIVATE CONTRACTOR,REVENUE
Walsall Council,http://opendatacommunities.org/id/metropolitan-district-council/walsall ,WC160-572,31.03.24,ADULT SOCIAL CARE,ADVANCE HEALTH CARE (UK) LTD,11/03/2024,630.00,6541-Domiciliary Care,THIRD PARTY PAYMENTS,PRIVATE CONTRACTOR,REVENUE
Walsall Council,http://opendatacommunities.org/id/metropolitan-district-council/walsall ,WC160-573,31.03.24,ADULT SOCIAL CARE,ADVANCE HEALTH CARE (UK) LTD,11/03/2024,756.00,6541-Domiciliary Care,THIRD PARTY PAYMENTS,PRIVATE CONTRACTOR,REVENUE
Walsall Council,http://opendatacommunities.org/id/metropolitan-district-council/walsall ,WC160-574,31.03.24,ADULT SOCIAL CARE,ADVANCE HEALTH CARE (UK) LTD,11/03/2024,283.50,6541-Domiciliary Care,THIRD PARTY PAYMENTS,PRIVATE CONTRACTOR,REVENUE
Walsall Council,http://opendatacommunities.org/id/metropolitan-district-council/walsall ,WC160-575,31.03.24,ADULT SOCIAL CARE,ADVANCE HEALTH CARE (UK) LTD,11/03/2024,378.00,6541-Domiciliary Care,THIRD PARTY PAYMENTS,PRIVATE CONTRACTOR,REVENUE
Walsall Council,http://opendatacommunities.org/id/metropolitan-district-council/walsall ,WC160-576,31.03.24,ADULT SOCIAL CARE,ADVANCE HEALTH CARE (UK) LTD,25/03/2024,423.00,6541-Domiciliary Care,THIRD PARTY PAYMENTS,PRIVATE CONTRACTOR,REVENUE
Walsall Council,http://opendatacommunities.org/id/metropolitan-district-council/walsall ,WC160-577,31.03.24,ADULT SOCIAL CARE,ADVANCE HEALTH CARE (UK) LTD,25/03/2024,301.50,6541-Domiciliary Care,THIRD PARTY PAYMENTS,PRIVATE CONTRACTOR,REVENUE
Walsall Council,http://opendatacommunities.org/id/metropolitan-district-council/walsall ,WC160-578,31.03.24,ADULT SOCIAL CARE,ADVANCE HEALTH CARE (UK) LTD,25/03/2024,504.00,6541-Domiciliary Care,THIRD PARTY PAYMENTS,PRIVATE CONTRACTOR,REVENUE
Walsall Council,http://opendatacommunities.org/id/metropolitan-district-council/walsall ,WC160-579,31.03.24,ADULT SOCIAL CARE,ADVANCE HEALTH CARE (UK) LTD,25/03/2024,666.00,6541-Domiciliary Care,THIRD PARTY PAYMENTS,PRIVATE CONTRACTOR,REVENUE
Walsall Council,http://opendatacommunities.org/id/metropolitan-district-council/walsall ,WC160-580,31.03.24,ADULT SOCIAL CARE,ADVANCE HEALTH CARE (UK) LTD,25/03/2024,567.00,6541-Domiciliary Care,THIRD PARTY PAYMENTS,PRIVATE CONTRACTOR,REVENUE
Walsall Council,http://opendatacommunities.org/id/metropolitan-district-council/walsall ,WC160-581,31.03.24,ADULT SOCIAL CARE,ADVANCE HEALTH CARE (UK) LTD,25/03/2024,283.50,6541-Domiciliary Care,THIRD PARTY PAYMENTS,PRIVATE CONTRACTOR,REVENUE
Walsall Council,http://opendatacommunities.org/id/metropolitan-district-council/walsall ,WC160-582,31.03.24,ADULT SOCIAL CARE,ADVANCE HEALTH CARE (UK) LTD,25/03/2024,252.00,6541-Domiciliary Care,THIRD PARTY PAYMENTS,PRIVATE CONTRACTOR,REVENUE
Walsall Council,http://opendatacommunities.org/id/metropolitan-district-council/walsall ,WC160-583,31.03.24,ADULT SOCIAL CARE,ADVANCE HEALTH CARE (UK) LTD,25/03/2024,567.00,6541-Domiciliary Care,THIRD PARTY PAYMENTS,PRIVATE CONTRACTOR,REVENUE
Walsall Council,http://opendatacommunities.org/id/metropolitan-district-council/walsall ,WC160-584,31.03.24,ADULT SOCIAL CARE,ADVANCE HEALTH CARE (UK) LTD,25/03/2024,283.50,6541-Domiciliary Care,THIRD PARTY PAYMENTS,PRIVATE CONTRACTOR,REVENUE
Walsall Council,http://opendatacommunities.org/id/metropolitan-district-council/walsall ,WC160-585,31.03.24,ADULT SOCIAL CARE,ADVANCE HEALTH CARE (UK) LTD,25/03/2024,420.00,6541-Domiciliary Care,THIRD PARTY PAYMENTS,PRIVATE CONTRACTOR,REVENUE
Walsall Council,http://opendatacommunities.org/id/metropolitan-district-council/walsall ,WC160-586,31.03.24,ADULT SOCIAL CARE,ADVANCE HEALTH CARE (UK) LTD,25/03/2024,378.00,6541-Domiciliary Care,THIRD PARTY PAYMENTS,PRIVATE CONTRACTOR,REVENUE
Walsall Council,http://opendatacommunities.org/id/metropolitan-district-council/walsall ,WC160-587,31.03.24,ADULT SOCIAL CARE,ADVANCE HEALTH CARE (UK) LTD,25/03/2024,756.00,6541-Domiciliary Care,THIRD PARTY PAYMENTS,PRIVATE CONTRACTOR,REVENUE
Walsall Council,http://opendatacommunities.org/id/metropolitan-district-council/walsall ,WC160-588,31.03.24,ADULT SOCIAL CARE,ADVANCE HEALTH CARE (UK) LTD,25/03/2024,441.00,6541-Domiciliary Care,THIRD PARTY PAYMENTS,PRIVATE CONTRACTOR,REVENUE
Walsall Council,http://opendatacommunities.org/id/metropolitan-district-council/walsall ,WC160-589,31.03.24,ADULT SOCIAL CARE,ADVANCE HEALTH CARE (UK) LTD,25/03/2024,441.00,6541-Domiciliary Care,THIRD PARTY PAYMENTS,PRIVATE CONTRACTOR,REVENUE
Walsall Council,http://opendatacommunities.org/id/metropolitan-district-council/walsall ,WC160-590,31.03.24,ADULT SOCIAL CARE,ADVANCE HEALTH CARE (UK) LTD,25/03/2024,594.00,6541-Domiciliary Care,THIRD PARTY PAYMENTS,PRIVATE CONTRACTOR,REVENUE
Walsall Council,http://opendatacommunities.org/id/metropolitan-district-council/walsall ,WC160-591,31.03.24,ADULT SOCIAL CARE,ADVANCE HEALTH CARE (UK) LTD,25/03/2024,441.00,6541-Domiciliary Care,THIRD PARTY PAYMENTS,PRIVATE CONTRACTOR,REVENUE
Walsall Council,http://opendatacommunities.org/id/metropolitan-district-council/walsall ,WC160-592,31.03.24,ADULT SOCIAL CARE,ADVANCE HEALTH CARE (UK) LTD,25/03/2024,441.00,6541-Domiciliary Care,THIRD PARTY PAYMENTS,PRIVATE CONTRACTOR,REVENUE
Walsall Council,http://opendatacommunities.org/id/metropolitan-district-council/walsall ,WC160-593,31.03.24,ADULT SOCIAL CARE,ADVANCE HEALTH CARE (UK) LTD,25/03/2024,283.50,6541-Domiciliary Care,THIRD PARTY PAYMENTS,PRIVATE CONTRACTOR,REVENUE
Walsall Council,http://opendatacommunities.org/id/metropolitan-district-council/walsall ,WC160-594,31.03.24,ADULT SOCIAL CARE,ADVANCE HEALTH CARE (UK) LTD,25/03/2024,891.00,6541-Domiciliary Care,THIRD PARTY PAYMENTS,PRIVATE CONTRACTOR,REVENUE
Walsall Council,http://opendatacommunities.org/id/metropolitan-district-council/walsall ,WC160-595,31.03.24,ADULT SOCIAL CARE,ADVANCE HEALTH CARE (UK) LTD,25/03/2024,441.00,6541-Domiciliary Care,THIRD PARTY PAYMENTS,PRIVATE CONTRACTOR,REVENUE
Walsall Council,http://opendatacommunities.org/id/metropolitan-district-council/walsall ,WC160-596,31.03.24,ADULT SOCIAL CARE,ADVANCE HEALTH CARE (UK) LTD,25/03/2024,540.00,6541-Domiciliary Care,THIRD PARTY PAYMENTS,PRIVATE CONTRACTOR,REVENUE
Walsall Council,http://opendatacommunities.org/id/metropolitan-district-council/walsall ,WC160-597,31.03.24,ADULT SOCIAL CARE,ADVANCE HEALTH CARE (UK) LTD,25/03/2024,567.00,6541-Domiciliary Care,THIRD PARTY PAYMENTS,PRIVATE CONTRACTOR,REVENUE
Walsall Council,http://opendatacommunities.org/id/metropolitan-district-council/walsall ,WC160-598,31.03.24,ADULT SOCIAL CARE,ADVANCE HEALTH CARE (UK) LTD,25/03/2024,283.50,6541-Domiciliary Care,THIRD PARTY PAYMENTS,PRIVATE CONTRACTOR,REVENUE
Walsall Council,http://opendatacommunities.org/id/metropolitan-district-council/walsall ,WC160-599,31.03.24,ADULT SOCIAL CARE,ADVANCE HEALTH CARE (UK) LTD,25/03/2024,420.00,6541-Domiciliary Care,THIRD PARTY PAYMENTS,PRIVATE CONTRACTOR,REVENUE
Walsall Council,http://opendatacommunities.org/id/metropolitan-district-council/walsall ,WC160-600,31.03.24,ADULT SOCIAL CARE,ADVANCE HEALTH CARE (UK) LTD,25/03/2024,378.00,6541-Domiciliary Care,THIRD PARTY PAYMENTS,PRIVATE CONTRACTOR,REVENUE
Walsall Council,http://opendatacommunities.org/id/metropolitan-district-council/walsall ,WC160-601,31.03.24,ADULT SOCIAL CARE,ADVANCE HEALTH CARE (UK) LTD,25/03/2024,252.00,6541-Domiciliary Care,THIRD PARTY PAYMENTS,PRIVATE CONTRACTOR,REVENUE
Walsall Council,http://opendatacommunities.org/id/metropolitan-district-council/walsall ,WC160-602,31.03.24,ADULT SOCIAL CARE,ADVANCE HEALTH CARE (UK) LTD,25/03/2024,567.00,6541-Domiciliary Care,THIRD PARTY PAYMENTS,PRIVATE CONTRACTOR,REVENUE
Walsall Council,http://opendatacommunities.org/id/metropolitan-district-council/walsall ,WC160-603,31.03.24,ADULT SOCIAL CARE,ADVANCE HEALTH CARE (UK) LTD,25/03/2024,301.50,6541-Domiciliary Care,THIRD PARTY PAYMENTS,PRIVATE CONTRACTOR,REVENUE
Walsall Council,http://opendatacommunities.org/id/metropolitan-district-council/walsall ,WC160-604,31.03.24,ADULT SOCIAL CARE,ADVANCE HEALTH CARE (UK) LTD,25/03/2024,504.00,6541-Domiciliary Care,THIRD PARTY PAYMENTS,PRIVATE CONTRACTOR,REVENUE
Walsall Council,http://opendatacommunities.org/id/metropolitan-district-council/walsall ,WC160-605,31.03.24,ADULT SOCIAL CARE,ADVANCE HEALTH CARE (UK) LTD,25/03/2024,666.00,6541-Domiciliary Care,THIRD PARTY PAYMENTS,PRIVATE CONTRACTOR,REVENUE
Walsall Council,http://opendatacommunities.org/id/metropolitan-district-council/walsall ,WC160-606,31.03.24,ADULT SOCIAL CARE,ADVANCE HEALTH CARE (UK) LTD,25/03/2024,441.00,6541-Domiciliary Care,THIRD PARTY PAYMENTS,PRIVATE CONTRACTOR,REVENUE
Walsall Council,http://opendatacommunities.org/id/metropolitan-district-council/walsall ,WC160-607,31.03.24,ADULT SOCIAL CARE,ADVANCE HEALTH CARE (UK) LTD,25/03/2024,283.50,6541-Domiciliary Care,THIRD PARTY PAYMENTS,PRIVATE CONTRACTOR,REVENUE
Walsall Council,http://opendatacommunities.org/id/metropolitan-district-council/walsall ,WC160-608,31.03.24,ADULT SOCIAL CARE,ADVANCE HEALTH CARE (UK) LTD,25/03/2024,891.00,6541-Domiciliary Care,THIRD PARTY PAYMENTS,PRIVATE CONTRACTOR,REVENUE
Walsall Council,http://opendatacommunities.org/id/metropolitan-district-council/walsall ,WC160-609,31.03.24,ADULT SOCIAL CARE,ADVANCE HEALTH CARE (UK) LTD,25/03/2024,283.50,6541-Domiciliary Care,THIRD PARTY PAYMENTS,PRIVATE CONTRACTOR,REVENUE
Walsall Council,http://opendatacommunities.org/id/metropolitan-district-council/walsall ,WC160-610,31.03.24,ADULT SOCIAL CARE,ADVANCE HEALTH CARE (UK) LTD,25/03/2024,441.00,6541-Domiciliary Care,THIRD PARTY PAYMENTS,PRIVATE CONTRACTOR,REVENUE
Walsall Council,http://opendatacommunities.org/id/metropolitan-district-council/walsall ,WC160-611,31.03.24,ADULT SOCIAL CARE,ADVANCE HEALTH CARE (UK) LTD,25/03/2024,441.00,6541-Domiciliary Care,THIRD PARTY PAYMENTS,PRIVATE CONTRACTOR,REVENUE
Walsall Council,http://opendatacommunities.org/id/metropolitan-district-council/walsall ,WC160-612,31.03.24,ADULT SOCIAL CARE,ADVANCE HEALTH CARE (UK) LTD,25/03/2024,414.00,6541-Domiciliary Care,THIRD PARTY PAYMENTS,PRIVATE CONTRACTOR,REVENUE
Walsall Council,http://opendatacommunities.org/id/metropolitan-district-council/walsall ,WC160-613,31.03.24,ADULT SOCIAL CARE,ADVANCE HEALTH CARE (UK) LTD,25/03/2024,756.00,6541-Domiciliary Care,THIRD PARTY PAYMENTS,PRIVATE CONTRACTOR,REVENUE
Walsall Council,http://opendatacommunities.org/id/metropolitan-district-council/walsall ,WC160-614,31.03.24,ADULT SOCIAL CARE,ADVANCE HEALTH CARE (UK) LTD,25/03/2024,441.00,6541-Domiciliary Care,THIRD PARTY PAYMENTS,PRIVATE CONTRACTOR,REVENUE
Walsall Council,http://opendatacommunities.org/id/metropolitan-district-council/walsall ,WC160-615,31.03.24,ADULT SOCIAL CARE,ADVANCE HEALTH CARE (UK) LTD,25/03/2024,441.00,6541-Domiciliary Care,THIRD PARTY PAYMENTS,PRIVATE CONTRACTOR,REVENUE
Walsall Council,http://opendatacommunities.org/id/metropolitan-district-council/walsall ,WC160-616,31.03.24,ADULT SOCIAL CARE,ADVANCE HEALTH CARE (UK) LTD,25/03/2024,594.00,6541-Domiciliary Care,THIRD PARTY PAYMENTS,PRIVATE CONTRACTOR,REVENUE
Walsall Council,http://opendatacommunities.org/id/metropolitan-district-council/walsall ,WC160-617,31.03.24,CHILDRENS CAPITAL,ADVANCED CONTRACTS (MIDLANDS) LTD,21/03/2024,"3,840.00",7150-Site Works - Other Contractors,CAPITAL,"NEW CONSTRUCTION,CONVERSION & RENOVATION",CAPITAL
Walsall Council,http://opendatacommunities.org/id/metropolitan-district-council/walsall ,WC160-618,31.03.24,CHILDRENS,ADVENTURELAND DAY NURSERY,08/03/2024,640.00,1184-Transfer Payments-Other Schoolchildren/Student Related Items,TRANSFER PAYMENTS,SCHOOLCHILDREN/STUDENTS,REVENUE
Walsall Council,http://opendatacommunities.org/id/metropolitan-district-council/walsall ,WC160-619,31.03.24,ADULT SOCIAL CARE,ADVINIA CARE HOMES LTD - HAMMERWICH HALL CARE HOME,11/03/2024,"2,413.36",6541-Residential EMI,THIRD PARTY PAYMENTS,PRIVATE CONTRACTOR,REVENUE
Walsall Council,http://opendatacommunities.org/id/metropolitan-district-council/walsall ,WC160-620,31.03.24,ADULT SOCIAL CARE,ADVINIA CARE HOMES LTD - HAMMERWICH HALL CARE HOME,11/03/2024,"2,137.32",6541-Residential,THIRD PARTY PAYMENTS,PRIVATE CONTRACTOR,REVENUE
Walsall Council,http://opendatacommunities.org/id/metropolitan-district-council/walsall ,WC160-621,31.03.24,ADULT SOCIAL CARE,ADVINIA CARE HOMES LTD - HAMMERWICH HALL CARE HOME,11/03/2024,280.00,6541-Residential EMI,THIRD PARTY PAYMENTS,PRIVATE CONTRACTOR,REVENUE
Walsall Council,http://opendatacommunities.org/id/metropolitan-district-council/walsall ,WC160-622,31.03.24,ADULT SOCIAL CARE,ADVINIA CARE HOMES LTD - HAMMERWICH HALL CARE HOME,11/03/2024,280.00,6541-Residential,THIRD PARTY PAYMENTS,PRIVATE CONTRACTOR,REVENUE
Walsall Council,http://opendatacommunities.org/id/metropolitan-district-council/walsall ,WC160-623,31.03.24,ECONOMY & ENVIRONMENT CAPITAL,AECOM INFRASTRUCTURE & ENVIRONMENT UK LIMITED,21/03/2024,"9,376.92",7200-Consultants Fees,CAPITAL,"NEW CONSTRUCTION,CONVERSION & RENOVATION",CAPITAL
Walsall Council,http://opendatacommunities.org/id/metropolitan-district-council/walsall ,WC160-624,31.03.24,ECONOMY & ENVIRONMENT CAPITAL,AECOM INFRASTRUCTURE & ENVIRONMENT UK LIMITED,21/03/2024,"2,043.12",7200-Consultants Fees,CAPITAL,"NEW CONSTRUCTION,CONVERSION & RENOVATION",CAPITAL
Walsall Council,http://opendatacommunities.org/id/metropolitan-district-council/walsall ,WC160-625,31.03.24,ECONOMY & ENVIRONMENT CAPITAL,AECOM INFRASTRUCTURE & ENVIRONMENT UK LIMITED,21/03/2024,"-5,499.76",7200-Consultants Fees,CAPITAL,"NEW CONSTRUCTION,CONVERSION & RENOVATION",CAPITAL
Walsall Council,http://opendatacommunities.org/id/metropolitan-district-council/walsall ,WC160-626,31.03.24,ECONOMY & ENVIRONMENT CAPITAL,AECOM INFRASTRUCTURE & ENVIRONMENT UK LIMITED,21/03/2024,"5,449.76",7200-Consultants Fees,CAPITAL,"NEW CONSTRUCTION,CONVERSION & RENOVATION",CAPITAL
Walsall Council,http://opendatacommunities.org/id/metropolitan-district-council/walsall ,WC160-627,31.03.24,ECONOMY & ENVIRONMENT CAPITAL,AECOM INFRASTRUCTURE & ENVIRONMENT UK LIMITED,21/03/2024,"5,499.76",7200-Consultants Fees,CAPITAL,"NEW CONSTRUCTION,CONVERSION & RENOVATION",CAPITAL
Walsall Council,http://opendatacommunities.org/id/metropolitan-district-council/walsall ,WC160-628,31.03.24,ECONOMY & ENVIRONMENT CAPITAL,AECOM INFRASTRUCTURE & ENVIRONMENT UK LIMITED,21/03/2024,"9,931.04",7200-Consultants Fees,CAPITAL,"NEW CONSTRUCTION,CONVERSION & RENOVATION",CAPITAL
Walsall Council,http://opendatacommunities.org/id/metropolitan-district-council/walsall ,WC160-629,31.03.24,ECONOMY & ENVIRONMENT CAPITAL,AECOM INFRASTRUCTURE & ENVIRONMENT UK LIMITED,21/03/2024,"8,799.00",7200-Consultants Fees,CAPITAL,"NEW CONSTRUCTION,CONVERSION & RENOVATION",CAPITAL
Walsall Council,http://opendatacommunities.org/id/metropolitan-district-council/walsall ,WC160-630,31.03.24,ECONOMY & ENVIRONMENT CAPITAL,AECOM INFRASTRUCTURE & ENVIRONMENT UK LIMITED,20/03/2024,"7,600.00",7200-Project Fees,CAPITAL,"NEW CONSTRUCTION,CONVERSION & RENOVATION",CAPITAL
Walsall Council,http://opendatacommunities.org/id/metropolitan-district-council/walsall ,WC160-631,31.03.24,CHILDRENS,AFGHAN COMMUNITY & WELFARE CENTRE,19/03/2024,"3,754.20",6211-Professional Fees & Services,SUPPLIES & SERVICES,SERVICES,REVENUE
Walsall Council,http://opendatacommunities.org/id/metropolitan-district-council/walsall ,WC160-632,31.03.24,ADULT SOCIAL CARE,REDACTED,06/03/2024,"1,181.80",6541-Direct Payment,THIRD PARTY PAYMENTS,PRIVATE CONTRACTOR,REVENUE
Walsall Council,http://opendatacommunities.org/id/metropolitan-district-council/walsall ,WC160-633,31.03.24,ADULT SOCIAL CARE,REDACTED,06/03/2024,"1,575.00",6541-Direct Payment,THIRD PARTY PAYMENTS,PRIVATE CONTRACTOR,REVENUE
Walsall Council,http://opendatacommunities.org/id/metropolitan-district-council/walsall ,WC160-634,31.03.24,CHILDRENS,REDACTED,06/03/2024,535.08,6223-Special Guardianship Orders,TRANSFER PAYMENTS,CHILDREN SOCIAL SERVICES CLIENT,REVENUE
Walsall Council,http://opendatacommunities.org/id/metropolitan-district-council/walsall ,WC160-635,31.03.24,"ECONOMY, ENVIRONMENT & COMMUNITIES",AGROVISTA UK LTD,04/03/2024,526.20,6410-Materials,SUPPLIES & SERVICES,EQUIPMENT FURNITURE & MATERIALS,REVENUE
Walsall Council,http://opendatacommunities.org/id/metropolitan-district-council/walsall ,WC160-636,31.03.24,"ECONOMY, ENVIRONMENT & COMMUNITIES",AGROVISTA UK LTD,04/03/2024,526.20,6410-Materials,SUPPLIES & SERVICES,EQUIPMENT FURNITURE & MATERIALS,REVENUE
Walsall Council,http://opendatacommunities.org/id/metropolitan-district-council/walsall ,WC160-637,31.03.24,"ECONOMY, ENVIRONMENT & COMMUNITIES",AGROVISTA UK LTD,04/03/2024,"1,029.00",6410-Materials,SUPPLIES & SERVICES,EQUIPMENT FURNITURE & MATERIALS,REVENUE
Walsall Council,http://opendatacommunities.org/id/metropolitan-district-council/walsall ,WC160-638,31.03.24,ECONOMY & ENVIRONMENT CAPITAL,AGROVISTA UK LTD,06/03/2024,328.48,7200-Site Works - Other Contractors,CAPITAL,"NEW CONSTRUCTION,CONVERSION & RENOVATION",CAPITAL
Walsall Council,http://opendatacommunities.org/id/metropolitan-district-council/walsall ,WC160-639,31.03.24,ADULT SOCIAL CARE,REDACTED,06/03/2024,534.20,6541-Direct Payment,THIRD PARTY PAYMENTS,PRIVATE CONTRACTOR,REVENUE
Walsall Council,http://opendatacommunities.org/id/metropolitan-district-council/walsall ,WC160-640,31.03.24,ADULT SOCIAL CARE,REDACTED,06/03/2024,"3,545.40",6541-Direct Payment,THIRD PARTY PAYMENTS,PRIVATE CONTRACTOR,REVENUE
Walsall Council,http://opendatacommunities.org/id/metropolitan-district-council/walsall ,WC160-641,31.03.24,RESOURCES AND TRANSFORMATION CAPITAL,AIRTECH CONTROLS LTD,20/03/2024,"2,775.00",7300-Site Works - Other Contractors,CAPITAL,"NEW CONSTRUCTION,CONVERSION & RENOVATION",CAPITAL
Walsall Council,http://opendatacommunities.org/id/metropolitan-district-council/walsall ,WC160-642,31.03.24,RESOURCES AND TRANSFORMATION CAPITAL,AIRTECH CONTROLS LTD,20/03/2024,"2,775.00",7300-Site Works - Other Contractors,CAPITAL,"NEW CONSTRUCTION,CONVERSION & RENOVATION",CAPITAL
Walsall Council,http://opendatacommunities.org/id/metropolitan-district-council/walsall ,WC160-643,31.03.24,ADULT SOCIAL CARE,REDACTED,06/03/2024,"1,406.80",6541-Direct Payment,THIRD PARTY PAYMENTS,PRIVATE CONTRACTOR,REVENUE
Walsall Council,http://opendatacommunities.org/id/metropolitan-district-council/walsall ,WC160-644,31.03.24,ADULT SOCIAL CARE,REDACTED,06/03/2024,642.35,6541-Direct Payment,THIRD PARTY PAYMENTS,PRIVATE CONTRACTOR,REVENUE
Walsall Council,http://opendatacommunities.org/id/metropolitan-district-council/walsall ,WC160-645,31.03.24,ADULT SOCIAL CARE,REDACTED,06/03/2024,334.30,6541-Direct Payment,THIRD PARTY PAYMENTS,PRIVATE CONTRACTOR,REVENUE
Walsall Council,http://opendatacommunities.org/id/metropolitan-district-council/walsall ,WC160-646,31.03.24,ADULT SOCIAL CARE,REDACTED,06/03/2024,"1,741.60",6541-Direct Payment,THIRD PARTY PAYMENTS,PRIVATE CONTRACTOR,REVENUE
Walsall Council,http://opendatacommunities.org/id/metropolitan-district-council/walsall ,WC160-647,31.03.24,ADULT SOCIAL CARE,ALDBOURNE NURSING HOME LTD,11/03/2024,"5,920.00",6541-Nursing EMI,THIRD PARTY PAYMENTS,PRIVATE CONTRACTOR,REVENUE
Walsall Council,http://opendatacommunities.org/id/metropolitan-district-council/walsall ,WC160-648,31.03.24,CHILDRENS,ALDRIDGE & BARONS LIMITED,25/03/2024,"1,825.50",6241-Hire of Vehicle with Driver,TRANSPORT,DIRECT TRANSPORT COSTS,REVENUE
Walsall Council,http://opendatacommunities.org/id/metropolitan-district-council/walsall ,WC160-649,31.03.24,CHILDRENS,ALDRIDGE & BARONS LIMITED,25/03/2024,"2,203.95",6241-Hire of Vehicle with Driver,TRANSPORT,DIRECT TRANSPORT COSTS,REVENUE
Walsall Council,http://opendatacommunities.org/id/metropolitan-district-council/walsall ,WC160-650,31.03.24,CHILDRENS,ALDRIDGE & BARONS LIMITED,25/03/2024,"2,145.00",6241-Hire of Vehicle with Driver,TRANSPORT,DIRECT TRANSPORT COSTS,REVENUE
Walsall Council,http://opendatacommunities.org/id/metropolitan-district-council/walsall ,WC160-651,31.03.24,CHILDRENS,ALDRIDGE & BARONS LIMITED,25/03/2024,"1,950.00",6241-Hire of Vehicle with Driver,TRANSPORT,DIRECT TRANSPORT COSTS,REVENUE
Walsall Council,http://opendatacommunities.org/id/metropolitan-district-council/walsall ,WC160-652,31.03.24,CHILDRENS,ALDRIDGE & BARONS LIMITED,25/03/2024,"1,800.00",6241-Hire of Vehicle with Driver,TRANSPORT,DIRECT TRANSPORT COSTS,REVENUE
Walsall Council,http://opendatacommunities.org/id/metropolitan-district-council/walsall ,WC160-653,31.03.24,CHILDRENS,ALDRIDGE & BARONS LIMITED,25/03/2024,"2,175.00",6241-Hire of Vehicle with Driver,TRANSPORT,DIRECT TRANSPORT COSTS,REVENUE
Walsall Council,http://opendatacommunities.org/id/metropolitan-district-council/walsall ,WC160-654,31.03.24,CHILDRENS,ALDRIDGE & BARONS LIMITED,25/03/2024,"1,299.42",6241-Hire of Vehicle with Driver,TRANSPORT,DIRECT TRANSPORT COSTS,REVENUE
Walsall Council,http://opendatacommunities.org/id/metropolitan-district-council/walsall ,WC160-655,31.03.24,CHILDRENS,ALDRIDGE & BARONS LIMITED,25/03/2024,"1,638.00",6241-Hire of Vehicle with Driver,TRANSPORT,DIRECT TRANSPORT COSTS,REVENUE
Walsall Council,http://opendatacommunities.org/id/metropolitan-district-council/walsall ,WC160-656,31.03.24,CHILDRENS,ALDRIDGE & BARONS LIMITED,25/03/2024,"1,687.50",6241-Hire of Vehicle with Driver,TRANSPORT,DIRECT TRANSPORT COSTS,REVENUE
Walsall Council,http://opendatacommunities.org/id/metropolitan-district-council/walsall ,WC160-657,31.03.24,CHILDRENS,ALDRIDGE & BARONS LIMITED,25/03/2024,"2,108.70",6241-Hire of Vehicle with Driver,TRANSPORT,DIRECT TRANSPORT COSTS,REVENUE
Walsall Council,http://opendatacommunities.org/id/metropolitan-district-council/walsall ,WC160-658,31.03.24,CHILDRENS,ALDRIDGE & BARONS LIMITED,25/03/2024,"2,512.50",6241-Hire of Vehicle with Driver,TRANSPORT,DIRECT TRANSPORT COSTS,REVENUE
Walsall Council,http://opendatacommunities.org/id/metropolitan-district-council/walsall ,WC160-659,31.03.24,CHILDRENS,ALDRIDGE & BARONS LIMITED,25/03/2024,"1,593.00",6241-Hire of Vehicle with Driver,TRANSPORT,DIRECT TRANSPORT COSTS,REVENUE
Walsall Council,http://opendatacommunities.org/id/metropolitan-district-council/walsall ,WC160-660,31.03.24,CHILDRENS,ALDRIDGE & BARONS LIMITED,25/03/2024,"1,339.80",6241-Hire of Vehicle with Driver,TRANSPORT,DIRECT TRANSPORT COSTS,REVENUE
Walsall Council,http://opendatacommunities.org/id/metropolitan-district-council/walsall ,WC160-661,31.03.24,CHILDRENS,ALDRIDGE & BARONS LIMITED,25/03/2024,"2,703.60",6241-Hire of Vehicle with Driver,TRANSPORT,DIRECT TRANSPORT COSTS,REVENUE
Walsall Council,http://opendatacommunities.org/id/metropolitan-district-council/walsall ,WC160-662,31.03.24,CHILDRENS,ALDRIDGE & BARONS LIMITED,25/03/2024,"1,674.00",6241-Hire of Vehicle with Driver,TRANSPORT,DIRECT TRANSPORT COSTS,REVENUE
Walsall Council,http://opendatacommunities.org/id/metropolitan-district-council/walsall ,WC160-663,31.03.24,CHILDRENS,ALDRIDGE & BARONS LIMITED,25/03/2024,"2,250.00",6241-Hire of Vehicle with Driver,TRANSPORT,DIRECT TRANSPORT COSTS,REVENUE
Walsall Council,http://opendatacommunities.org/id/metropolitan-district-council/walsall ,WC160-664,31.03.24,CHILDRENS,ALDRIDGE & BARONS LIMITED,25/03/2024,"2,700.00",6241-Hire of Vehicle with Driver,TRANSPORT,DIRECT TRANSPORT COSTS,REVENUE
Walsall Council,http://opendatacommunities.org/id/metropolitan-district-council/walsall ,WC160-665,31.03.24,CHILDRENS,ALDRIDGE & BARONS LIMITED,25/03/2024,"1,980.00",6241-Hire of Vehicle with Driver,TRANSPORT,DIRECT TRANSPORT COSTS,REVENUE
Walsall Council,http://opendatacommunities.org/id/metropolitan-district-council/walsall ,WC160-666,31.03.24,CHILDRENS,ALDRIDGE & BARONS LIMITED,25/03/2024,"2,860.00",6241-Hire of Vehicle with Driver,TRANSPORT,DIRECT TRANSPORT COSTS,REVENUE
Walsall Council,http://opendatacommunities.org/id/metropolitan-district-council/walsall ,WC160-667,31.03.24,CHILDRENS,ALDRIDGE & BARONS LIMITED,25/03/2024,"2,576.00",6241-Hire of Vehicle with Driver,TRANSPORT,DIRECT TRANSPORT COSTS,REVENUE
Walsall Council,http://opendatacommunities.org/id/metropolitan-district-council/walsall ,WC160-668,31.03.24,CHILDRENS,ALDRIDGE & BARONS LIMITED,25/03/2024,"2,400.00",6241-Hire of Vehicle with Driver,TRANSPORT,DIRECT TRANSPORT COSTS,REVENUE
Walsall Council,http://opendatacommunities.org/id/metropolitan-district-council/walsall ,WC160-669,31.03.24,CHILDRENS,ALDRIDGE & BARONS LIMITED,25/03/2024,"2,664.00",6241-Hire of Vehicle with Driver,TRANSPORT,DIRECT TRANSPORT COSTS,REVENUE
Walsall Council,http://opendatacommunities.org/id/metropolitan-district-council/walsall ,WC160-670,31.03.24,CHILDRENS,ALDRIDGE & BARONS LIMITED,25/03/2024,"2,367.00",6241-Hire of Vehicle with Driver,TRANSPORT,DIRECT TRANSPORT COSTS,REVENUE
Walsall Council,http://opendatacommunities.org/id/metropolitan-district-council/walsall ,WC160-671,31.03.24,CHILDRENS,ALDRIDGE & BARONS LIMITED,25/03/2024,"2,250.00",6241-Hire of Vehicle with Driver,TRANSPORT,DIRECT TRANSPORT COSTS,REVENUE
Walsall Council,http://opendatacommunities.org/id/metropolitan-district-council/walsall ,WC160-672,31.03.24,CHILDRENS,ALDRIDGE & BARONS LIMITED,25/03/2024,"2,221.66",6241-Hire of Vehicle with Driver,TRANSPORT,DIRECT TRANSPORT COSTS,REVENUE
Walsall Council,http://opendatacommunities.org/id/metropolitan-district-council/walsall ,WC160-673,31.03.24,CHILDRENS,ALDRIDGE & BARONS LIMITED,25/03/2024,"2,102.80",6241-Hire of Vehicle with Driver,TRANSPORT,DIRECT TRANSPORT COSTS,REVENUE
Walsall Council,http://opendatacommunities.org/id/metropolitan-district-council/walsall ,WC160-674,31.03.24,CHILDRENS,ALDRIDGE & BARONS LIMITED,25/03/2024,"1,620.00",6241-Hire of Vehicle with Driver,TRANSPORT,DIRECT TRANSPORT COSTS,REVENUE
Walsall Council,http://opendatacommunities.org/id/metropolitan-district-council/walsall ,WC160-675,31.03.24,CHILDRENS,ALDRIDGE & BARONS LIMITED,25/03/2024,"2,145.00",6241-Hire of Vehicle with Driver,TRANSPORT,DIRECT TRANSPORT COSTS,REVENUE
Walsall Council,http://opendatacommunities.org/id/metropolitan-district-council/walsall ,WC160-676,31.03.24,CHILDRENS,ALDRIDGE & BARONS LIMITED,25/03/2024,"1,875.00",6241-Hire of Vehicle with Driver,TRANSPORT,DIRECT TRANSPORT COSTS,REVENUE
Walsall Council,http://opendatacommunities.org/id/metropolitan-district-council/walsall ,WC160-677,31.03.24,CHILDRENS,ALDRIDGE & BARONS LIMITED,25/03/2024,"1,650.00",6241-Hire of Vehicle with Driver,TRANSPORT,DIRECT TRANSPORT COSTS,REVENUE
Walsall Council,http://opendatacommunities.org/id/metropolitan-district-council/walsall ,WC160-678,31.03.24,"ECONOMY, ENVIRONMENT & COMMUNITIES",ALDRIDGE SAILING CLUB,27/03/2024,"2,252.50",6430-Grants to Other Orgs,SUPPLIES & SERVICES,GRANTS (EXP) & SUBSCRIPTIONS,REVENUE
Walsall Council,http://opendatacommunities.org/id/metropolitan-district-council/walsall ,WC160-679,31.03.24,ADULT SOCIAL CARE,REDACTED,06/03/2024,"2,160.00",6541-Direct Payment,THIRD PARTY PAYMENTS,PRIVATE CONTRACTOR,REVENUE
Walsall Council,http://opendatacommunities.org/id/metropolitan-district-council/walsall ,WC160-680,31.03.24,"ECONOMY, ENVIRONMENT & COMMUNITIES",REDACTED,13/03/2024,250.00,6414-Events & Visual Arts,SUPPLIES & SERVICES,SERVICES,REVENUE
Walsall Council,http://opendatacommunities.org/id/metropolitan-district-council/walsall ,WC160-681,31.03.24,ADULT SOCIAL CARE,ALEXANDRA HOUSE CARE SERVICES LTD T/A STONEBRIDGE NURSING HOME,11/03/2024,"7,546.24",6541-Residential,THIRD PARTY PAYMENTS,PRIVATE CONTRACTOR,REVENUE
Walsall Council,http://opendatacommunities.org/id/metropolitan-district-council/walsall ,WC160-682,31.03.24,ADULT SOCIAL CARE,ALEXANDRA HOUSE SUPPORT SERVICES LTD,11/03/2024,"5,936.00",6541-Residential,THIRD PARTY PAYMENTS,PRIVATE CONTRACTOR,REVENUE
Walsall Council,http://opendatacommunities.org/id/metropolitan-district-council/walsall ,WC160-683,31.03.24,ADULT SOCIAL CARE,REDACTED,06/03/2024,"1,368.40",6541-Direct Payment,THIRD PARTY PAYMENTS,PRIVATE CONTRACTOR,REVENUE
Walsall Council,http://opendatacommunities.org/id/metropolitan-district-council/walsall ,WC160-684,31.03.24,CHILDRENS,REDACTED,06/03/2024,323.60,6223-Special Guardianship Orders,TRANSFER PAYMENTS,CHILDREN SOCIAL SERVICES CLIENT,REVENUE
Walsall Council,http://opendatacommunities.org/id/metropolitan-district-council/walsall ,WC160-685,31.03.24,CHILDRENS,ALL SAINTS C OF E PRIMARY SCHOOL,12/03/2024,"3,131.33",1220-Top Up Funding -Grants to Schools,SUPPLIES & SERVICES,GRANTS (EXP) & SUBSCRIPTIONS,REVENUE
Walsall Council,http://opendatacommunities.org/id/metropolitan-district-council/walsall ,WC160-686,31.03.24,CHILDRENS,ALL STARS WALSALL CIC,19/03/2024,"3,435.20",6211-Professional Fees & Services,SUPPLIES & SERVICES,SERVICES,REVENUE
Walsall Council,http://opendatacommunities.org/id/metropolitan-district-council/walsall ,WC160-687,31.03.24,RESOURCES AND TRANSFORMATION,ALLIED PUBLICITY SERVICES (MANCHESTER) LIMITED T/A APS GROUP,04/03/2024,"1,312.77",6312-External Printing Services,SUPPLIES & SERVICES,PRINTING STATIONERY & GENERAL OFFICE,REVENUE
Walsall Council,http://opendatacommunities.org/id/metropolitan-district-council/walsall ,WC160-688,31.03.24,ADULT SOCIAL CARE,ALMA COURT,11/03/2024,"6,718.40",6541-Residential,THIRD PARTY PAYMENTS,PRIVATE CONTRACTOR,REVENUE
Walsall Council,http://opendatacommunities.org/id/metropolitan-district-council/walsall ,WC160-689,31.03.24,ADULT SOCIAL CARE,ALMA COURT,11/03/2024,"4,861.00",6541-Nursing EMI,THIRD PARTY PAYMENTS,PRIVATE CONTRACTOR,REVENUE
Walsall Council,http://opendatacommunities.org/id/metropolitan-district-council/walsall ,WC160-690,31.03.24,ADULT SOCIAL CARE,ALMA COURT,11/03/2024,"5,200.00",6541-Nursing EMI,THIRD PARTY PAYMENTS,PRIVATE CONTRACTOR,REVENUE
Walsall Council,http://opendatacommunities.org/id/metropolitan-district-council/walsall ,WC160-691,31.03.24,ADULT SOCIAL CARE,ALMA COURT,11/03/2024,"4,263.00",6541-Residential,THIRD PARTY PAYMENTS,PRIVATE CONTRACTOR,REVENUE
Walsall Council,http://opendatacommunities.org/id/metropolitan-district-council/walsall ,WC160-692,31.03.24,ADULT SOCIAL CARE,ALMA COURT,11/03/2024,"4,055.28",6541-Nursing EMI,THIRD PARTY PAYMENTS,PRIVATE CONTRACTOR,REVENUE
Walsall Council,http://opendatacommunities.org/id/metropolitan-district-council/walsall ,WC160-693,31.03.24,ADULT SOCIAL CARE,ALMA COURT,11/03/2024,"5,200.00",6541-Residential,THIRD PARTY PAYMENTS,PRIVATE CONTRACTOR,REVENUE
Walsall Council,http://opendatacommunities.org/id/metropolitan-district-council/walsall ,WC160-694,31.03.24,RESOURCES AND TRANSFORMATION,ALMADEN UK LTD,05/03/2024,"2,400.00",6623-Computer Equipment,SUPPLIES & SERVICES,COMMUNICATIONS & COMPUTING,REVENUE
Walsall Council,http://opendatacommunities.org/id/metropolitan-district-council/walsall ,WC160-695,31.03.24,CHILDRENS,ALMOZENE NURSERY & CHILDRENS CENTRE,19/03/2024,"2,400.00",6211-Professional Fees & Services,SUPPLIES & SERVICES,SERVICES,REVENUE
Walsall Council,http://opendatacommunities.org/id/metropolitan-district-council/walsall ,WC160-696,31.03.24,ADULT SOCIAL CARE,ALPHA HEALTH CARE LTD,11/03/2024,"2,819.08",6541-Nursing EMI,THIRD PARTY PAYMENTS,PRIVATE CONTRACTOR,REVENUE
Walsall Council,http://opendatacommunities.org/id/metropolitan-district-council/walsall ,WC160-697,31.03.24,ADULT SOCIAL CARE,ALPHA HEALTH CARE LTD,11/03/2024,"3,723.08",6541-Nursing EMI,THIRD PARTY PAYMENTS,PRIVATE CONTRACTOR,REVENUE
Walsall Council,http://opendatacommunities.org/id/metropolitan-district-council/walsall ,WC160-698,31.03.24,ADULT SOCIAL CARE,ALPHA HEALTH CARE LTD,11/03/2024,"3,445.36",6541-Residential EMI,THIRD PARTY PAYMENTS,PRIVATE CONTRACTOR,REVENUE
Walsall Council,http://opendatacommunities.org/id/metropolitan-district-council/walsall ,WC160-699,31.03.24,ADULT SOCIAL CARE,ALPHA HEALTH CARE LTD,11/03/2024,"2,813.36",6541-Residential EMI,THIRD PARTY PAYMENTS,PRIVATE CONTRACTOR,REVENUE
Walsall Council,http://opendatacommunities.org/id/metropolitan-district-council/walsall ,WC160-700,31.03.24,ADULT SOCIAL CARE,ALPHA HEALTH CARE LTD,11/03/2024,"4,027.32",6541-Residential EMI,THIRD PARTY PAYMENTS,PRIVATE CONTRACTOR,REVENUE
Walsall Council,http://opendatacommunities.org/id/metropolitan-district-council/walsall ,WC160-701,31.03.24,ADULT SOCIAL CARE,ALPHA HEALTH CARE LTD,11/03/2024,"-35,902.85",6541-Nursing EMI,THIRD PARTY PAYMENTS,PRIVATE CONTRACTOR,REVENUE
Walsall Council,http://opendatacommunities.org/id/metropolitan-district-council/walsall ,WC160-702,31.03.24,ADULT SOCIAL CARE,ALPHA HEALTH CARE LTD,11/03/2024,"1,289.56",6541-Nursing,THIRD PARTY PAYMENTS,PRIVATE CONTRACTOR,REVENUE
Walsall Council,http://opendatacommunities.org/id/metropolitan-district-council/walsall ,WC160-703,31.03.24,ADULT SOCIAL CARE,ALPHA HEALTH CARE LTD,11/03/2024,"3,090.44",6541-Residential,THIRD PARTY PAYMENTS,PRIVATE CONTRACTOR,REVENUE
Walsall Council,http://opendatacommunities.org/id/metropolitan-district-council/walsall ,WC160-704,31.03.24,ADULT SOCIAL CARE,ALPHA HEALTH CARE LTD,11/03/2024,"3,567.32",6541-Residential EMI,THIRD PARTY PAYMENTS,PRIVATE CONTRACTOR,REVENUE
Walsall Council,http://opendatacommunities.org/id/metropolitan-district-council/walsall ,WC160-705,31.03.24,ADULT SOCIAL CARE,ALPHA HEALTH CARE LTD,11/03/2024,"2,413.36",6541-Residential EMI,THIRD PARTY PAYMENTS,PRIVATE CONTRACTOR,REVENUE
Walsall Council,http://opendatacommunities.org/id/metropolitan-district-council/walsall ,WC160-706,31.03.24,ADULT SOCIAL CARE,ALPHA HEALTH CARE LTD,11/03/2024,"4,440.00",6541-Nursing EMI,THIRD PARTY PAYMENTS,PRIVATE CONTRACTOR,REVENUE
Walsall Council,http://opendatacommunities.org/id/metropolitan-district-council/walsall ,WC160-707,31.03.24,ADULT SOCIAL CARE,ALPHA HEALTH CARE LTD,11/03/2024,"4,855.28",6541-Nursing EMI,THIRD PARTY PAYMENTS,PRIVATE CONTRACTOR,REVENUE
Walsall Council,http://opendatacommunities.org/id/metropolitan-district-council/walsall ,WC160-708,31.03.24,ADULT SOCIAL CARE,ALPHA HEALTH CARE LTD,11/03/2024,"5,055.28",6541-Nursing EMI,THIRD PARTY PAYMENTS,PRIVATE CONTRACTOR,REVENUE
Walsall Council,http://opendatacommunities.org/id/metropolitan-district-council/walsall ,WC160-709,31.03.24,ADULT SOCIAL CARE,ALPHA HEALTH CARE LTD,11/03/2024,"2,936.84",6541-Residential EMI,THIRD PARTY PAYMENTS,PRIVATE CONTRACTOR,REVENUE
Walsall Council,http://opendatacommunities.org/id/metropolitan-district-council/walsall ,WC160-710,31.03.24,ADULT SOCIAL CARE,ALPHA HEALTH CARE LTD,11/03/2024,"7,105.00",6541-Residential,THIRD PARTY PAYMENTS,PRIVATE CONTRACTOR,REVENUE
Walsall Council,http://opendatacommunities.org/id/metropolitan-district-council/walsall ,WC160-711,31.03.24,ADULT SOCIAL CARE,ALPHA HEALTH CARE LTD,11/03/2024,"1,967.86",6541-Residential EMI,THIRD PARTY PAYMENTS,PRIVATE CONTRACTOR,REVENUE
Walsall Council,http://opendatacommunities.org/id/metropolitan-district-council/walsall ,WC160-712,31.03.24,ADULT SOCIAL CARE,ALPHA HEALTH CARE LTD,11/03/2024,"1,140.00",6541-Residential,THIRD PARTY PAYMENTS,PRIVATE CONTRACTOR,REVENUE
Walsall Council,http://opendatacommunities.org/id/metropolitan-district-council/walsall ,WC160-713,31.03.24,ADULT SOCIAL CARE,ALPHA HEALTH CARE LTD,11/03/2024,"3,800.00",6541-Residential,THIRD PARTY PAYMENTS,PRIVATE CONTRACTOR,REVENUE
Walsall Council,http://opendatacommunities.org/id/metropolitan-district-council/walsall ,WC160-714,31.03.24,ADULT SOCIAL CARE,ALPHA HEALTH CARE LTD,11/03/2024,"4,600.00",6541-Residential,THIRD PARTY PAYMENTS,PRIVATE CONTRACTOR,REVENUE
Walsall Council,http://opendatacommunities.org/id/metropolitan-district-council/walsall ,WC160-715,31.03.24,ADULT SOCIAL CARE,ALPHA HEALTH CARE LTD,11/03/2024,"7,980.00",6541-Residential,THIRD PARTY PAYMENTS,PRIVATE CONTRACTOR,REVENUE
Walsall Council,http://opendatacommunities.org/id/metropolitan-district-council/walsall ,WC160-716,31.03.24,ADULT SOCIAL CARE,ALPHA HEALTH CARE LTD,11/03/2024,"4,800.00",6541-Nursing EMI,THIRD PARTY PAYMENTS,PRIVATE CONTRACTOR,REVENUE
Walsall Council,http://opendatacommunities.org/id/metropolitan-district-council/walsall ,WC160-717,31.03.24,ADULT SOCIAL CARE,ALPHA HEALTH CARE LTD,11/03/2024,"10,125.00",6541-Residential,THIRD PARTY PAYMENTS,PRIVATE CONTRACTOR,REVENUE
Walsall Council,http://opendatacommunities.org/id/metropolitan-district-council/walsall ,WC160-718,31.03.24,ADULT SOCIAL CARE,ALPHA HEALTH CARE LTD,11/03/2024,"3,422.28",6541-Residential EMI,THIRD PARTY PAYMENTS,PRIVATE CONTRACTOR,REVENUE
Walsall Council,http://opendatacommunities.org/id/metropolitan-district-council/walsall ,WC160-719,31.03.24,ADULT SOCIAL CARE,ALPHA HEALTH CARE LTD,11/03/2024,"7,600.00",6541-Residential,THIRD PARTY PAYMENTS,PRIVATE CONTRACTOR,REVENUE
Walsall Council,http://opendatacommunities.org/id/metropolitan-district-council/walsall ,WC160-720,31.03.24,ADULT SOCIAL CARE,ALPHA HEALTH CARE LTD,11/03/2024,"7,600.00",6541-Residential,THIRD PARTY PAYMENTS,PRIVATE CONTRACTOR,REVENUE
Walsall Council,http://opendatacommunities.org/id/metropolitan-district-council/walsall ,WC160-721,31.03.24,ADULT SOCIAL CARE,ALPHA HEALTH CARE LTD,11/03/2024,"7,980.00",6541-Nursing EMI,THIRD PARTY PAYMENTS,PRIVATE CONTRACTOR,REVENUE
Walsall Council,http://opendatacommunities.org/id/metropolitan-district-council/walsall ,WC160-722,31.03.24,ADULT SOCIAL CARE,ALPHA HEALTH CARE LTD,11/03/2024,"7,180.00",6541-Nursing EMI,THIRD PARTY PAYMENTS,PRIVATE CONTRACTOR,REVENUE
Walsall Council,http://opendatacommunities.org/id/metropolitan-district-council/walsall ,WC160-723,31.03.24,ADULT SOCIAL CARE,ALPHA HEALTH CARE LTD,11/03/2024,"3,621.16",6541-Nursing EMI,THIRD PARTY PAYMENTS,PRIVATE CONTRACTOR,REVENUE
Walsall Council,http://opendatacommunities.org/id/metropolitan-district-council/walsall ,WC160-724,31.03.24,ADULT SOCIAL CARE,ALPHA HEALTH CARE LTD,11/03/2024,"6,343.36",6541-Residential,THIRD PARTY PAYMENTS,PRIVATE CONTRACTOR,REVENUE
Walsall Council,http://opendatacommunities.org/id/metropolitan-district-council/walsall ,WC160-725,31.03.24,ADULT SOCIAL CARE,ALPHA HEALTH CARE LTD,11/03/2024,"3,829.36",6541-Residential EMI,THIRD PARTY PAYMENTS,PRIVATE CONTRACTOR,REVENUE
Walsall Council,http://opendatacommunities.org/id/metropolitan-district-council/walsall ,WC160-726,31.03.24,ADULT SOCIAL CARE,ALPHA HEALTH CARE LTD,11/03/2024,"7,600.00",6541-Residential,THIRD PARTY PAYMENTS,PRIVATE CONTRACTOR,REVENUE
Walsall Council,http://opendatacommunities.org/id/metropolitan-district-council/walsall ,WC160-727,31.03.24,ADULT SOCIAL CARE,ALPHA HEALTH CARE LTD,11/03/2024,"3,721.16",6541-Nursing EMI,THIRD PARTY PAYMENTS,PRIVATE CONTRACTOR,REVENUE
Walsall Council,http://opendatacommunities.org/id/metropolitan-district-council/walsall ,WC160-728,31.03.24,ADULT SOCIAL CARE,ALPHA HEALTH CARE LTD,11/03/2024,"3,800.00",6541-Residential,THIRD PARTY PAYMENTS,PRIVATE CONTRACTOR,REVENUE
Walsall Council,http://opendatacommunities.org/id/metropolitan-district-council/walsall ,WC160-729,31.03.24,ADULT SOCIAL CARE,ALPHA HEALTH CARE LTD,11/03/2024,"4,100.00",6541-Residential,THIRD PARTY PAYMENTS,PRIVATE CONTRACTOR,REVENUE
Walsall Council,http://opendatacommunities.org/id/metropolitan-district-council/walsall ,WC160-730,31.03.24,ADULT SOCIAL CARE,ALPHA HEALTH CARE LTD,11/03/2024,"4,200.00",6541-Nursing EMI,THIRD PARTY PAYMENTS,PRIVATE CONTRACTOR,REVENUE
Walsall Council,http://opendatacommunities.org/id/metropolitan-district-council/walsall ,WC160-731,31.03.24,ADULT SOCIAL CARE,ALPHA HEALTH CARE LTD,11/03/2024,"7,123.08",6541-Residential,THIRD PARTY PAYMENTS,PRIVATE CONTRACTOR,REVENUE
Walsall Council,http://opendatacommunities.org/id/metropolitan-district-council/walsall ,WC160-732,31.03.24,ADULT SOCIAL CARE,ALPHA HEALTH CARE LTD,11/03/2024,"7,600.00",6541-Residential,THIRD PARTY PAYMENTS,PRIVATE CONTRACTOR,REVENUE
Walsall Council,http://opendatacommunities.org/id/metropolitan-district-council/walsall ,WC160-733,31.03.24,CHILDRENS,ALPHA TRAINING ACADEMY UK LTD,11/03/2024,"5,100.00",1187-Materials,SUPPLIES & SERVICES,EQUIPMENT FURNITURE & MATERIALS,REVENUE
Walsall Council,http://opendatacommunities.org/id/metropolitan-district-council/walsall ,WC160-734,31.03.24,CHILDRENS,ALPHA TRAINING ACADEMY UK LTD,01/03/2024,"40,000.00",1220-Top Up Funding -Grants to Schools,SUPPLIES & SERVICES,GRANTS (EXP) & SUBSCRIPTIONS,REVENUE
Walsall Council,http://opendatacommunities.org/id/metropolitan-district-council/walsall ,WC160-735,31.03.24,ADULT SOCIAL CARE,REDACTED,06/03/2024,885.40,6541-Direct Payment,THIRD PARTY PAYMENTS,PRIVATE CONTRACTOR,REVENUE
Walsall Council,http://opendatacommunities.org/id/metropolitan-district-council/walsall ,WC160-736,31.03.24,ADULT SOCIAL CARE,REDACTED,06/03/2024,"1,565.05",6541-Shared Lives,THIRD PARTY PAYMENTS,PRIVATE CONTRACTOR,REVENUE
Walsall Council,http://opendatacommunities.org/id/metropolitan-district-council/walsall ,WC160-737,31.03.24,ADULT SOCIAL CARE,REDACTED,06/03/2024,340.00,6541-Direct Payment,THIRD PARTY PAYMENTS,PRIVATE CONTRACTOR,REVENUE
Walsall Council,http://opendatacommunities.org/id/metropolitan-district-council/walsall ,WC160-738,31.03.24,CHILDRENS,LITTLE BLOSSOMS CHILDMINDING,20/03/2024,"1,393.50",6223-Creche Facilities,SUPPLIES & SERVICES,SERVICES,REVENUE
Walsall Council,http://opendatacommunities.org/id/metropolitan-district-council/walsall ,WC160-739,31.03.24,CHILDRENS,AMANS TRAVEL LTD,25/03/2024,"2,328.75",6241-Hire of Vehicle with Driver,TRANSPORT,DIRECT TRANSPORT COSTS,REVENUE
Walsall Council,http://opendatacommunities.org/id/metropolitan-district-council/walsall ,WC160-740,31.03.24,CHILDRENS,AMANS TRAVEL LTD,25/03/2024,"3,277.50",6241-Hire of Vehicle with Driver,TRANSPORT,DIRECT TRANSPORT COSTS,REVENUE
Walsall Council,http://opendatacommunities.org/id/metropolitan-district-council/walsall ,WC160-741,31.03.24,CHILDRENS,AMANS TRAVEL LTD,25/03/2024,"3,277.50",6241-Hire of Vehicle with Driver,TRANSPORT,DIRECT TRANSPORT COSTS,REVENUE
Walsall Council,http://opendatacommunities.org/id/metropolitan-district-council/walsall ,WC160-742,31.03.24,CHILDRENS,AMANS TRAVEL LTD,25/03/2024,"5,250.00",6241-Hire of Vehicle with Driver,TRANSPORT,DIRECT TRANSPORT COSTS,REVENUE
Walsall Council,http://opendatacommunities.org/id/metropolitan-district-council/walsall ,WC160-743,31.03.24,CHILDRENS,AMANS TRAVEL LTD,25/03/2024,"3,577.50",6241-Hire of Vehicle with Driver,TRANSPORT,DIRECT TRANSPORT COSTS,REVENUE
Walsall Council,http://opendatacommunities.org/id/metropolitan-district-council/walsall ,WC160-744,31.03.24,ADULT SOCIAL CARE,REDACTED,06/03/2024,"4,724.61",6541-Direct Payment,THIRD PARTY PAYMENTS,PRIVATE CONTRACTOR,REVENUE
Walsall Council,http://opendatacommunities.org/id/metropolitan-district-council/walsall ,WC160-745,31.03.24,ECONOMY & ENVIRONMENT CAPITAL,AMEY LG LIMITED,01/03/2024,"16,511.80",7200-Site Works Contractors,CAPITAL,"NEW CONSTRUCTION,CONVERSION & RENOVATION",CAPITAL
Walsall Council,http://opendatacommunities.org/id/metropolitan-district-council/walsall ,WC160-746,31.03.24,ECONOMY & ENVIRONMENT CAPITAL,AMEY LG LIMITED,12/03/2024,520.48,7200-Site Works Contractors,CAPITAL,"NEW CONSTRUCTION,CONVERSION & RENOVATION",CAPITAL
Walsall Council,http://opendatacommunities.org/id/metropolitan-district-council/walsall ,WC160-747,31.03.24,ECONOMY & ENVIRONMENT CAPITAL,AMEY LG LIMITED,14/03/2024,"4,277.46",7200-Consultants Fees,CAPITAL,"NEW CONSTRUCTION,CONVERSION & RENOVATION",CAPITAL
Walsall Council,http://opendatacommunities.org/id/metropolitan-district-council/walsall ,WC160-748,31.03.24,"ECONOMY, ENVIRONMENT & COMMUNITIES",AMEY LG LIMITED,19/03/2024,"17,581.60",6411-Materials,SUPPLIES & SERVICES,EQUIPMENT FURNITURE & MATERIALS,REVENUE
Walsall Council,http://opendatacommunities.org/id/metropolitan-district-council/walsall ,WC160-749,31.03.24,ECONOMY & ENVIRONMENT CAPITAL,AMEY LG LIMITED,27/03/2024,"13,056.03",7200-Site Works Contractors,CAPITAL,"NEW CONSTRUCTION,CONVERSION & RENOVATION",CAPITAL
Walsall Council,http://opendatacommunities.org/id/metropolitan-district-council/walsall ,WC160-750,31.03.24,ECONOMY & ENVIRONMENT CAPITAL,AMEY OW LTD,14/03/2024,"3,874.77",7200-Consultants Fees,CAPITAL,"NEW CONSTRUCTION,CONVERSION & RENOVATION",CAPITAL
Walsall Council,http://opendatacommunities.org/id/metropolitan-district-council/walsall ,WC160-751,31.03.24,ECONOMY & ENVIRONMENT CAPITAL,AMEY OW LTD,21/03/2024,"11,232.01",7200-Site Works Contractors,CAPITAL,"NEW CONSTRUCTION,CONVERSION & RENOVATION",CAPITAL
Walsall Council,http://opendatacommunities.org/id/metropolitan-district-council/walsall ,WC160-752,31.03.24,CHILDRENS,AMG NURSING CARE SERVICES,01/03/2024,535.30,6220-Professional Fees & Services,SUPPLIES & SERVICES,SERVICES,REVENUE
Walsall Council,http://opendatacommunities.org/id/metropolitan-district-council/walsall ,WC160-753,31.03.24,CHILDRENS,AMG NURSING CARE SERVICES,13/03/2024,"1,337.81",6220-Professional Fees & Services,SUPPLIES & SERVICES,SERVICES,REVENUE
Walsall Council,http://opendatacommunities.org/id/metropolitan-district-council/walsall ,WC160-754,31.03.24,CHILDRENS,AMG NURSING CARE SERVICES,07/03/2024,"1,337.81",6220-Professional Fees & Services,SUPPLIES & SERVICES,SERVICES,REVENUE
Walsall Council,http://opendatacommunities.org/id/metropolitan-district-council/walsall ,WC160-755,31.03.24,CHILDRENS,AMG NURSING CARE SERVICES,07/03/2024,483.56,6220-Professional Fees & Services,SUPPLIES & SERVICES,SERVICES,REVENUE
Walsall Council,http://opendatacommunities.org/id/metropolitan-district-council/walsall ,WC160-756,31.03.24,CHILDRENS,AMG NURSING CARE SERVICES,21/03/2024,535.30,6220-Professional Fees & Services,SUPPLIES & SERVICES,SERVICES,REVENUE
Walsall Council,http://opendatacommunities.org/id/metropolitan-district-council/walsall ,WC160-757,31.03.24,CHILDRENS,AMG NURSING CARE SERVICES,13/03/2024,"1,337.81",6220-Professional Fees & Services,SUPPLIES & SERVICES,SERVICES,REVENUE
Walsall Council,http://opendatacommunities.org/id/metropolitan-district-council/walsall ,WC160-758,31.03.24,CHILDRENS,AMG NURSING CARE SERVICES,19/03/2024,548.46,6220-Professional Fees & Services,SUPPLIES & SERVICES,SERVICES,REVENUE
Walsall Council,http://opendatacommunities.org/id/metropolitan-district-council/walsall ,WC160-759,31.03.24,CHILDRENS,AMG NURSING CARE SERVICES,21/03/2024,428.24,6220-Professional Fees & Services,SUPPLIES & SERVICES,SERVICES,REVENUE
Walsall Council,http://opendatacommunities.org/id/metropolitan-district-council/walsall ,WC160-760,31.03.24,CHILDRENS,AMG NURSING CARE SERVICES,21/03/2024,"-1,228.62",6220-Professional Fees & Services,SUPPLIES & SERVICES,SERVICES,REVENUE
Walsall Council,http://opendatacommunities.org/id/metropolitan-district-council/walsall ,WC160-761,31.03.24,CHILDRENS,AMG NURSING CARE SERVICES,21/03/2024,"1,228.62",6220-Professional Fees & Services,SUPPLIES & SERVICES,SERVICES,REVENUE
Walsall Council,http://opendatacommunities.org/id/metropolitan-district-council/walsall ,WC160-762,31.03.24,CHILDRENS,AMG NURSING CARE SERVICES,21/03/2024,"1,228.66",6220-Professional Fees & Services,SUPPLIES & SERVICES,SERVICES,REVENUE
Walsall Council,http://opendatacommunities.org/id/metropolitan-district-council/walsall ,WC160-763,31.03.24,CHILDRENS,AMG NURSING CARE SERVICES,19/03/2024,344.72,6220-Professional Fees & Services,SUPPLIES & SERVICES,SERVICES,REVENUE
Walsall Council,http://opendatacommunities.org/id/metropolitan-district-council/walsall ,WC160-764,31.03.24,CHILDRENS,AMMA CHILDCARE SERVICES LTD,19/03/2024,"24,760.00",6223-External Residential Care-Oth Agency Provision,THIRD PARTY PAYMENTS,PRIVATE CONTRACTOR,REVENUE
Walsall Council,http://opendatacommunities.org/id/metropolitan-district-council/walsall ,WC160-765,31.03.24,CHILDRENS,REDACTED,06/03/2024,700.00,6223-Special Guardianship Orders,TRANSFER PAYMENTS,CHILDREN SOCIAL SERVICES CLIENT,REVENUE
Walsall Council,http://opendatacommunities.org/id/metropolitan-district-council/walsall ,WC160-766,31.03.24,CHILDRENS,REDACTED,06/03/2024,374.00,6223-Special Guardianship Orders,TRANSFER PAYMENTS,CHILDREN SOCIAL SERVICES CLIENT,REVENUE
Walsall Council,http://opendatacommunities.org/id/metropolitan-district-council/walsall ,WC160-767,31.03.24,CHILDRENS,REDACTED,13/03/2024,400.00,6223-Setting Up Home Grant,TRANSFER PAYMENTS,CHILDREN SOCIAL SERVICES CLIENT,REVENUE
Walsall Council,http://opendatacommunities.org/id/metropolitan-district-council/walsall ,WC160-768,31.03.24,ADULT SOCIAL CARE,ANCHOR HANOVER GROUP - BLOOMFIELD COURT,11/03/2024,"2,413.36",6541-Residential EMI,THIRD PARTY PAYMENTS,PRIVATE CONTRACTOR,REVENUE
Walsall Council,http://opendatacommunities.org/id/metropolitan-district-council/walsall ,WC160-769,31.03.24,ADULT SOCIAL CARE,ANCHOR HANOVER GROUP - HARDEN HALL CARE HOME,11/03/2024,"2,413.36",6541-Residential EMI,THIRD PARTY PAYMENTS,PRIVATE CONTRACTOR,REVENUE
Walsall Council,http://opendatacommunities.org/id/metropolitan-district-council/walsall ,WC160-770,31.03.24,ADULT SOCIAL CARE,ANCHOR HANOVER GROUP - HARDEN HALL CARE HOME,11/03/2024,"2,413.36",6541-Residential EMI,THIRD PARTY PAYMENTS,PRIVATE CONTRACTOR,REVENUE
Walsall Council,http://opendatacommunities.org/id/metropolitan-district-council/walsall ,WC160-771,31.03.24,ADULT SOCIAL CARE,ANCHOR HANOVER GROUP - HARDEN HALL CARE HOME,11/03/2024,"2,413.36",6541-Residential EMI,THIRD PARTY PAYMENTS,PRIVATE CONTRACTOR,REVENUE
Walsall Council,http://opendatacommunities.org/id/metropolitan-district-council/walsall ,WC160-772,31.03.24,ADULT SOCIAL CARE,ANCHOR HANOVER GROUP - HARDEN HALL CARE HOME,11/03/2024,"2,413.36",6541-Residential EMI,THIRD PARTY PAYMENTS,PRIVATE CONTRACTOR,REVENUE
Walsall Council,http://opendatacommunities.org/id/metropolitan-district-council/walsall ,WC160-773,31.03.24,ADULT SOCIAL CARE,ANCHOR HANOVER GROUP - HARDEN HALL CARE HOME,11/03/2024,"2,413.36",6541-Residential EMI,THIRD PARTY PAYMENTS,PRIVATE CONTRACTOR,REVENUE
Walsall Council,http://opendatacommunities.org/id/metropolitan-district-council/walsall ,WC160-774,31.03.24,ADULT SOCIAL CARE,ANCHOR HANOVER GROUP - HARDEN HALL CARE HOME,11/03/2024,"2,773.36",6541-Residential EMI,THIRD PARTY PAYMENTS,PRIVATE CONTRACTOR,REVENUE
Walsall Council,http://opendatacommunities.org/id/metropolitan-district-council/walsall ,WC160-775,31.03.24,ADULT SOCIAL CARE,ANCHOR HANOVER GROUP - HARDEN HALL CARE HOME,11/03/2024,"2,413.36",6541-Residential EMI,THIRD PARTY PAYMENTS,PRIVATE CONTRACTOR,REVENUE
Walsall Council,http://opendatacommunities.org/id/metropolitan-district-council/walsall ,WC160-776,31.03.24,ADULT SOCIAL CARE,ANCHOR HANOVER GROUP - HARDEN HALL CARE HOME,11/03/2024,"2,773.36",6541-Residential EMI,THIRD PARTY PAYMENTS,PRIVATE CONTRACTOR,REVENUE
Walsall Council,http://opendatacommunities.org/id/metropolitan-district-council/walsall ,WC160-777,31.03.24,ADULT SOCIAL CARE,ANCHOR HANOVER GROUP - HARDEN HALL CARE HOME,11/03/2024,"2,773.36",6541-Residential EMI,THIRD PARTY PAYMENTS,PRIVATE CONTRACTOR,REVENUE
Walsall Council,http://opendatacommunities.org/id/metropolitan-district-council/walsall ,WC160-778,31.03.24,ADULT SOCIAL CARE,ANCHOR HANOVER GROUP - HARDEN HALL CARE HOME,11/03/2024,"2,137.32",6541-Residential,THIRD PARTY PAYMENTS,PRIVATE CONTRACTOR,REVENUE
Walsall Council,http://opendatacommunities.org/id/metropolitan-district-council/walsall ,WC160-779,31.03.24,ADULT SOCIAL CARE,ANCHOR HANOVER GROUP - HARDEN HALL CARE HOME,11/03/2024,"2,773.36",6541-Residential EMI,THIRD PARTY PAYMENTS,PRIVATE CONTRACTOR,REVENUE
Walsall Council,http://opendatacommunities.org/id/metropolitan-district-council/walsall ,WC160-780,31.03.24,ADULT SOCIAL CARE,ANCHOR HANOVER GROUP - HARDEN HALL CARE HOME,11/03/2024,"2,413.36",6541-Residential EMI,THIRD PARTY PAYMENTS,PRIVATE CONTRACTOR,REVENUE
Walsall Council,http://opendatacommunities.org/id/metropolitan-district-council/walsall ,WC160-781,31.03.24,ADULT SOCIAL CARE,ANCHOR HANOVER GROUP - HARDEN HALL CARE HOME,11/03/2024,"2,413.36",6541-Residential EMI,THIRD PARTY PAYMENTS,PRIVATE CONTRACTOR,REVENUE
Walsall Council,http://opendatacommunities.org/id/metropolitan-district-council/walsall ,WC160-782,31.03.24,ADULT SOCIAL CARE,ANCHOR HANOVER GROUP - HARDEN HALL CARE HOME,11/03/2024,"2,413.36",6541-Residential EMI,THIRD PARTY PAYMENTS,PRIVATE CONTRACTOR,REVENUE
Walsall Council,http://opendatacommunities.org/id/metropolitan-district-council/walsall ,WC160-783,31.03.24,ADULT SOCIAL CARE,ANCHOR HANOVER GROUP - HARDEN HALL CARE HOME,11/03/2024,"2,773.36",6541-Residential EMI,THIRD PARTY PAYMENTS,PRIVATE CONTRACTOR,REVENUE
Walsall Council,http://opendatacommunities.org/id/metropolitan-district-council/walsall ,WC160-784,31.03.24,ADULT SOCIAL CARE,ANCHOR HANOVER GROUP - HARDEN HALL CARE HOME,11/03/2024,"2,773.36",6541-Residential EMI,THIRD PARTY PAYMENTS,PRIVATE CONTRACTOR,REVENUE
Walsall Council,http://opendatacommunities.org/id/metropolitan-district-council/walsall ,WC160-785,31.03.24,ADULT SOCIAL CARE,ANCHOR HANOVER GROUP - HARDEN HALL CARE HOME,11/03/2024,"2,773.36",6541-Residential EMI,THIRD PARTY PAYMENTS,PRIVATE CONTRACTOR,REVENUE
Walsall Council,http://opendatacommunities.org/id/metropolitan-district-council/walsall ,WC160-786,31.03.24,ADULT SOCIAL CARE,ANCHOR HANOVER GROUP - HARDEN HALL CARE HOME,11/03/2024,"2,613.36",6541-Residential EMI,THIRD PARTY PAYMENTS,PRIVATE CONTRACTOR,REVENUE
Walsall Council,http://opendatacommunities.org/id/metropolitan-district-council/walsall ,WC160-787,31.03.24,ADULT SOCIAL CARE,ANCHOR HANOVER GROUP - HARDEN HALL CARE HOME,11/03/2024,"3,268.61",6541-Residential EMI,THIRD PARTY PAYMENTS,PRIVATE CONTRACTOR,REVENUE
Walsall Council,http://opendatacommunities.org/id/metropolitan-district-council/walsall ,WC160-788,31.03.24,ADULT SOCIAL CARE,ANCHOR HANOVER GROUP - HARDEN HALL CARE HOME,11/03/2024,"2,137.32",6541-Residential,THIRD PARTY PAYMENTS,PRIVATE CONTRACTOR,REVENUE
Walsall Council,http://opendatacommunities.org/id/metropolitan-district-council/walsall ,WC160-789,31.03.24,ADULT SOCIAL CARE,ANCHOR HANOVER GROUP - HARDEN HALL CARE HOME,11/03/2024,"2,773.36",6541-Residential EMI,THIRD PARTY PAYMENTS,PRIVATE CONTRACTOR,REVENUE
Walsall Council,http://opendatacommunities.org/id/metropolitan-district-council/walsall ,WC160-790,31.03.24,ADULT SOCIAL CARE,ANCHOR HANOVER GROUP - HARDEN HALL CARE HOME,11/03/2024,"2,497.32",6541-Residential,THIRD PARTY PAYMENTS,PRIVATE CONTRACTOR,REVENUE
Walsall Council,http://opendatacommunities.org/id/metropolitan-district-council/walsall ,WC160-791,31.03.24,ADULT SOCIAL CARE,ANCHOR HANOVER GROUP - HARDEN HALL CARE HOME,11/03/2024,"2,773.36",6541-Residential EMI,THIRD PARTY PAYMENTS,PRIVATE CONTRACTOR,REVENUE
Walsall Council,http://opendatacommunities.org/id/metropolitan-district-council/walsall ,WC160-792,31.03.24,ADULT SOCIAL CARE,ANCHOR HANOVER GROUP - HARDEN HALL CARE HOME,11/03/2024,"2,773.36",6541-Residential EMI,THIRD PARTY PAYMENTS,PRIVATE CONTRACTOR,REVENUE
Walsall Council,http://opendatacommunities.org/id/metropolitan-district-council/walsall ,WC160-793,31.03.24,ADULT SOCIAL CARE,ANCHOR HANOVER GROUP - HARDEN HALL CARE HOME,11/03/2024,"2,773.36",6541-Residential EMI,THIRD PARTY PAYMENTS,PRIVATE CONTRACTOR,REVENUE
Walsall Council,http://opendatacommunities.org/id/metropolitan-district-council/walsall ,WC160-794,31.03.24,ADULT SOCIAL CARE,ANCHOR HANOVER GROUP - HARDEN HALL CARE HOME,11/03/2024,"2,773.36",6541-Residential EMI,THIRD PARTY PAYMENTS,PRIVATE CONTRACTOR,REVENUE
Walsall Council,http://opendatacommunities.org/id/metropolitan-district-council/walsall ,WC160-795,31.03.24,ADULT SOCIAL CARE,ANCHOR HANOVER GROUP - HARDEN HALL CARE HOME,11/03/2024,"3,853.12",6541-Residential EMI,THIRD PARTY PAYMENTS,PRIVATE CONTRACTOR,REVENUE
Walsall Council,http://opendatacommunities.org/id/metropolitan-district-council/walsall ,WC160-796,31.03.24,ADULT SOCIAL CARE,ANCHOR HANOVER GROUP - HARDEN HALL CARE HOME,11/03/2024,"2,724.20",6541-Residential EMI,THIRD PARTY PAYMENTS,PRIVATE CONTRACTOR,REVENUE
Walsall Council,http://opendatacommunities.org/id/metropolitan-district-council/walsall ,WC160-797,31.03.24,ADULT SOCIAL CARE,ANCHOR HANOVER GROUP - HARDEN HALL CARE HOME,11/03/2024,"-1,287.63",6541-Residential EMI,THIRD PARTY PAYMENTS,PRIVATE CONTRACTOR,REVENUE
Walsall Council,http://opendatacommunities.org/id/metropolitan-district-council/walsall ,WC160-798,31.03.24,CHILDRENS,REDACTED,06/03/2024,323.60,6223-Special Guardianship Orders,TRANSFER PAYMENTS,CHILDREN SOCIAL SERVICES CLIENT,REVENUE
Walsall Council,http://opendatacommunities.org/id/metropolitan-district-council/walsall ,WC160-799,31.03.24,ADULT SOCIAL CARE,REDACTED,06/03/2024,"21,280.00",6541-Direct Payment,THIRD PARTY PAYMENTS,PRIVATE CONTRACTOR,REVENUE
Walsall Council,http://opendatacommunities.org/id/metropolitan-district-council/walsall ,WC160-800,31.03.24,ADULT SOCIAL CARE,REDACTED,06/03/2024,954.75,6541-Direct Payment,THIRD PARTY PAYMENTS,PRIVATE CONTRACTOR,REVENUE
Walsall Council,http://opendatacommunities.org/id/metropolitan-district-council/walsall ,WC160-801,31.03.24,ADULT SOCIAL CARE,REDACTED,06/03/2024,"3,915.00",6541-Direct Payment,THIRD PARTY PAYMENTS,PRIVATE CONTRACTOR,REVENUE
Walsall Council,http://opendatacommunities.org/id/metropolitan-district-council/walsall ,WC160-802,31.03.24,CHILDRENS CAPITAL,ANDREWS ELECTRICAL LTD,14/03/2024,"-47,100.00",7150-Site Works Contractors,CAPITAL,"NEW CONSTRUCTION,CONVERSION & RENOVATION",CAPITAL
Walsall Council,http://opendatacommunities.org/id/metropolitan-district-council/walsall ,WC160-803,31.03.24,CHILDRENS CAPITAL,ANDREWS ELECTRICAL LTD,14/03/2024,"47,100.00",7150-Site Works Contractors,CAPITAL,"NEW CONSTRUCTION,CONVERSION & RENOVATION",CAPITAL
Walsall Council,http://opendatacommunities.org/id/metropolitan-district-council/walsall ,WC160-804,31.03.24,CHILDRENS CAPITAL,ANDREWS ELECTRICAL LTD,14/03/2024,"47,100.00",7150-Site Works Contractors,CAPITAL,"NEW CONSTRUCTION,CONVERSION & RENOVATION",CAPITAL
Walsall Council,http://opendatacommunities.org/id/metropolitan-district-council/walsall ,WC160-805,31.03.24,CHILDRENS CAPITAL,ANDREWS ELECTRICAL LTD,14/03/2024,"5,990.00",7150-Site Works Contractors,CAPITAL,"NEW CONSTRUCTION,CONVERSION & RENOVATION",CAPITAL
Walsall Council,http://opendatacommunities.org/id/metropolitan-district-council/walsall ,WC160-806,31.03.24,CHILDRENS CAPITAL,ANDREWS ELECTRICAL LTD,27/03/2024,"27,246.00",7150-Site Works Contractors,CAPITAL,"NEW CONSTRUCTION,CONVERSION & RENOVATION",CAPITAL
Walsall Council,http://opendatacommunities.org/id/metropolitan-district-council/walsall ,WC160-807,31.03.24,CHILDRENS,REDACTED,06/03/2024,319.08,6223-Special Guardianship Orders,TRANSFER PAYMENTS,CHILDREN SOCIAL SERVICES CLIENT,REVENUE
Walsall Council,http://opendatacommunities.org/id/metropolitan-district-council/walsall ,WC160-808,31.03.24,ADULT SOCIAL CARE,REDACTED,06/03/2024,"1,123.71",6541-Direct Payment,THIRD PARTY PAYMENTS,PRIVATE CONTRACTOR,REVENUE
Walsall Council,http://opendatacommunities.org/id/metropolitan-district-council/walsall ,WC160-809,31.03.24,ADULT SOCIAL CARE,REDACTED,06/03/2024,"2,338.20",6541-Direct Payment,THIRD PARTY PAYMENTS,PRIVATE CONTRACTOR,REVENUE
Walsall Council,http://opendatacommunities.org/id/metropolitan-district-council/walsall ,WC160-810,31.03.24,CHILDRENS,ANGELS AND BUTTERFLIES CHILDMINDING,05/03/2024,760.00,6241-Transfer Payments-Other Schoolchildren/Student Related Items,TRANSFER PAYMENTS,SCHOOLCHILDREN/STUDENTS,REVENUE
Walsall Council,http://opendatacommunities.org/id/metropolitan-district-council/walsall ,WC160-811,31.03.24,CHILDRENS,ANIMALS IN HANDS,18/03/2024,315.00,6211-Educational Visits-Fees,SUPPLIES & SERVICES,SERVICES,REVENUE
